Workbook

Sheet Contributions calculator
C2: Additional Pension Benefit Cost Calculator
C3: Member Details
C4: Date of Birth: | I4: =IF(I9="Election must start before normal pension age","Error","") -> 
C6: Normal pension age* | J6: SPA
C7: Prospective Normal Pension Age | D7: =VLOOKUP(D4,'State pension age'!B4:E50,3,TRUE) -> 65 | E7: =IF(OR(D7="",D7=0),"","Years") -> Years | F7: =VLOOKUP(D4,'State pension age'!B4:E50,4,TRUE) -> 0 | G7: Months
C9: Date of AP election: | I9: =IF(OR(D12=""),"",IF(D11>=Codes!E8,"Election must start before normal pension age","")) -> 
C11: Age at start of agreement: | D11: =IF(OR(D4="",D9=""),"",ROUNDDOWN((D9-D4+1)/365.25,0)) ->  | I11: =IF(D11<16,"Error","") -> 
B12: Future service | C12: Number of full years between age at election and expected NPA/buy-out retirement age | D12: =IF(OR(E7="",D11=""),"",Codes!E8-D11) ->  | E12: =IF(D7="","",IF(D11="","","Years")) -> 
C14: Additional pension contract details
C15: Maximum additional pension: | D15: =Codes!P14 -> 6500
C17: How much additional pension do you wish to purchase? | D17: 6000 | I17: =IF(D17>D15, "Error","") -> 
C19: Please select your payment method: | D19: Lump Sum | I19: =IF(D19=Codes!C2,"",IF(D12=1,"Payment can only be made by lump sum","")) -> 
C21: Regular payments over how many years? | D21: 13 | I21: =IF(OR(D21="",D12="", D12<2),"",IF(D21>(D12-1),"Error","")) -> 
C23: Would you like to buy dependants benefits? | D23: Member only | I23: =IF(D12<2,"",IF(I21="Error","Payments can be made over a maximum of "&D12-1&" years","")) -> 
C26: Results
B27: =IF($D$19=Codes!$C$2,"A lump sum payment of:-",IF($D$19=Codes!$C$3,"Monthly payment amount:-","")) -> A lump sum payment of:- | D27: =IF(ISERROR(Codes!J18),"",IF(OR($D$17="",Codes!J18="",$I$17="Error",$I$11="Error"),"",($D$17/250)*Codes!J18)) -> 
B28: =IF(D19="Regular contributions","Annual payment amount:-","") ->  | D28: =IF(OR(D19="",D19="Lump sum",D17="",D21="",D23=""),"",IF(D19="Regular contributions",D27*12,"")) -> 
B29: =IF(D19="Regular contributions","Total amount payable over selected period:-","") ->  | D29: =IF(OR(D19="",D19="Lump sum",D21="",D23="",D17=""),"",IF(D19="Regular contributions",D28*D21,"")) -> 
B31: Notes: For protected scheme members and scheme members still covered by tapered protection the payable age for your election will be the same as your scheme pension age (60 or 65). All other members should use use their state pension age to calculate the cost of additional pension. Additional pension must be bought in multiples of £250. Therefore the minimum amount available to purchase is £250. The maximum amount for each scheme is: • The Health and Personal Social Services(Northern Ireland) 1995/2008 £5,000 • The Health and Social Care Pension Scheme (Northern Ireland) 2015 £6,500 | K31: *For protected scheme members and scheme members still covered by tapered protection the payable age for your election will be the same as your scheme pension age (60 or 65). All other members should use their state pension age to calculate the cost of additional pension.
K34: V1.0 - Last updated 13/02/2019

Sheet Codes (hidden)
B1: DOB between | C1: Payment | D1: Form of AP | E1: NPA Options | F1: Lump sum table | I1: AP Table results
B2: =TODAY()-365.25*85 -> 1935-09-07T18:00:00 | C2: Lump Sum | D2: Member only | E2: 60 | F2: =IF('Contributions calculator'!J6=60,"S60",IF('Contributions calculator'!J6=65,"S65",IF('Contributions calculator'!J6="SPA","S",""))) -> S | H2: S60 | J2: =IF('Contributions calculator'!D23=Codes!D2,VLOOKUP('Contributions calculator'!D11,'Lump Sum'!B9:D60,2,FALSE),IF('Contributions calculator'!D23=Codes!D3,VLOOKUP('Contributions calculator'!D11,'Lump Sum'!B9:D60,3,FALSE),"")) -> 
B3: =TODAY()-365.25*16 -> 2004-09-07 | C3: =IF(OR('Contributions calculator'!D12=0,'Contributions calculator'!D12=1),"","Regular contributions") -> Regular contributions | D3: Member and dependant | E3: 65 | H3: S65 | J3: =IF('Contributions calculator'!D23=Codes!D2,VLOOKUP('Contributions calculator'!D11,'Lump Sum'!F9:H60,2,FALSE),IF('Contributions calculator'!D23=Codes!D3,VLOOKUP('Contributions calculator'!D11,'Lump Sum'!F9:H60,3,FALSE),"")) -> 
E4: State Pension Age | H4: S | I4: Lump sum | J4: =IF('Contributions calculator'!D23=Codes!D2,VLOOKUP('Contributions calculator'!D11,'Lump Sum'!J9:L60,2,FALSE),IF('Contributions calculator'!D23=Codes!D3,VLOOKUP('Contributions calculator'!D11,'Lump Sum'!J9:L60,3,FALSE),"")) -> 
H5: P60 | I5: Regular conts for personal AP of £250 with PNPA 60 | J5: =INDEX('NRA60'!$W$6:$AQ$58,MATCH('Contributions calculator'!$D$11,'NRA60'!$W$6:$W$58,0),MATCH('Contributions calculator'!$D$21,'NRA60'!$W$6:$AQ$6,0)) -> 
B6: Yes/No | C6: Years (N) | D6: Buy out months | E6: Chosen NPA | H6: P65 | I6: Regular conts for personal AP of £250 with PNPA 65 | J6: =INDEX('NRA65'!$W$6:$AQ$58,MATCH('Contributions calculator'!$D$11,'NRA65'!$W$6:$W$58,0),MATCH('Contributions calculator'!$D$21,'NRA65'!$W$6:$AQ$6,0)) -> 
B7: Yes | C7: 0 | D7: 0 | E7: Years | F7: Months | H7: P66 | I7: Regular conts for personal AP of £250 with PNPA 66 | J7: =INDEX('NRA66'!$W$6:$AQ$58,MATCH('Contributions calculator'!$D$11,'NRA66'!$W$6:$W$58,0),MATCH('Contributions calculator'!$D$21,'NRA66'!$W$6:$AQ$6,0)) -> 
B8: No | C8: =IF(OR('Contributions calculator'!D7=66,'Contributions calculator'!D7=67,'Contributions calculator'!D7=68),1,"") ->  | D8: ='Contributions calculator'!F7 -> 0 | E8: =IF('Contributions calculator'!J6=60,60,IF('Contributions calculator'!J6=65,65,IF(OR('Contributions calculator'!J6="SPA",'Contributions calculator'!J6=""),'Contributions calculator'!D7,""))) -> 65 | F8: =IF('Contributions calculator'!J6=60,0,IF('Contributions calculator'!J6=65,0,IF('Contributions calculator'!J6="SPA",'Contributions calculator'!F7,""))) -> 0 | H8: P67 | I8: Regular conts for personal AP of £250 with PNPA 67 | J8: =INDEX('NRA67'!$W$6:$AQ$58,MATCH('Contributions calculator'!$D$11,'NRA67'!$W$6:$W$58,0),MATCH('Contributions calculator'!$D$21,'NRA67'!$W$6:$AQ$6,0)) -> 
C9: =IF(OR('Contributions calculator'!D7=67,'Contributions calculator'!D7=68),2,"") ->  | H9: P68 | I9: Regular conts for personal AP of £250 with PNPA 68 | J9: =INDEX('NRA68'!$W$6:$AQ$58,MATCH('Contributions calculator'!$D$11,'NRA68'!$W$6:$W$58,0),MATCH('Contributions calculator'!$D$21,'NRA68'!$W$6:$AQ$6,0)) -> 
C10: =IF(OR('Contributions calculator'!D7=68),3,"") ->  | H10: D60 | I10: Regular conts for personal AP of £250 with PNPA 60 + dependants AP | J10: =INDEX('NRA60'!$A$6:$U$58,MATCH('Contributions calculator'!$D$11,'NRA60'!$A$6:$A$58,0),MATCH('Contributions calculator'!$D$21,'NRA60'!$A$6:$U$6,0)) -> 
H11: D65 | I11: Regular conts for personal AP of £250 with PNPA 65 + dependants AP | J11: =INDEX('NRA65'!$A$6:$U$58,MATCH('Contributions calculator'!$D$11,'NRA65'!$A$6:$A$58,0),MATCH('Contributions calculator'!$D$21,'NRA65'!$A$6:$U$6,0)) ->  | M11: AP Limits
B12: Existing AP | C12: AP Available | D12: Contribution period | H12: D66 | I12: Regular conts for personal AP of £250 with PNPA 66 + dependants AP | J12: =INDEX('NRA66'!$A$6:$U$58,MATCH('Contributions calculator'!$D$11,'NRA66'!$A$6:$A$58,0),MATCH('Contributions calculator'!$D$21,'NRA66'!$A$6:$U$6,0)) ->  | M12: • NHS Superannuation Scheme (Scotland) | P12: 5000
B13: 0 | C13: =IF('Contributions calculator'!$D$15="","",250) -> 250 | D13: 1 | H13: D67 | I13: Regular conts for personal AP of £250 with PNPA 67 + dependants AP | J13: =INDEX('NRA67'!$A$6:$U$58,MATCH('Contributions calculator'!$D$11,'NRA67'!$A$6:$A$58,0),MATCH('Contributions calculator'!$D$21,'NRA67'!$A$6:$U$6,0)) ->  | M13: • NHS Pension Scheme (Scotland) 2013 | P13: 6500
B14: =IF(B13<(Codes!$P$14),Codes!B13+250,"") -> 250 | C14: =IF('Contributions calculator'!$D$15="","",IF(C13<('Contributions calculator'!$D$15-249),Codes!C13+250,"")) -> 500 | D14: =IF(D13="","",IF(Codes!D13+1<'Contributions calculator'!$D$12,Codes!D13+1,"")) -> 2 | H14: D68 | I14: Regular conts for personal AP of £250 with PNPA 68 + dependants AP | J14: =INDEX('NRA68'!$A$6:$U$58,MATCH('Contributions calculator'!$D$11,'NRA68'!$A$6:$A$58,0),MATCH('Contributions calculator'!$D$21,'NRA68'!$A$6:$U$6,0)) ->  | O14: Applicable Limit | P14: =IF(OR('Contributions calculator'!J6=60,'Contributions calculator'!J6=65),Codes!P12,IF('Contributions calculator'!J6="SPA",Codes!P13,"")) -> 6500
B15: =IF(B14<(Codes!$P$14),Codes!B14+250,"") -> 500 | C15: =IF('Contributions calculator'!$D$15="","",IF(C14<('Contributions calculator'!$D$15-249),Codes!C14+250,"")) -> 750 | D15: =IF(D14="","",IF(Codes!D14+1<'Contributions calculator'!$D$12,Codes!D14+1,"")) -> 3
B16: =IF(B15<(Codes!$P$14),Codes!B15+250,"") -> 750 | C16: =IF('Contributions calculator'!$D$15="","",IF(C15<('Contributions calculator'!$D$15-249),Codes!C15+250,"")) -> 1000 | D16: =IF(D15="","",IF(Codes!D15+1<'Contributions calculator'!$D$12,Codes!D15+1,"")) -> 4 | I16: =IF(AND('Contributions calculator'!D19=C3,'Contributions calculator'!F7<>0),"Relevent tables are "&H25&" & "&H26,"Relevent table is "&H25&"") -> Relevent table is S
B17: =IF(B16<(Codes!$P$14),Codes!B16+250,"") -> 1000 | C17: =IF('Contributions calculator'!$D$15="","",IF(C16<('Contributions calculator'!$D$15-249),Codes!C16+250,"")) -> 1250 | D17: =IF(D16="","",IF(Codes!D16+1<'Contributions calculator'!$D$12,Codes!D16+1,"")) -> 5
B18: =IF(B17<(Codes!$P$14),Codes!B17+250,"") -> 1250 | C18: =IF('Contributions calculator'!$D$15="","",IF(C17<('Contributions calculator'!$D$15-249),Codes!C17+250,"")) -> 1500 | D18: =IF(D17="","",IF(Codes!D17+1<'Contributions calculator'!$D$12,Codes!D17+1,"")) -> 6 | I18: Cost of £250 of AP | J18: =IF(H26="",I25,((I26-I25)*I23+I25)) -> 
B19: =IF(B18<(Codes!$P$14),Codes!B18+250,"") -> 1500 | C19: =IF('Contributions calculator'!$D$15="","",IF(C18<('Contributions calculator'!$D$15-249),Codes!C18+250,"")) -> 1750 | D19: =IF(D18="","",IF(Codes!D18+1<'Contributions calculator'!$D$12,Codes!D18+1,"")) -> 7
B20: =IF(B19<(Codes!$P$14),Codes!B19+250,"") -> 1750 | C20: =IF('Contributions calculator'!$D$15="","",IF(C19<('Contributions calculator'!$D$15-249),Codes!C19+250,"")) -> 2000 | D20: =IF(D19="","",IF(Codes!D19+1<'Contributions calculator'!$D$12,Codes!D19+1,"")) -> 8 | I20: Interpolation for monthly contributions for non-integer NPA
B21: =IF(B20<(Codes!$P$14),Codes!B20+250,"") -> 2000 | C21: =IF('Contributions calculator'!$D$15="","",IF(C20<('Contributions calculator'!$D$15-249),Codes!C20+250,"")) -> 2250 | D21: =IF(D20="","",IF(Codes!D20+1<'Contributions calculator'!$D$12,Codes!D20+1,"")) -> 9
B22: =IF(B21<(Codes!$P$14),Codes!B21+250,"") -> 2250 | C22: =IF('Contributions calculator'!$D$15="","",IF(C21<('Contributions calculator'!$D$15-249),Codes!C21+250,"")) -> 2500 | D22: =IF(D21="","",IF(Codes!D21+1<'Contributions calculator'!$D$12,Codes!D21+1,"")) -> 10 | H22: NPA: | I22: =E8&" Years "&F8&" months" -> 65 Years 0 months
B23: =IF(B22<(Codes!$P$14),Codes!B22+250,"") -> 2500 | C23: =IF('Contributions calculator'!$D$15="","",IF(C22<('Contributions calculator'!$D$15-249),Codes!C22+250,"")) -> 2750 | D23: =IF(D22="","",IF(Codes!D22+1<'Contributions calculator'!$D$12,Codes!D22+1,"")) -> 11 | H23: Part years | I23: ='Contributions calculator'!F7/12 -> 0
B24: =IF(B23<(Codes!$P$14),Codes!B23+250,"") -> 2750 | C24: =IF('Contributions calculator'!$D$15="","",IF(C23<('Contributions calculator'!$D$15-249),Codes!C23+250,"")) -> 3000 | D24: =IF(D23="","",IF(Codes!D23+1<'Contributions calculator'!$D$12,Codes!D23+1,"")) -> 12
B25: =IF(B24<(Codes!$P$14),Codes!B24+250,"") -> 3000 | C25: =IF('Contributions calculator'!$D$15="","",IF(C24<('Contributions calculator'!$D$15-249),Codes!C24+250,"")) -> 3250 | D25: =IF(D24="","",IF(Codes!D24+1<'Contributions calculator'!$D$12,Codes!D24+1,"")) -> 13 | H25: =IF('Contributions calculator'!D19=Codes!C2,F2,IF('Contributions calculator'!D23=D2,"P",IF('Contributions calculator'!D23=D3,"D",""))&Codes!E8) -> S | I25: =VLOOKUP(H25,H2:J14,3,FALSE) -> 
B26: =IF(B25<(Codes!$P$14),Codes!B25+250,"") -> 3250 | C26: =IF('Contributions calculator'!$D$15="","",IF(C25<('Contributions calculator'!$D$15-249),Codes!C25+250,"")) -> 3500 | D26: =IF(D25="","",IF(Codes!D25+1<'Contributions calculator'!$D$12,Codes!D25+1,"")) -> 14 | H26: =IF(F8="","",IF(AND('Contributions calculator'!D19="Regular contributions",F8<>0),IF('Contributions calculator'!D23=D2,"P",IF('Contributions calculator'!D23=D3,"D",""))&E8+1,"")) ->  | I26: =VLOOKUP(H26,H4:J14,3,FALSE) -> 
B27: =IF(B26<(Codes!$P$14),Codes!B26+250,"") -> 3500 | C27: =IF('Contributions calculator'!$D$15="","",IF(C26<('Contributions calculator'!$D$15-249),Codes!C26+250,"")) -> 3750 | D27: =IF(D26="","",IF(Codes!D26+1<'Contributions calculator'!$D$12,Codes!D26+1,"")) -> 15
B28: =IF(B27<(Codes!$P$14),Codes!B27+250,"") -> 3750 | C28: =IF('Contributions calculator'!$D$15="","",IF(C27<('Contributions calculator'!$D$15-249),Codes!C27+250,"")) -> 4000 | D28: =IF(D27="","",IF(Codes!D27+1<'Contributions calculator'!$D$12,Codes!D27+1,"")) -> 16 | I28: ="Interpolation for NPA of "&I22 -> Interpolation for NPA of 65 Years 0 months
B29: =IF(B28<(Codes!$P$14),Codes!B28+250,"") -> 4000 | C29: =IF('Contributions calculator'!$D$15="","",IF(C28<('Contributions calculator'!$D$15-249),Codes!C28+250,"")) -> 4250 | D29: =IF(D28="","",IF(Codes!D28+1<'Contributions calculator'!$D$12,Codes!D28+1,"")) -> 17 | H29: = | I29: ="("&H26&" figure - "&H25&" figure) x months/12 + "&H26&" figure" -> ( figure - S figure) x months/12 + figure
B30: =IF(B29<(Codes!$P$14),Codes!B29+250,"") -> 4250 | C30: =IF('Contributions calculator'!$D$15="","",IF(C29<('Contributions calculator'!$D$15-249),Codes!C29+250,"")) -> 4500 | D30: =IF(D29="","",IF(Codes!D29+1<'Contributions calculator'!$D$12,Codes!D29+1,"")) -> 18 | H30: = | I30: ="("&I26&" - "&I25&") x "&I23&" + "&I26 -> 
B31: =IF(B30<(Codes!$P$14),Codes!B30+250,"") -> 4500 | C31: =IF('Contributions calculator'!$D$15="","",IF(C30<('Contributions calculator'!$D$15-249),Codes!C30+250,"")) -> 4750 | D31: =IF(D30="","",IF(Codes!D30+1<'Contributions calculator'!$D$12,Codes!D30+1,"")) -> 19 | H31: = | I31: =J18 -> 
B32: =IF(B31<(Codes!$P$14),Codes!B31+250,"") -> 4750 | C32: =IF('Contributions calculator'!$D$15="","",IF(C31<('Contributions calculator'!$D$15-249),Codes!C31+250,"")) -> 5000 | D32: =IF(D31="","",IF(Codes!D31+1<'Contributions calculator'!$D$12,Codes!D31+1,"")) -> 20
B33: =IF(B32<(Codes!$P$14),Codes!B32+250,"") -> 5000 | C33: =IF('Contributions calculator'!$D$15="","",IF(C32<('Contributions calculator'!$D$15-249),Codes!C32+250,"")) -> 5250
B34: =IF(B33<(Codes!$P$14),Codes!B33+250,"") -> 5250 | C34: =IF('Contributions calculator'!$D$15="","",IF(C33<('Contributions calculator'!$D$15-249),Codes!C33+250,"")) -> 5500
B35: =IF(B34<(Codes!$P$14),Codes!B34+250,"") -> 5500 | C35: =IF('Contributions calculator'!$D$15="","",IF(C34<('Contributions calculator'!$D$15-249),Codes!C34+250,"")) -> 5750
B36: =IF(B35<(Codes!$P$14),Codes!B35+250,"") -> 5750 | C36: =IF('Contributions calculator'!$D$15="","",IF(C35<('Contributions calculator'!$D$15-249),Codes!C35+250,"")) -> 6000
B37: =IF(B36<(Codes!$P$14),Codes!B36+250,"") -> 6000 | C37: =IF('Contributions calculator'!$D$15="","",IF(C36<('Contributions calculator'!$D$15-249),Codes!C36+250,"")) -> 6250
B38: =IF(B37<(Codes!$P$14),Codes!B37+250,"") -> 6250 | C38: =IF('Contributions calculator'!$D$15="","",IF(C37<('Contributions calculator'!$D$15-249),Codes!C37+250,"")) -> 6500
B39: =IF(B38<(Codes!$P$14),Codes!B38+250,"") -> 6500 | C39: =IF('Contributions calculator'!$D$15="","",IF(C38<('Contributions calculator'!$D$15-249),Codes!C38+250,"")) -> 
C40: =IF('Contributions calculator'!$D$13="","",IF(C39<('Contributions calculator'!$D$13-249),Codes!C39+250,"")) -> 
C41: =IF('Contributions calculator'!$D$13="","",IF(C40<('Contributions calculator'!$D$13-249),Codes!C40+250,"")) -> 
C42: =IF('Contributions calculator'!$D$13="","",IF(C41<('Contributions calculator'!$D$13-249),Codes!C41+250,"")) -> 
C43: =IF('Contributions calculator'!$D$13="","",IF(C42<('Contributions calculator'!$D$13-249),Codes!C42+250,"")) -> 
B49: =IF(B48<('Contributions calculator'!$E$13-250),Codes!B48+250,"") -> 
B50: =IF(B49<('Contributions calculator'!$E$13-250),Codes!B49+250,"") -> 
B51: =IF(B50<('Contributions calculator'!$E$13-250),Codes!B50+250,"") -> 
B52: =IF(B51<('Contributions calculator'!$E$13-250),Codes!B51+250,"") -> 
B53: =IF(B52<('Contributions calculator'!$E$13-250),Codes!B52+250,"") -> 
B54: =IF(B53<('Contributions calculator'!$E$13-250),Codes!B53+250,"") -> 
B55: =IF(B54<('Contributions calculator'!$E$13-250),Codes!B54+250,"") -> 
B56: =IF(B55<('Contributions calculator'!$E$13-250),Codes!B55+250,"") -> 
B57: =IF(B56<('Contributions calculator'!$E$13-250),Codes!B56+250,"") -> 
B58: =IF(B57<('Contributions calculator'!$E$13-250),Codes!B57+250,"") -> 
B59: =IF(B58<('Contributions calculator'!$E$13-250),Codes!B58+250,"") -> 
B60: =IF(B59<('Contributions calculator'!$E$13-250),Codes!B59+250,"") -> 
B61: =IF(B60<('Contributions calculator'!$E$13-250),Codes!B60+250,"") -> 
B62: =IF(B61<('Contributions calculator'!$E$13-250),Codes!B61+250,"") -> 
B63: =IF(B62<('Contributions calculator'!$E$13-250),Codes!B62+250,"") -> 
B64: =IF(B63<('Contributions calculator'!$E$13-250),Codes!B63+250,"") -> 
B65: =IF(B64<('Contributions calculator'!$E$13-250),Codes!B64+250,"") -> 
B66: =IF(B65<('Contributions calculator'!$E$13-250),Codes!B65+250,"") -> 
B67: =IF(B66<('Contributions calculator'!$E$13-250),Codes!B66+250,"") -> 
B68: =IF(B67<('Contributions calculator'!$E$13-250),Codes!B67+250,"") -> 
B69: =IF(B68<('Contributions calculator'!$E$13-250),Codes!B68+250,"") -> 
B70: =IF(B69<('Contributions calculator'!$E$13-250),Codes!B69+250,"") -> 
B71: =IF(B70<('Contributions calculator'!$E$13-250),Codes!B70+250,"") -> 
B72: =IF(B71<('Contributions calculator'!$E$13-250),Codes!B71+250,"") -> 
B73: =IF(B72<('Contributions calculator'!$E$13-250),Codes!B72+250,"") -> 
B74: =IF(B73<('Contributions calculator'!$E$13-250),Codes!B73+250,"") -> 
B75: =IF(B74<('Contributions calculator'!$E$13-250),Codes!B74+250,"") -> 
B76: =IF(B75<('Contributions calculator'!$E$13-250),Codes!B75+250,"") -> 
B77: =IF(B76<('Contributions calculator'!$E$13-250),Codes!B76+250,"") -> 
B78: =IF(B77<('Contributions calculator'!$E$13-250),Codes!B77+250,"") -> 
B79: =IF(B78<('Contributions calculator'!$E$13-250),Codes!B78+250,"") -> 
B80: =IF(B79<('Contributions calculator'!$E$13-250),Codes!B79+250,"") -> 
B81: =IF(B80<('Contributions calculator'!$E$13-250),Codes!B80+250,"") -> 
B82: =IF(B81<('Contributions calculator'!$E$13-250),Codes!B81+250,"") -> 
B83: =IF(B82<('Contributions calculator'!$E$13-250),Codes!B82+250,"") -> 
B84: =IF(B83<('Contributions calculator'!$E$13-250),Codes!B83+250,"") -> 
B85: =IF(B84<('Contributions calculator'!$E$13-250),Codes!B84+250,"") -> 
B86: =IF(B85<('Contributions calculator'!$E$13-250),Codes!B85+250,"") -> 
B87: =IF(B86<('Contributions calculator'!$E$13-250),Codes!B86+250,"") -> 
B88: =IF(B87<('Contributions calculator'!$E$13-250),Codes!B87+250,"") -> 
B89: =IF(B88<('Contributions calculator'!$E$13-250),Codes!B88+250,"") -> 
B90: =IF(B89<('Contributions calculator'!$E$13-250),Codes!B89+250,"") -> 
B91: =IF(B90<('Contributions calculator'!$E$13-250),Codes!B90+250,"") -> 
B92: =IF(B91<('Contributions calculator'!$E$13-250),Codes!B91+250,"") -> 
B93: =IF(B92<('Contributions calculator'!$E$13-250),Codes!B92+250,"") -> 
B94: =IF(B93<('Contributions calculator'!$E$13-250),Codes!B93+250,"") -> 
B95: =IF(B94<('Contributions calculator'!$E$13-250),Codes!B94+250,"") -> 
B96: =IF(B95<('Contributions calculator'!$E$13-250),Codes!B95+250,"") -> 
B97: =IF(B96<('Contributions calculator'!$E$13-250),Codes!B96+250,"") -> 
B98: =IF(B97<('Contributions calculator'!$E$13-250),Codes!B97+250,"") -> 
B99: =IF(B98<('Contributions calculator'!$E$13-250),Codes!B98+250,"") -> 
B100: =IF(B99<('Contributions calculator'!$E$13-250),Codes!B99+250,"") -> 
B101: =IF(B100<('Contributions calculator'!$E$13-250),Codes!B100+250,"") -> 
B102: =IF(B101<('Contributions calculator'!$E$13-250),Codes!B101+250,"") -> 
B103: =IF(B102<('Contributions calculator'!$E$13-250),Codes!B102+250,"") -> 
B104: =IF(B103<('Contributions calculator'!$E$13-250),Codes!B103+250,"") -> 
B105: =IF(B104<('Contributions calculator'!$E$13-250),Codes!B104+250,"") -> 
B106: =IF(B105<('Contributions calculator'!$E$13-250),Codes!B105+250,"") -> 
B107: =IF(B106<('Contributions calculator'!$E$13-250),Codes!B106+250,"") -> 
B108: =IF(B107<('Contributions calculator'!$E$13-250),Codes!B107+250,"") -> 
B109: =IF(B108<('Contributions calculator'!$E$13-250),Codes!B108+250,"") -> 
B110: =IF(B109<('Contributions calculator'!$E$13-250),Codes!B109+250,"") -> 
B111: =IF(B110<('Contributions calculator'!$E$13-250),Codes!B110+250,"") -> 
B112: =IF(B111<('Contributions calculator'!$E$13-250),Codes!B111+250,"") -> 
B113: =IF(B112<('Contributions calculator'!$E$13-250),Codes!B112+250,"") -> 
B114: =IF(B113<('Contributions calculator'!$E$13-250),Codes!B113+250,"") -> 
B115: =IF(B114<('Contributions calculator'!$E$13-250),Codes!B114+250,"") -> 
B116: =IF(B115<('Contributions calculator'!$E$13-250),Codes!B115+250,"") -> 
B117: =IF(B116<('Contributions calculator'!$E$13-250),Codes!B116+250,"") -> 
B118: =IF(B117<('Contributions calculator'!$E$13-250),Codes!B117+250,"") -> 
B119: =IF(B118<('Contributions calculator'!$E$13-250),Codes!B118+250,"") -> 
B120: =IF(B119<('Contributions calculator'!$E$13-250),Codes!B119+250,"") -> 
B121: =IF(B120<('Contributions calculator'!$E$13-250),Codes!B120+250,"") -> 
B122: =IF(B121<('Contributions calculator'!$E$13-250),Codes!B121+250,"") -> 
B123: =IF(B122<('Contributions calculator'!$E$13-250),Codes!B122+250,"") -> 
B124: =IF(B123<('Contributions calculator'!$E$13-250),Codes!B123+250,"") -> 
B125: =IF(B124<('Contributions calculator'!$E$13-250),Codes!B124+250,"") -> 
B126: =IF(B125<('Contributions calculator'!$E$13-250),Codes!B125+250,"") -> 
B127: =IF(B126<('Contributions calculator'!$E$13-250),Codes!B126+250,"") -> 
B128: =IF(B127<('Contributions calculator'!$E$13-250),Codes!B127+250,"") -> 
B129: =IF(B128<('Contributions calculator'!$E$13-250),Codes!B128+250,"") -> 
B130: =IF(B129<('Contributions calculator'!$E$13-250),Codes!B129+250,"") -> 
B131: =IF(B130<('Contributions calculator'!$E$13-250),Codes!B130+250,"") -> 
B132: =IF(B131<('Contributions calculator'!$E$13-250),Codes!B131+250,"") -> 
B133: =IF(B132<('Contributions calculator'!$E$13-250),Codes!B132+250,"") -> 
B134: =IF(B133<('Contributions calculator'!$E$13-250),Codes!B133+250,"") -> 
B135: =IF(B134<('Contributions calculator'!$E$13-250),Codes!B134+250,"") -> 
B136: =IF(B135<('Contributions calculator'!$E$13-250),Codes!B135+250,"") -> 
B137: =IF(B136<('Contributions calculator'!$E$13-250),Codes!B136+250,"") -> 
B138: =IF(B137<('Contributions calculator'!$E$13-250),Codes!B137+250,"") -> 
B139: =IF(B138<('Contributions calculator'!$E$13-250),Codes!B138+250,"") -> 
B140: =IF(B139<('Contributions calculator'!$E$13-250),Codes!B139+250,"") -> 
B141: =IF(B140<('Contributions calculator'!$E$13-250),Codes!B140+250,"") -> 
B142: =IF(B141<('Contributions calculator'!$E$13-250),Codes!B141+250,"") -> 
B143: =IF(B142<('Contributions calculator'!$E$13-250),Codes!B142+250,"") -> 
B144: =IF(B143<('Contributions calculator'!$E$13-250),Codes!B143+250,"") -> 
B145: =IF(B144<('Contributions calculator'!$E$13-250),Codes!B144+250,"") -> 
B146: =IF(B145<('Contributions calculator'!$E$13-250),Codes!B145+250,"") -> 
B147: =IF(B146<('Contributions calculator'!$E$13-250),Codes!B146+250,"") -> 
B148: =IF(B147<('Contributions calculator'!$E$13-250),Codes!B147+250,"") -> 
B149: =IF(B148<('Contributions calculator'!$E$13-250),Codes!B148+250,"") -> 
B150: =IF(B149<('Contributions calculator'!$E$13-250),Codes!B149+250,"") -> 
B151: =IF(B150<('Contributions calculator'!$E$13-250),Codes!B150+250,"") -> 
B152: =IF(B151<('Contributions calculator'!$E$13-250),Codes!B151+250,"") -> 
B153: =IF(B152<('Contributions calculator'!$E$13-250),Codes!B152+250,"") -> 
B154: =IF(B153<('Contributions calculator'!$E$13-250),Codes!B153+250,"") -> 
B155: =IF(B154<('Contributions calculator'!$E$13-250),Codes!B154+250,"") -> 
B156: =IF(B155<('Contributions calculator'!$E$13-250),Codes!B155+250,"") -> 
B157: =IF(B156<('Contributions calculator'!$E$13-250),Codes!B156+250,"") -> 
B158: =IF(B157<('Contributions calculator'!$E$13-250),Codes!B157+250,"") -> 
B159: =IF(B158<('Contributions calculator'!$E$13-250),Codes!B158+250,"") -> 
B160: =IF(B159<('Contributions calculator'!$E$13-250),Codes!B159+250,"") -> 
B161: =IF(B160<('Contributions calculator'!$E$13-250),Codes!B160+250,"") -> 
B162: =IF(B161<('Contributions calculator'!$E$13-250),Codes!B161+250,"") -> 
B163: =IF(B162<('Contributions calculator'!$E$13-250),Codes!B162+250,"") -> 
B164: =IF(B163<('Contributions calculator'!$E$13-250),Codes!B163+250,"") -> 
B165: =IF(B164<('Contributions calculator'!$E$13-250),Codes!B164+250,"") -> 
B166: =IF(B165<('Contributions calculator'!$E$13-250),Codes!B165+250,"") -> 
B167: =IF(B166<('Contributions calculator'!$E$13-250),Codes!B166+250,"") -> 
B168: =IF(B167<('Contributions calculator'!$E$13-250),Codes!B167+250,"") -> 
B169: =IF(B168<('Contributions calculator'!$E$13-250),Codes!B168+250,"") -> 
B170: =IF(B169<('Contributions calculator'!$E$13-250),Codes!B169+250,"") -> 
B171: =IF(B170<('Contributions calculator'!$E$13-250),Codes!B170+250,"") -> 
B172: =IF(B171<('Contributions calculator'!$E$13-250),Codes!B171+250,"") -> 
B173: =IF(B172<('Contributions calculator'!$E$13-250),Codes!B172+250,"") -> 
B174: =IF(B173<('Contributions calculator'!$E$13-250),Codes!B173+250,"") -> 
B175: =IF(B174<('Contributions calculator'!$E$13-250),Codes!B174+250,"") -> 
B176: =IF(B175<('Contributions calculator'!$E$13-250),Codes!B175+250,"") -> 
B177: =IF(B176<('Contributions calculator'!$E$13-250),Codes!B176+250,"") -> 
B178: =IF(B177<('Contributions calculator'!$E$13-250),Codes!B177+250,"") -> 
B179: =IF(B178<('Contributions calculator'!$E$13-250),Codes!B178+250,"") -> 
B180: =IF(B179<('Contributions calculator'!$E$13-250),Codes!B179+250,"") -> 
B181: =IF(B180<('Contributions calculator'!$E$13-250),Codes!B180+250,"") -> 
B182: =IF(B181<('Contributions calculator'!$E$13-250),Codes!B181+250,"") -> 
B183: =IF(B182<('Contributions calculator'!$E$13-250),Codes!B182+250,"") -> 
B184: =IF(B183<('Contributions calculator'!$E$13-250),Codes!B183+250,"") -> 
B185: =IF(B184<('Contributions calculator'!$E$13-250),Codes!B184+250,"") -> 
B186: =IF(B185<('Contributions calculator'!$E$13-250),Codes!B185+250,"") -> 
B187: =IF(B186<('Contributions calculator'!$E$13-250),Codes!B186+250,"") -> 
B188: =IF(B187<('Contributions calculator'!$E$13-250),Codes!B187+250,"") -> 
B189: =IF(B188<('Contributions calculator'!$E$13-250),Codes!B188+250,"") -> 
B190: =IF(B189<('Contributions calculator'!$E$13-250),Codes!B189+250,"") -> 
B191: =IF(B190<('Contributions calculator'!$E$13-250),Codes!B190+250,"") -> 
B192: =IF(B191<('Contributions calculator'!$E$13-250),Codes!B191+250,"") -> 
B193: =IF(B192<('Contributions calculator'!$E$13-250),Codes!B192+250,"") -> 
B194: =IF(B193<('Contributions calculator'!$E$13-250),Codes!B193+250,"") -> 
B195: =IF(B194<('Contributions calculator'!$E$13-250),Codes!B194+250,"") -> 
B196: =IF(B195<('Contributions calculator'!$E$13-250),Codes!B195+250,"") -> 
B197: =IF(B196<('Contributions calculator'!$E$13-250),Codes!B196+250,"") -> 
B198: =IF(B197<('Contributions calculator'!$E$13-250),Codes!B197+250,"") -> 
B199: =IF(B198<('Contributions calculator'!$E$13-250),Codes!B198+250,"") -> 
B200: =IF(B199<('Contributions calculator'!$E$13-250),Codes!B199+250,"") -> 
B201: =IF(B200<('Contributions calculator'!$E$13-250),Codes!B200+250,"") -> 
B202: =IF(B201<('Contributions calculator'!$E$13-250),Codes!B201+250,"") -> 
B203: =IF(B202<('Contributions calculator'!$E$13-250),Codes!B202+250,"") -> 
B204: =IF(B203<('Contributions calculator'!$E$13-250),Codes!B203+250,"") -> 
B205: =IF(B204<('Contributions calculator'!$E$13-250),Codes!B204+250,"") -> 
... 26 more rows

Sheet State pension age (hidden)
D2: SPA
B3: Date of birth | C3: Months | D3: Years | E3: Months | F3: Months | G3: Days
B4: =IF('Contributions calculator'!$D$4<H5,'Contributions calculator'!$D$4,"") -> 00:00:00 | D4: 65
A5: Increase from 65 to 66 | B5: =IF(AND('Contributions calculator'!$D$4>=H5,'Contributions calculator'!$D$4<=J5),'Contributions calculator'!$D$4,"") ->  | C5: =IF(B5="","",IF(DAY(K5)>=DAY(B5),0,-1)+(YEAR(K5)-YEAR(B5))*12+MONTH(K5)-MONTH(B5)) ->  | D5: =IF(B5="","",ROUNDDOWN(C5/12,0)) ->  | E5: =IF(OR(G5="",G5=0),F5,F5+1) ->  | F5: =IF(B5="","",C5-(D5*12)) ->  | G5: =IF(B5="","",K5-M5) ->  | H5: 1953-12-06 | J5: 1954-01-05 | K5: 2019-03-06 | M5: =IF(B5="","",DATE(YEAR(B5)+D5,MONTH(B5)+F5,DAY(B5))) -> 
B6: =IF(AND('Contributions calculator'!$D$4>=H6,'Contributions calculator'!$D$4<=J6),'Contributions calculator'!$D$4,"") ->  | D6: =IF(B6="","",ROUNDDOWN(C6/12,0)) ->  | E6: =IF(OR(G6="",G6=0),F6,F6+1) ->  | F6: =IF(B6="","",C6-(D6*12)) ->  | G6: =IF(B6="","",K6-M6) ->  | H6: 1954-01-06 | J6: 1954-02-05 | K6: 2019-05-06 | M6: =IF(B6="","",DATE(YEAR(B6)+D6,MONTH(B6)+F6,DAY(B6))) -> 
B7: =IF(AND('Contributions calculator'!$D$4>=H7,'Contributions calculator'!$D$4<=J7),'Contributions calculator'!$D$4,"") ->  | H7: 1954-02-06 | J7: 1954-03-05 | K7: 2019-07-06
B8: =IF(AND('Contributions calculator'!$D$4>=H8,'Contributions calculator'!$D$4<=J8),'Contributions calculator'!$D$4,"") ->  | H8: 1954-03-06 | J8: 1954-04-05 | K8: 2019-09-06
B9: =IF(AND('Contributions calculator'!$D$4>=H9,'Contributions calculator'!$D$4<=J9),'Contributions calculator'!$D$4,"") ->  | H9: 1954-04-06 | J9: 1954-05-05 | K9: 2019-11-06
B10: =IF(AND('Contributions calculator'!$D$4>=H10,'Contributions calculator'!$D$4<=J10),'Contributions calculator'!$D$4,"") ->  | H10: 1954-05-06 | J10: 1954-06-05 | K10: 2020-01-06
B11: =IF(AND('Contributions calculator'!$D$4>=H11,'Contributions calculator'!$D$4<=J11),'Contributions calculator'!$D$4,"") ->  | H11: 1954-06-06 | J11: 1954-07-05 | K11: 2020-03-06
B12: =IF(AND('Contributions calculator'!$D$4>=H12,'Contributions calculator'!$D$4<=J12),'Contributions calculator'!$D$4,"") ->  | H12: 1954-07-06 | J12: 1954-08-05 | K12: 2020-05-06
B13: =IF(AND('Contributions calculator'!$D$4>=H13,'Contributions calculator'!$D$4<=J13),'Contributions calculator'!$D$4,"") ->  | H13: 1954-08-06 | J13: 1954-09-05 | K13: 2020-07-06
B14: =IF(AND('Contributions calculator'!$D$4>=H14,'Contributions calculator'!$D$4<=J14),'Contributions calculator'!$D$4,"") ->  | H14: 1954-09-06 | J14: 1954-10-05 | K14: 2020-09-06
B15: =IF(AND('Contributions calculator'!$D$4>=H15,'Contributions calculator'!$D$4<=J15),'Contributions calculator'!$D$4,"") ->  | C15: =IF(B15="","",IF(DAY(K15)>=DAY(B15),0,-1)+(YEAR(K15)-YEAR(B15))*12+MONTH(K15)-MONTH(B15)) ->  | D15: =IF(B15="","",ROUNDDOWN(C15/12,0)) ->  | H15: 1954-10-06 | J15: 1960-04-05 | K15: =IF(AND('Contributions calculator'!D4>=H15,'Contributions calculator'!D4<=J15),('Contributions calculator'!D4+66*365.25),"") -> 
A17: Increase from 66 to 67 | B17: =IF(AND('Contributions calculator'!$D$4>=H17,'Contributions calculator'!$D$4<=J17),'Contributions calculator'!$D$4,"") ->  | D17: =IF(B17="","",66) ->  | F17: =IF(B17="","",1) ->  | H17: 1960-04-06 | J17: 1960-05-05
B18: =IF(AND('Contributions calculator'!$D$4>=H18,'Contributions calculator'!$D$4<=J18),'Contributions calculator'!$D$4,"") ->  | F18: =IF(B18="","",2) ->  | H18: 1960-05-06 | J18: 1960-06-05
B19: =IF(AND('Contributions calculator'!$D$4>=H19,'Contributions calculator'!$D$4<=J19),'Contributions calculator'!$D$4,"") ->  | F19: =IF(B19="","",3) ->  | H19: 1960-06-06 | J19: 1960-07-05
B20: =IF(AND('Contributions calculator'!$D$4>=H20,'Contributions calculator'!$D$4<=J20),'Contributions calculator'!$D$4,"") ->  | F20: =IF(B20="","",4) ->  | H20: 1960-07-06 | J20: 1960-08-05
B21: =IF(AND('Contributions calculator'!$D$4>=H21,'Contributions calculator'!$D$4<=J21),'Contributions calculator'!$D$4,"") ->  | F21: =IF(B21="","",5) ->  | H21: 1960-08-06 | J21: 1960-09-05
B22: =IF(AND('Contributions calculator'!$D$4>=H22,'Contributions calculator'!$D$4<=J22),'Contributions calculator'!$D$4,"") ->  | F22: =IF(B22="","",6) ->  | H22: 1960-09-06 | J22: 1960-10-05
B23: =IF(AND('Contributions calculator'!$D$4>=H23,'Contributions calculator'!$D$4<=J23),'Contributions calculator'!$D$4,"") ->  | F23: =IF(B23="","",7) ->  | H23: 1960-10-06 | J23: 1960-11-05 | M23: =IF(B23="","",DATE(YEAR(B23)+D23,MONTH(B23)+F23,DAY(B23))) -> 
B24: =IF(AND('Contributions calculator'!$D$4>=H24,'Contributions calculator'!$D$4<=J24),'Contributions calculator'!$D$4,"") ->  | F24: =IF(B24="","",8) ->  | H24: 1960-11-06 | J24: 1960-12-05
B25: =IF(AND('Contributions calculator'!$D$4>=H25,'Contributions calculator'!$D$4<=J25),'Contributions calculator'!$D$4,"") ->  | F25: =IF(B25="","",9) ->  | H25: 1960-12-06 | J25: 1961-01-05
B26: =IF(AND('Contributions calculator'!$D$4>=H26,'Contributions calculator'!$D$4<=J26),'Contributions calculator'!$D$4,"") ->  | F26: =IF(B26="","",10) ->  | H26: 1961-01-06 | J26: 1961-02-05
B27: =IF(AND('Contributions calculator'!$D$4>=H27,'Contributions calculator'!$D$4<=J27),'Contributions calculator'!$D$4,"") ->  | F27: =IF(B27="","",11) ->  | H27: 1961-02-06 | J27: 1961-03-05
B28: =IF(AND('Contributions calculator'!$D$4>=H28,'Contributions calculator'!$D$4<=J28),'Contributions calculator'!$D$4,"") ->  | D28: =IF(B28="","",67) ->  | F28: =IF(B28="","",1) ->  | H28: 1961-03-06 | J28: 1977-04-05
A30: Increase from 67 to 68 | B30: =IF(AND('Contributions calculator'!$D$4>=H30,'Contributions calculator'!$D$4<=J30),'Contributions calculator'!$D$4,"") ->  | C30: =IF(B30="","",IF(DAY(K30)>=DAY(B30),0,-1)+(YEAR(K30)-YEAR(B30))*12+MONTH(K30)-MONTH(B30)) ->  | D30: =IF(B30="","",ROUNDDOWN(C30/12,0)) ->  | F30: =IF(B30="","",C30-(D30*12)) ->  | H30: 1977-04-06 | J30: 1977-05-05 | K30: 2044-05-06
B31: =IF(AND('Contributions calculator'!$D$4>=H31,'Contributions calculator'!$D$4<=J31),'Contributions calculator'!$D$4,"") ->  | D31: =IF(B31="","",ROUNDDOWN(C31/12,0)) ->  | F31: =IF(B31="","",C31-(D31*12)) ->  | H31: 1977-05-06 | J31: 1977-06-05 | K31: 2044-07-06
B32: =IF(AND('Contributions calculator'!$D$4>=H32,'Contributions calculator'!$D$4<=J32),'Contributions calculator'!$D$4,"") ->  | H32: 1977-06-06 | J32: 1977-07-05 | K32: 2044-09-06
B33: =IF(AND('Contributions calculator'!$D$4>=H33,'Contributions calculator'!$D$4<=J33),'Contributions calculator'!$D$4,"") ->  | H33: 1977-07-06 | J33: 1977-08-05 | K33: 2044-11-06
B34: =IF(AND('Contributions calculator'!$D$4>=H34,'Contributions calculator'!$D$4<=J34),'Contributions calculator'!$D$4,"") ->  | H34: 1977-08-06 | J34: 1977-09-05 | K34: 2045-01-06
B35: =IF(AND('Contributions calculator'!$D$4>=H35,'Contributions calculator'!$D$4<=J35),'Contributions calculator'!$D$4,"") ->  | H35: 1977-09-06 | J35: 1977-10-05 | K35: 2045-03-06
B36: =IF(AND('Contributions calculator'!$D$4>=H36,'Contributions calculator'!$D$4<=J36),'Contributions calculator'!$D$4,"") ->  | H36: 1977-10-06 | J36: 1977-11-05 | K36: 2045-05-06
B37: =IF(AND('Contributions calculator'!$D$4>=H37,'Contributions calculator'!$D$4<=J37),'Contributions calculator'!$D$4,"") ->  | H37: 1977-11-06 | J37: 1977-12-05 | K37: 2045-07-06
B38: =IF(AND('Contributions calculator'!$D$4>=H38,'Contributions calculator'!$D$4<=J38),'Contributions calculator'!$D$4,"") ->  | H38: 1977-12-06 | J38: 1978-01-05 | K38: 2045-09-06
B39: =IF(AND('Contributions calculator'!$D$4>=H39,'Contributions calculator'!$D$4<=J39),'Contributions calculator'!$D$4,"") ->  | H39: 1978-01-06 | J39: 1978-02-05 | K39: 2045-11-06
B40: =IF(AND('Contributions calculator'!$D$4>=H40,'Contributions calculator'!$D$4<=J40),'Contributions calculator'!$D$4,"") ->  | H40: 1978-02-06 | J40: 1978-03-05 | K40: 2046-01-06
B41: =IF(AND('Contributions calculator'!$D$4>=H41,'Contributions calculator'!$D$4<=J41),'Contributions calculator'!$D$4,"") ->  | H41: 1978-03-06 | J41: 1978-04-05 | K41: 2046-03-06
B42: =IF(AND('Contributions calculator'!$D$4>=H42,'Contributions calculator'!$D$4<=J42),'Contributions calculator'!$D$4,"") ->  | D42: =IF(B42="","",68) ->  | H42: 1978-04-06 | J42: =TODAY() -> 2020-09-07

Sheet Lump Sum (hidden)
G1: Lump Sum Elections
B4: NPA 60 | F4: NPA 65 | J4: 2015 Scheme
B5: Table S60 -NPA 60 | F5: Table SPA 65 - NPA 65 | J5: Table S
B7: Benefits | C7: Personal | D7: Personal and dependant's | F7: Benefits | G7: Personal | H7: Personal and dependant's | J7: Benefits | K7: Personal | L7: Personal and dependant's
B8: Age when notice of election given | C8: Single premium to purchase £250 of APB at date of election, £ | F8: Age when notice of election given | G8: Single premium to purchase £250 of APB at date of election, £ | J8: Age when notice of election given | K8: Single premium to purchase £250 of APB at date of election, £
B9: 16 | C9: 2080 | D9: 2180 | F9: 16 | G9: 1700 | H9: 1810 | J9: 16 | K9: 1510 | L9: 1630
B10: 17 | C10: 2120 | D10: 2230 | F10: 17 | G10: 1740 | H10: 1850 | J10: 17 | K10: 1550 | L10: 1660
B11: 18 | C11: 2170 | D11: 2280 | F11: 18 | G11: 1780 | H11: 1900 | J11: 18 | K11: 1580 | L11: 1700
B12: 19 | C12: 2220 | D12: 2330 | F12: 19 | G12: 1820 | H12: 1940 | J12: 19 | K12: 1610 | L12: 1740
B13: 20 | C13: 2260 | D13: 2380 | F13: 20 | G13: 1860 | H13: 1980 | J13: 20 | K13: 1650 | L13: 1770
B14: 21 | C14: 2310 | D14: 2440 | F14: 21 | G14: 1890 | H14: 2020 | J14: 21 | K14: 1680 | L14: 1810
B15: 22 | C15: 2360 | D15: 2490 | F15: 22 | G15: 1930 | H15: 2060 | J15: 22 | K15: 1720 | L15: 1850
B16: 23 | C16: 2410 | D16: 2540 | F16: 23 | G16: 1980 | H16: 2110 | J16: 23 | K16: 1750 | L16: 1890
B17: 24 | C17: 2470 | D17: 2600 | F17: 24 | G17: 2020 | H17: 2150 | J17: 24 | K17: 1790 | L17: 1920
B18: 25 | C18: 2520 | D18: 2650 | F18: 25 | G18: 2060 | H18: 2200 | J18: 25 | K18: 1820 | L18: 1960
B19: 26 | C19: 2570 | D19: 2710 | F19: 26 | G19: 2100 | H19: 2240 | J19: 26 | K19: 1860 | L19: 2000
B20: 27 | C20: 2630 | D20: 2770 | F20: 27 | G20: 2150 | H20: 2290 | J20: 27 | K20: 1900 | L20: 2050
B21: 28 | C21: 2690 | D21: 2830 | F21: 28 | G21: 2190 | H21: 2340 | J21: 28 | K21: 1940 | L21: 2090
B22: 29 | C22: 2740 | D22: 2890 | F22: 29 | G22: 2240 | H22: 2380 | J22: 29 | K22: 1980 | L22: 2130
B23: 30 | C23: 2800 | D23: 2950 | F23: 30 | G23: 2280 | H23: 2430 | J23: 30 | K23: 2020 | L23: 2170
B24: 31 | C24: 2860 | D24: 3010 | F24: 31 | G24: 2330 | H24: 2480 | J24: 31 | K24: 2060 | L24: 2220
B25: 32 | C25: 2920 | D25: 3080 | F25: 32 | G25: 2380 | H25: 2540 | J25: 32 | K25: 2100 | L25: 2260
B26: 33 | C26: 2990 | D26: 3140 | F26: 33 | G26: 2430 | H26: 2590 | J26: 33 | K26: 2140 | L26: 2310
B27: 34 | C27: 3050 | D27: 3210 | F27: 34 | G27: 2480 | H27: 2640 | J27: 34 | K27: 2190 | L27: 2350
B28: 35 | C28: 3120 | D28: 3270 | F28: 35 | G28: 2530 | H28: 2690 | J28: 35 | K28: 2230 | L28: 2400
B29: 36 | C29: 3180 | D29: 3340 | F29: 36 | G29: 2580 | H29: 2750 | J29: 36 | K29: 2280 | L29: 2450
B30: 37 | C30: 3250 | D30: 3410 | F30: 37 | G30: 2630 | H30: 2810 | J30: 37 | K30: 2320 | L30: 2500
B31: 38 | C31: 3320 | D31: 3490 | F31: 38 | G31: 2690 | H31: 2860 | J31: 38 | K31: 2370 | L31: 2540
B32: 39 | C32: 3390 | D32: 3560 | F32: 39 | G32: 2740 | H32: 2920 | J32: 39 | K32: 2410 | L32: 2590
B33: 40 | C33: 3460 | D33: 3640 | F33: 40 | G33: 2800 | H33: 2980 | J33: 40 | K33: 2460 | L33: 2650
B34: 41 | C34: 3530 | D34: 3710 | F34: 41 | G34: 2860 | H34: 3040 | J34: 41 | K34: 2510 | L34: 2700
B35: 42 | C35: 3610 | D35: 3790 | F35: 42 | G35: 2910 | H35: 3100 | J35: 42 | K35: 2590 | L35: 2780
B36: 43 | C36: 3690 | D36: 3870 | F36: 43 | G36: 2970 | H36: 3160 | J36: 43 | K36: 2670 | L36: 2860
B37: 44 | C37: 3770 | D37: 3950 | F37: 44 | G37: 3030 | H37: 3220 | J37: 44 | K37: 2750 | L37: 2940
B38: 45 | C38: 3850 | D38: 4030 | F38: 45 | G38: 3090 | H38: 3290 | J38: 45 | K38: 2830 | L38: 3030
B39: 46 | C39: 3930 | D39: 4120 | F39: 46 | G39: 3160 | H39: 3350 | J39: 46 | K39: 2890 | L39: 3090
B40: 47 | C40: 4010 | D40: 4200 | F40: 47 | G40: 3220 | H40: 3420 | J40: 47 | K40: 2950 | L40: 3150
B41: 48 | C41: 4100 | D41: 4290 | F41: 48 | G41: 3290 | H41: 3490 | J41: 48 | K41: 3000 | L41: 3210
B42: 49 | C42: 4190 | D42: 4380 | F42: 49 | G42: 3350 | H42: 3560 | J42: 49 | K42: 3060 | L42: 3270
B43: 50 | C43: 4280 | D43: 4480 | F43: 50 | G43: 3420 | H43: 3630 | J43: 50 | K43: 3120 | L43: 3340
B44: 51 | C44: 4370 | D44: 4570 | F44: 51 | G44: 3490 | H44: 3700 | J44: 51 | K44: 3190 | L44: 3400
B45: 52 | C45: 4470 | D45: 4670 | F45: 52 | G45: 3560 | H45: 3770 | J45: 52 | K45: 3250 | L45: 3460
B46: 53 | C46: 4560 | D46: 4770 | F46: 53 | G46: 3630 | H46: 3850 | J46: 53 | K46: 3310 | L46: 3530
B47: 54 | C47: 4660 | D47: 4870 | F47: 54 | G47: 3700 | H47: 3920 | J47: 54 | K47: 3370 | L47: 3590
B48: 55 | C48: 4770 | D48: 4980 | F48: 55 | G48: 3780 | H48: 4000 | J48: 55 | K48: 3440 | L48: 3660
B49: 56 | C49: 4880 | D49: 5090 | F49: 56 | G49: 3860 | H49: 4080 | J49: 56 | K49: 3500 | L49: 3730
B50: 57 | C50: 4990 | D50: 5200 | F50: 57 | G50: 3930 | H50: 4160 | J50: 57 | K50: 3570 | L50: 3790
B51: 58 | C51: 5110 | D51: 5320 | F51: 58 | G51: 4020 | H51: 4240 | J51: 58 | K51: 3640 | L51: 3860
B52: 59 | C52: 5230 | D52: 5450 | F52: 59 | G52: 4100 | H52: 4320 | J52: 59 | K52: 3760 | L52: 3990
B53: 60 | F53: 60 | G53: 4190 | H53: 4410 | J53: 60 | K53: 3880 | L53: 4110
B54: 61 | F54: 61 | G54: 4280 | H54: 4510 | J54: 61 | K54: 4020 | L54: 4250
B55: 62 | F55: 62 | G55: 4380 | H55: 4610 | J55: 62 | K55: 4160 | L55: 4390
B56: 63 | F56: 63 | G56: 4490 | H56: 4710 | J56: 63 | K56: 4260 | L56: 4480
B57: 64 | F57: 64 | G57: 4600 | H57: 4830 | J57: 64 | K57: 4360 | L57: 4590
J58: 65 | K58: 4470 | L58: 4700

Sheet NRA60 (hidden)
A2: Regular Contribution Elections made after 31 March 2011 | W2: Regular Contribution Elections made after 31 March 2011
A3: Table D60: Personal and Dependant's Benefits, NRA 60 | W3: Table P60: Personal Benefits, NRA 60
A5: Age when notice of election given â | B5: Monthly contribution to purchase £250 of APB at date of election, £ | W5: Age when notice of election given â | X5: Monthly contribution to purchase £250 of APB at date of election, £
A6: Payment period (in years) à | B6: 1 | C6: 2 | D6: 3 | E6: 4 | F6: 5 | G6: 6 | H6: 7 | I6: 8 | J6: 9 | K6: 10 | L6: 11 | M6: 12 | N6: 13 | O6: 14 | P6: 15 | Q6: 16 | R6: 17 | S6: 18 | T6: 19 | U6: 20 | W6: Payment period (in years) à | X6: 1 | Y6: 2 | Z6: 3 | AA6: 4 | AB6: 5 | AC6: 6 | AD6: 7 | AE6: 8 | AF6: 9 | AG6: 10 | AH6: 11 | AI6: 12 | AJ6: 13 | AK6: 14 | AL6: 15 | AM6: 16 | AN6: 17 | AO6: 18 | AP6: 19 | AQ6: 20
A7: 16 | B7: 297.6 | C7: 152.1 | D7: 103.6 | E7: 79.4 | F7: 64.9 | G7: 55.2 | H7: 48.3 | I7: 43.2 | J7: 39.2 | K7: 36 | L7: 33.4 | M7: 31.2 | N7: 29.4 | O7: 27.8 | P7: 26.5 | Q7: 25.3 | R7: 24.3 | S7: 23.4 | T7: 22.6 | U7: 21.9 | W7: 16 | X7: 284.2 | Y7: 145.2 | Z7: 98.9 | AA7: 75.8 | AB7: 61.9 | AC7: 52.7 | AD7: 46.1 | AE7: 41.2 | AF7: 37.4 | AG7: 34.3 | AH7: 31.9 | AI7: 29.8 | AJ7: 28.1 | AK7: 26.6 | AL7: 25.3 | AM7: 24.2 | AN7: 23.2 | AO7: 22.4 | AP7: 21.6 | AQ7: 20.9
A8: 17 | B8: 301.1 | C8: 153.8 | D8: 104.8 | E8: 80.3 | F8: 65.6 | G8: 55.8 | H8: 48.9 | I8: 43.7 | J8: 39.6 | K8: 36.4 | L8: 33.8 | M8: 31.6 | N8: 29.7 | O8: 28.2 | P8: 26.8 | Q8: 25.6 | R8: 24.6 | S8: 23.7 | T8: 22.9 | U8: 22.2 | W8: 17 | X8: 287.2 | Y8: 146.7 | Z8: 100 | AA8: 76.6 | AB8: 62.6 | AC8: 53.3 | AD8: 46.6 | AE8: 41.7 | AF8: 37.8 | AG8: 34.7 | AH8: 32.2 | AI8: 30.1 | AJ8: 28.4 | AK8: 26.9 | AL8: 25.6 | AM8: 24.5 | AN8: 23.5 | AO8: 22.6 | AP8: 21.8 | AQ8: 21.1
A9: 18 | B9: 304.7 | C9: 155.7 | D9: 106.1 | E9: 81.3 | F9: 66.4 | G9: 56.5 | H9: 49.5 | I9: 44.2 | J9: 40.1 | K9: 36.8 | L9: 34.2 | M9: 32 | N9: 30.1 | O9: 28.5 | P9: 27.1 | Q9: 26 | R9: 24.9 | S9: 24 | T9: 23.2 | U9: 22.4 | W9: 18 | X9: 290.3 | Y9: 148.3 | Z9: 101 | AA9: 77.4 | AB9: 63.3 | AC9: 53.8 | AD9: 47.1 | AE9: 42.1 | AF9: 38.2 | AG9: 35.1 | AH9: 32.6 | AI9: 30.5 | AJ9: 28.7 | AK9: 27.2 | AL9: 25.9 | AM9: 24.7 | AN9: 23.7 | AO9: 22.8 | AP9: 22.1 | AQ9: 21.4
A10: 19 | B10: 308.2 | C10: 157.5 | D10: 107.3 | E10: 82.2 | F10: 67.2 | G10: 57.2 | H10: 50 | I10: 44.7 | J10: 40.6 | K10: 37.3 | L10: 34.6 | M10: 32.3 | N10: 30.5 | O10: 28.9 | P10: 27.5 | Q10: 26.3 | R10: 25.2 | S10: 24.3 | T10: 23.4 | U10: 22.7 | W10: 19 | X10: 293.3 | Y10: 149.9 | Z10: 102.1 | AA10: 78.2 | AB10: 63.9 | AC10: 54.4 | AD10: 47.6 | AE10: 42.6 | AF10: 38.6 | AG10: 35.5 | AH10: 32.9 | AI10: 30.8 | AJ10: 29 | AK10: 27.5 | AL10: 26.1 | AM10: 25 | AN10: 24 | AO10: 23.1 | AP10: 22.3 | AQ10: 21.6
A11: 20 | B11: 311.4 | C11: 159.1 | D11: 108.4 | E11: 83.1 | F11: 67.9 | G11: 57.8 | H11: 50.6 | I11: 45.2 | J11: 41 | K11: 37.7 | L11: 34.9 | M11: 32.7 | N11: 30.8 | O11: 29.2 | P11: 27.8 | Q11: 26.5 | R11: 25.5 | S11: 24.5 | T11: 23.7 | U11: 22.9 | W11: 20 | X11: 296.4 | Y11: 151.5 | Z11: 103.2 | AA11: 79.1 | AB11: 64.6 | AC11: 55 | AD11: 48.1 | AE11: 43 | AF11: 39 | AG11: 35.8 | AH11: 33.3 | AI11: 31.1 | AJ11: 29.3 | AK11: 27.8 | AL11: 26.4 | AM11: 25.3 | AN11: 24.2 | AO11: 23.3 | AP11: 22.5 | AQ11: 21.8
A12: 21 | B12: 314.7 | C12: 160.8 | D12: 109.5 | E12: 83.9 | F12: 68.6 | G12: 58.4 | H12: 51.1 | I12: 45.7 | J12: 41.4 | K12: 38.1 | L12: 35.3 | M12: 33 | N12: 31.1 | O12: 29.5 | P12: 28.1 | Q12: 26.8 | R12: 25.7 | S12: 24.8 | T12: 23.9 | U12: 23.2 | W12: 21 | X12: 299.6 | Y12: 153.1 | Z12: 104.3 | AA12: 79.9 | AB12: 65.3 | AC12: 55.6 | AD12: 48.6 | AE12: 43.5 | AF12: 39.4 | AG12: 36.2 | AH12: 33.6 | AI12: 31.4 | AJ12: 29.6 | AK12: 28.1 | AL12: 26.7 | AM12: 25.5 | AN12: 24.5 | AO12: 23.6 | AP12: 22.8 | AQ12: 22.1
A13: 22 | B13: 318 | C13: 162.5 | D13: 110.7 | E13: 84.8 | F13: 69.3 | G13: 59 | H13: 51.6 | I13: 46.1 | J13: 41.9 | K13: 38.5 | L13: 35.7 | M13: 33.4 | N13: 31.4 | O13: 29.8 | P13: 28.4 | Q13: 27.1 | R13: 26 | S13: 25.1 | T13: 24.2 | U13: 23.4 | W13: 22 | X13: 302.7 | Y13: 154.7 | Z13: 105.4 | AA13: 80.7 | AB13: 66 | AC13: 56.2 | AD13: 49.2 | AE13: 43.9 | AF13: 39.9 | AG13: 36.6 | AH13: 34 | AI13: 31.8 | AJ13: 29.9 | AK13: 28.3 | AL13: 27 | AM13: 25.8 | AN13: 24.8 | AO13: 23.8 | AP13: 23 | AQ13: 22.3
A14: 23 | B14: 321.3 | C14: 164.2 | D14: 111.8 | E14: 85.7 | F14: 70 | G14: 59.6 | H14: 52.2 | I14: 46.6 | J14: 42.3 | K14: 38.9 | L14: 36.1 | M14: 33.7 | N14: 31.8 | O14: 30.1 | P14: 28.7 | Q14: 27.4 | R14: 26.3 | S14: 25.3 | T14: 24.5 | U14: 23.7 | W14: 23 | X14: 305.9 | Y14: 156.3 | Z14: 106.5 | AA14: 81.6 | AB14: 66.7 | AC14: 56.8 | AD14: 49.7 | AE14: 44.4 | AF14: 40.3 | AG14: 37 | AH14: 34.3 | AI14: 32.1 | AJ14: 30.2 | AK14: 28.7 | AL14: 27.3 | AM14: 26.1 | AN14: 25 | AO14: 24.1 | AP14: 23.3 | AQ14: 22.5
A15: 24 | B15: 324.6 | C15: 165.9 | D15: 113 | E15: 86.6 | F15: 70.8 | G15: 60.2 | H15: 52.7 | I15: 47.1 | J15: 42.8 | K15: 39.3 | L15: 36.4 | M15: 34.1 | N15: 32.1 | O15: 30.4 | P15: 29 | Q15: 27.7 | R15: 26.6 | S15: 25.6 | T15: 24.7 | U15: 23.9 | W15: 24 | X15: 309.1 | Y15: 157.9 | Z15: 107.6 | AA15: 82.4 | AB15: 67.4 | AC15: 57.3 | AD15: 50.2 | AE15: 44.8 | AF15: 40.7 | AG15: 37.4 | AH15: 34.7 | AI15: 32.5 | AJ15: 30.6 | AK15: 29 | AL15: 27.6 | AM15: 26.4 | AN15: 25.3 | AO15: 24.4 | AP15: 23.5 | AQ15: 22.8
A16: 25 | B16: 328 | C16: 167.6 | D16: 114.2 | E16: 87.5 | F16: 71.5 | G16: 60.9 | H16: 53.3 | I16: 47.6 | J16: 43.2 | K16: 39.7 | L16: 36.8 | M16: 34.5 | N16: 32.5 | O16: 30.7 | P16: 29.3 | Q16: 28 | R16: 26.9 | S16: 25.9 | T16: 25 | U16: 24.2 | W16: 25 | X16: 312.3 | Y16: 159.6 | Z16: 108.7 | AA16: 83.3 | AB16: 68.1 | AC16: 57.9 | AD16: 50.7 | AE16: 45.3 | AF16: 41.1 | AG16: 37.8 | AH16: 35.1 | AI16: 32.8 | AJ16: 30.9 | AK16: 29.3 | AL16: 27.9 | AM16: 26.6 | AN16: 25.6 | AO16: 24.6 | AP16: 23.8 | AQ16: 23
A17: 26 | B17: 331.4 | C17: 169.4 | D17: 115.4 | E17: 88.4 | F17: 72.3 | G17: 61.5 | H17: 53.8 | I17: 48.1 | J17: 43.7 | K17: 40.1 | L17: 37.2 | M17: 34.8 | N17: 32.8 | O17: 31.1 | P17: 29.6 | Q17: 28.3 | R17: 27.2 | S17: 26.2 | T17: 25.3 | U17: 24.5 | W17: 26 | X17: 315.5 | Y17: 161.2 | Z17: 109.8 | AA17: 84.2 | AB17: 68.8 | AC17: 58.6 | AD17: 51.3 | AE17: 45.8 | AF17: 41.6 | AG17: 38.2 | AH17: 35.4 | AI17: 33.2 | AJ17: 31.2 | AK17: 29.6 | AL17: 28.2 | AM17: 26.9 | AN17: 25.9 | AO17: 24.9 | AP17: 24.1 | AQ17: 23.3
A18: 27 | B18: 334.8 | C18: 171.1 | D18: 116.6 | E18: 89.3 | F18: 73 | G18: 62.1 | H18: 54.4 | I18: 48.6 | J18: 44.1 | K18: 40.5 | L18: 37.6 | M18: 35.2 | N18: 33.1 | O18: 31.4 | P18: 29.9 | Q18: 28.6 | R18: 27.5 | S18: 26.4 | T18: 25.5 | U18: 24.7 | W18: 27 | X18: 318.8 | Y18: 162.9 | Z18: 111 | AA18: 85.1 | AB18: 69.5 | AC18: 59.2 | AD18: 51.8 | AE18: 46.3 | AF18: 42 | AG18: 38.6 | AH18: 35.8 | AI18: 33.5 | AJ18: 31.6 | AK18: 29.9 | AL18: 28.5 | AM18: 27.2 | AN18: 26.1 | AO18: 25.2 | AP18: 24.3 | AQ18: 23.6
A19: 28 | B19: 338.3 | C19: 172.9 | D19: 117.8 | E19: 90.3 | F19: 73.8 | G19: 62.8 | H19: 55 | I19: 49.1 | J19: 44.6 | K19: 41 | L19: 38 | M19: 35.6 | N19: 33.5 | O19: 31.7 | P19: 30.2 | Q19: 28.9 | R19: 27.8 | S19: 26.7 | T19: 25.8 | U19: 25 | W19: 28 | X19: 322.1 | Y19: 164.6 | Z19: 112.2 | AA19: 85.9 | AB19: 70.2 | AC19: 59.8 | AD19: 52.3 | AE19: 46.8 | AF19: 42.5 | AG19: 39 | AH19: 36.2 | AI19: 33.9 | AJ19: 31.9 | AK19: 30.2 | AL19: 28.8 | AM19: 27.5 | AN19: 26.4 | AO19: 25.5 | AP19: 24.6 | AQ19: 23.8
A20: 29 | B20: 341.8 | C20: 174.7 | D20: 119 | E20: 91.2 | F20: 74.5 | G20: 63.5 | H20: 55.6 | I20: 49.6 | J20: 45.1 | K20: 41.4 | L20: 38.4 | M20: 36 | N20: 33.9 | O20: 32.1 | P20: 30.6 | Q20: 29.2 | R20: 28.1 | S20: 27 | T20: 26.1 | U20: 25.3 | W20: 29 | X20: 325.5 | Y20: 166.3 | Z20: 113.3 | AA20: 86.8 | AB20: 71 | AC20: 60.4 | AD20: 52.9 | AE20: 47.3 | AF20: 42.9 | AG20: 39.4 | AH20: 36.6 | AI20: 34.2 | AJ20: 32.3 | AK20: 30.6 | AL20: 29.1 | AM20: 27.8 | AN20: 26.7 | AO20: 25.7 | AP20: 24.9 | AQ20: 24.1
A21: 30 | B21: 345.4 | C21: 176.5 | D21: 120.3 | E21: 92.2 | F21: 75.3 | G21: 64.1 | H21: 56.1 | I21: 50.2 | J21: 45.5 | K21: 41.9 | L21: 38.8 | M21: 36.3 | N21: 34.2 | O21: 32.4 | P21: 30.9 | Q21: 29.6 | R21: 28.4 | S21: 27.3 | T21: 26.4 | U21: 25.6 | W21: 30 | X21: 328.9 | Y21: 168.1 | Z21: 114.5 | AA21: 87.8 | AB21: 71.7 | AC21: 61.1 | AD21: 53.5 | AE21: 47.8 | AF21: 43.4 | AG21: 39.9 | AH21: 37 | AI21: 34.6 | AJ21: 32.6 | AK21: 30.9 | AL21: 29.4 | AM21: 28.1 | AN21: 27 | AO21: 26 | AP21: 25.1 | AQ21: 24.4
A22: 31 | B22: 348.9 | C22: 178.3 | D22: 121.5 | E22: 93.1 | F22: 76.1 | G22: 64.8 | H22: 56.7 | I22: 50.7 | J22: 46 | K22: 42.3 | L22: 39.3 | M22: 36.7 | N22: 34.6 | O22: 32.8 | P22: 31.2 | Q22: 29.9 | R22: 28.7 | S22: 27.6 | T22: 26.7 | U22: 25.9 | W22: 31 | X22: 332.3 | Y22: 169.8 | Z22: 115.7 | AA22: 88.7 | AB22: 72.5 | AC22: 61.7 | AD22: 54 | AE22: 48.3 | AF22: 43.8 | AG22: 40.3 | AH22: 37.4 | AI22: 35 | AJ22: 33 | AK22: 31.2 | AL22: 29.7 | AM22: 28.5 | AN22: 27.3 | AO22: 26.3 | AP22: 25.4 | AQ22: 24.6
A23: 32 | B23: 352.5 | C23: 180.2 | D23: 122.8 | E23: 94.1 | F23: 76.9 | G23: 65.5 | H23: 57.3 | I23: 51.2 | J23: 46.5 | K23: 42.8 | L23: 39.7 | M23: 37.1 | N23: 35 | O23: 33.2 | P23: 31.6 | Q23: 30.2 | R23: 29 | S23: 27.9 | T23: 27 | U23: 26.2 | W23: 32 | X23: 335.7 | Y23: 171.6 | Z23: 116.9 | AA23: 89.6 | AB23: 73.3 | AC23: 62.4 | AD23: 54.6 | AE23: 48.8 | AF23: 44.3 | AG23: 40.7 | AH23: 37.8 | AI23: 35.4 | AJ23: 33.3 | AK23: 31.6 | AL23: 30.1 | AM23: 28.8 | AN23: 27.6 | AO23: 26.6 | AP23: 25.7 | AQ23: 24.9
A24: 33 | B24: 356.2 | C24: 182.1 | D24: 124.1 | E24: 95.1 | F24: 77.7 | G24: 66.2 | H24: 57.9 | I24: 51.8 | J24: 47 | K24: 43.2 | L24: 40.1 | M24: 37.5 | N24: 35.4 | O24: 33.5 | P24: 31.9 | Q24: 30.5 | R24: 29.3 | S24: 28.3 | T24: 27.3 | U24: 26.5 | W24: 33 | X24: 339.2 | Y24: 173.4 | Z24: 118.1 | AA24: 90.6 | AB24: 74 | AC24: 63 | AD24: 55.2 | AE24: 49.3 | AF24: 44.8 | AG24: 41.2 | AH24: 38.2 | AI24: 35.7 | AJ24: 33.7 | AK24: 31.9 | AL24: 30.4 | AM24: 29.1 | AN24: 27.9 | AO24: 26.9 | AP24: 26 | AQ24: 25.2
A25: 34 | B25: 359.8 | C25: 183.9 | D25: 125.3 | E25: 96.1 | F25: 78.5 | G25: 66.9 | H25: 58.6 | I25: 52.3 | J25: 47.5 | K25: 43.7 | L25: 40.5 | M25: 37.9 | N25: 35.8 | O25: 33.9 | P25: 32.3 | Q25: 30.9 | R25: 29.7 | S25: 28.6 | T25: 27.6 | U25: 26.8 | W25: 34 | X25: 342.7 | Y25: 175.2 | Z25: 119.4 | AA25: 91.5 | AB25: 74.8 | AC25: 63.7 | AD25: 55.8 | AE25: 49.9 | AF25: 45.3 | AG25: 41.6 | AH25: 38.6 | AI25: 36.1 | AJ25: 34.1 | AK25: 32.3 | AL25: 30.7 | AM25: 29.4 | AN25: 28.3 | AO25: 27.2 | AP25: 26.3 | AQ25: 25.5
A26: 35 | B26: 363.5 | C26: 185.8 | D26: 126.6 | E26: 97.1 | F26: 79.4 | G26: 67.6 | H26: 59.2 | I26: 52.9 | J26: 48 | K26: 44.1 | L26: 41 | M26: 38.4 | N26: 36.1 | O26: 34.3 | P26: 32.6 | Q26: 31.2 | R26: 30 | S26: 28.9 | T26: 27.9 | U26: 27.1 | W26: 35 | X26: 346.3 | Y26: 177 | Z26: 120.6 | AA26: 92.5 | AB26: 75.6 | AC26: 64.4 | AD26: 56.4 | AE26: 50.4 | AF26: 45.7 | AG26: 42 | AH26: 39 | AI26: 36.5 | AJ26: 34.4 | AK26: 32.6 | AL26: 31.1 | AM26: 29.7 | AN26: 28.6 | AO26: 27.5 | AP26: 26.6 | AQ26: 25.8
A27: 36 | B27: 367.2 | C27: 187.7 | D27: 127.9 | E27: 98.1 | F27: 80.2 | G27: 68.3 | H27: 59.8 | I27: 53.5 | J27: 48.5 | K27: 44.6 | L27: 41.4 | M27: 38.8 | N27: 36.5 | O27: 34.6 | P27: 33 | Q27: 31.6 | R27: 30.3 | S27: 29.2 | T27: 28.3 | U27: 27.4 | W27: 36 | X27: 349.8 | Y27: 178.8 | Z27: 121.9 | AA27: 93.4 | AB27: 76.4 | AC27: 65 | AD27: 57 | AE27: 50.9 | AF27: 46.2 | AG27: 42.5 | AH27: 39.5 | AI27: 36.9 | AJ27: 34.8 | AK27: 33 | AL27: 31.4 | AM27: 30.1 | AN27: 28.9 | AO27: 27.9 | AP27: 26.9 | AQ27: 26.1
A28: 37 | B28: 371 | C28: 189.7 | D28: 129.3 | E28: 99.1 | F28: 81 | G28: 69 | H28: 60.4 | I28: 54 | J28: 49.1 | K28: 45.1 | L28: 41.9 | M28: 39.2 | N28: 37 | O28: 35 | P28: 33.4 | Q28: 31.9 | R28: 30.7 | S28: 29.6 | T28: 28.6 | U28: 27.7 | W28: 37 | X28: 353.4 | Y28: 180.7 | Z28: 123.1 | AA28: 94.4 | AB28: 77.2 | AC28: 65.7 | AD28: 57.6 | AE28: 51.5 | AF28: 46.7 | AG28: 43 | AH28: 39.9 | AI28: 37.3 | AJ28: 35.2 | AK28: 33.4 | AL28: 31.8 | AM28: 30.4 | AN28: 29.2 | AO28: 28.2 | AP28: 27.3 | AQ28: 26.4
A29: 38 | B29: 374.8 | C29: 191.6 | D29: 130.6 | E29: 100.1 | F29: 81.9 | G29: 69.7 | H29: 61.1 | I29: 54.6 | J29: 49.6 | K29: 45.6 | L29: 42.3 | M29: 39.6 | N29: 37.4 | O29: 35.4 | P29: 33.8 | Q29: 32.3 | R29: 31.1 | S29: 29.9 | T29: 29 | U29: 28.1 | W29: 38 | X29: 357.1 | Y29: 182.6 | Z29: 124.4 | AA29: 95.4 | AB29: 78 | AC29: 66.4 | AD29: 58.2 | AE29: 52 | AF29: 47.3 | AG29: 43.4 | AH29: 40.3 | AI29: 37.8 | AJ29: 35.6 | AK29: 33.8 | AL29: 32.2 | AM29: 30.8 | AN29: 29.6 | AO29: 28.5 | AP29: 27.6 | AQ29: 26.8
A30: 39 | B30: 378.6 | C30: 193.6 | D30: 131.9 | E30: 101.2 | F30: 82.7 | G30: 70.5 | H30: 61.7 | I30: 55.2 | J30: 50.1 | K30: 46.1 | L30: 42.8 | M30: 40.1 | N30: 37.8 | O30: 35.8 | P30: 34.2 | Q30: 32.7 | R30: 31.4 | S30: 30.3 | T30: 29.3 | U30: 28.5 | W30: 39 | X30: 360.8 | Y30: 184.5 | Z30: 125.7 | AA30: 96.4 | AB30: 78.8 | AC30: 67.2 | AD30: 58.8 | AE30: 52.6 | AF30: 47.8 | AG30: 43.9 | AH30: 40.8 | AI30: 38.2 | AJ30: 36 | AK30: 34.2 | AL30: 32.6 | AM30: 31.2 | AN30: 30 | AO30: 28.9 | AP30: 28 | AQ30: 27.1
A31: 40 | B31: 382.5 | C31: 195.6 | D31: 133.3 | E31: 102.2 | F31: 83.6 | G31: 71.2 | H31: 62.4 | I31: 55.8 | J31: 50.7 | K31: 46.6 | L31: 43.3 | M31: 40.5 | N31: 38.2 | O31: 36.3 | P31: 34.6 | Q31: 33.1 | R31: 31.8 | S31: 30.7 | T31: 29.7 | W31: 40 | X31: 364.5 | Y31: 186.4 | Z31: 127.1 | AA31: 97.4 | AB31: 79.7 | AC31: 67.9 | AD31: 59.5 | AE31: 53.2 | AF31: 48.3 | AG31: 44.4 | AH31: 41.3 | AI31: 38.6 | AJ31: 36.4 | AK31: 34.6 | AL31: 32.9 | AM31: 31.6 | AN31: 30.3 | AO31: 29.3 | AP31: 28.3
A32: 41 | B32: 386.4 | C32: 197.6 | D32: 134.7 | E32: 103.3 | F32: 84.5 | G32: 72 | H32: 63.1 | I32: 56.4 | J32: 51.2 | K32: 47.1 | L32: 43.8 | M32: 41 | N32: 38.7 | O32: 36.7 | P32: 35 | Q32: 33.5 | R32: 32.2 | S32: 31.1 | W32: 41 | X32: 368.3 | Y32: 188.3 | Z32: 128.4 | AA32: 98.5 | AB32: 80.5 | AC32: 68.6 | AD32: 60.1 | AE32: 53.8 | AF32: 48.8 | AG32: 44.9 | AH32: 41.7 | AI32: 39.1 | AJ32: 36.9 | AK32: 35 | AL32: 33.4 | AM32: 31.9 | AN32: 30.7 | AO32: 29.6
A33: 42 | B33: 390.3 | C33: 199.6 | D33: 136.1 | E33: 104.4 | F33: 85.4 | G33: 72.8 | H33: 63.8 | I33: 57 | J33: 51.8 | K33: 47.7 | L33: 44.3 | M33: 41.5 | N33: 39.1 | O33: 37.1 | P33: 35.4 | Q33: 33.9 | R33: 32.7 | W33: 42 | X33: 372.1 | Y33: 190.3 | Z33: 129.8 | AA33: 99.5 | AB33: 81.4 | AC33: 69.4 | AD33: 60.8 | AE33: 54.4 | AF33: 49.4 | AG33: 45.4 | AH33: 42.2 | AI33: 39.5 | AJ33: 37.3 | AK33: 35.4 | AL33: 33.8 | AM33: 32.4 | AN33: 31.1
A34: 43 | B34: 394.3 | C34: 201.7 | D34: 137.5 | E34: 105.5 | F34: 86.3 | G34: 73.5 | H34: 64.4 | I34: 57.6 | J34: 52.4 | K34: 48.2 | L34: 44.8 | M34: 42 | N34: 39.6 | O34: 37.6 | P34: 35.9 | Q34: 34.4 | W34: 43 | X34: 376 | Y34: 192.3 | Z34: 131.1 | AA34: 100.6 | AB34: 82.3 | AC34: 70.1 | AD34: 61.5 | AE34: 55 | AF34: 50 | AG34: 46 | AH34: 42.7 | AI34: 40 | AJ34: 37.8 | AK34: 35.9 | AL34: 34.2 | AM34: 32.8
A35: 44 | B35: 398.3 | C35: 203.8 | D35: 139 | E35: 106.6 | F35: 87.2 | G35: 74.3 | H35: 65.1 | I35: 58.3 | J35: 53 | K35: 48.8 | L35: 45.3 | M35: 42.5 | N35: 40.1 | O35: 38.1 | P35: 36.3 | W35: 44 | X35: 379.9 | Y35: 194.3 | Z35: 132.5 | AA35: 101.7 | AB35: 83.2 | AC35: 70.9 | AD35: 62.1 | AE35: 55.6 | AF35: 50.5 | AG35: 46.5 | AH35: 43.2 | AI35: 40.5 | AJ35: 38.2 | AK35: 36.3 | AL35: 34.7
A36: 45 | B36: 402.4 | C36: 205.9 | D36: 140.4 | E36: 107.7 | F36: 88.1 | G36: 75.1 | H36: 65.9 | I36: 58.9 | J36: 53.6 | K36: 49.3 | L36: 45.9 | M36: 43 | N36: 40.6 | O36: 38.6 | W36: 45 | X36: 383.9 | Y36: 196.4 | Z36: 133.9 | AA36: 102.8 | AB36: 84.1 | AC36: 71.7 | AD36: 62.8 | AE36: 56.2 | AF36: 51.1 | AG36: 47.1 | AH36: 43.8 | AI36: 41 | AJ36: 38.7 | AK36: 36.8
A37: 46 | B37: 406.5 | C37: 208 | D37: 141.9 | E37: 108.9 | F37: 89.1 | G37: 76 | H37: 66.6 | I37: 59.6 | J37: 54.2 | K37: 49.9 | L37: 46.5 | M37: 43.6 | N37: 41.2 | W37: 46 | X37: 387.9 | Y37: 198.5 | Z37: 135.4 | AA37: 103.9 | AB37: 85 | AC37: 72.5 | AD37: 63.6 | AE37: 56.9 | AF37: 51.7 | AG37: 47.6 | AH37: 44.3 | AI37: 41.6 | AJ37: 39.3
A38: 47 | B38: 410.7 | C38: 210.2 | D38: 143.4 | E38: 110 | F38: 90.1 | G38: 76.8 | H38: 67.4 | I38: 60.3 | J38: 54.9 | K38: 50.6 | L38: 47.1 | M38: 44.2 | W38: 47 | X38: 392 | Y38: 200.6 | Z38: 136.8 | AA38: 105 | AB38: 86 | AC38: 73.3 | AD38: 64.3 | AE38: 57.6 | AF38: 52.4 | AG38: 48.3 | AH38: 44.9 | AI38: 42.2
A39: 48 | B39: 414.9 | C39: 212.4 | D39: 144.9 | E39: 111.2 | F39: 91.1 | G39: 77.7 | H39: 68.2 | I39: 61.1 | J39: 55.6 | K39: 51.2 | L39: 47.7 | W39: 48 | X39: 396.1 | Y39: 202.7 | Z39: 138.3 | AA39: 106.2 | AB39: 87 | AC39: 74.2 | AD39: 65.1 | AE39: 58.3 | AF39: 53.1 | AG39: 48.9 | AH39: 45.6
A40: 49 | B40: 419.3 | C40: 214.6 | D40: 146.5 | E40: 112.5 | F40: 92.2 | G40: 78.7 | H40: 69.1 | I40: 61.9 | J40: 56.4 | K40: 52 | W40: 49 | X40: 400.4 | Y40: 205 | Z40: 139.9 | AA40: 107.4 | AB40: 88 | AC40: 75.1 | AD40: 66 | AE40: 59.1 | AF40: 53.8 | AG40: 49.6
A41: 50 | B41: 423.7 | C41: 217 | D41: 148.2 | E41: 113.9 | F41: 93.3 | G41: 79.7 | H41: 70 | I41: 62.8 | J41: 57.2 | W41: 50 | X41: 404.8 | Y41: 207.3 | Z41: 141.6 | AA41: 108.8 | AB41: 89.1 | AC41: 76.1 | AD41: 66.9 | AE41: 59.9 | AF41: 54.6
A42: 51 | B42: 428.3 | C42: 219.5 | D42: 149.9 | E42: 115.2 | F42: 94.5 | G42: 80.7 | H42: 70.9 | I42: 63.6 | W42: 51 | X42: 409.3 | Y42: 209.7 | Z42: 143.3 | AA42: 110.1 | AB42: 90.3 | AC42: 77.1 | AD42: 67.8 | AE42: 60.8
A43: 52 | B43: 433 | C43: 221.9 | D43: 151.7 | E43: 116.7 | F43: 95.7 | G43: 81.8 | H43: 71.9 | W43: 52 | X43: 413.9 | Y43: 212.2 | Z43: 145 | AA43: 111.5 | AB43: 91.5 | AC43: 78.2 | AD43: 68.7
A44: 53 | B44: 437.7 | C44: 224.5 | D44: 153.5 | E44: 118.1 | F44: 96.9 | G44: 82.9 | W44: 53 | X44: 418.7 | Y44: 214.7 | Z44: 146.8 | AA44: 113 | AB44: 92.7 | AC44: 79.3
A45: 54 | B45: 442.5 | C45: 227.1 | D45: 155.4 | E45: 119.6 | F45: 98.2 | W45: 54 | X45: 423.5 | Y45: 217.3 | Z45: 148.7 | AA45: 114.4 | AB45: 94
A46: 55 | B46: 447.5 | C46: 229.8 | D46: 157.3 | E46: 121.1 | W46: 55 | X46: 428.5 | Y46: 220 | Z46: 150.6 | AA46: 116
A47: 56 | B47: 452.7 | C47: 232.5 | D47: 159.3 | W47: 56 | X47: 433.8 | Y47: 222.8 | Z47: 152.6
A48: 57 | B48: 458.1 | C48: 235.4 | W48: 57 | X48: 439.3 | Y48: 225.7
A49: 58 | B49: 463.8 | W49: 58 | X49: 445

Sheet NRA65 (hidden)
A2: Regular Contribution Elections | W2: Regular Contribution Elections
A3: Table D65: Personal and Dependant’s Benefits, NRA 65 | W3: Table P65: Personal Benefits, NRA 65
A5: Age when notice of election given â | B5: Monthly contribution to purchase £250 of APB at date of election, £ | W5: Age when notice of election given â | X5: Monthly contribution to purchase £250 of APB at date of election, £
A6: Payment period (in years) à | B6: 1 | C6: 2 | D6: 3 | E6: 4 | F6: 5 | G6: 6 | H6: 7 | I6: 8 | J6: 9 | K6: 10 | L6: 11 | M6: 12 | N6: 13 | O6: 14 | P6: 15 | Q6: 16 | R6: 17 | S6: 18 | T6: 19 | U6: 20 | W6: Payment period (in years) à | X6: 1 | Y6: 2 | Z6: 3 | AA6: 4 | AB6: 5 | AC6: 6 | AD6: 7 | AE6: 8 | AF6: 9 | AG6: 10 | AH6: 11 | AI6: 12 | AJ6: 13 | AK6: 14 | AL6: 15 | AM6: 16 | AN6: 17 | AO6: 18 | AP6: 19 | AQ6: 20
A7: 16 | B7: 154.4 | C7: 78.9 | D7: 53.7 | E7: 41.2 | F7: 33.7 | G7: 28.6 | H7: 25.1 | I7: 22.4 | J7: 20.3 | K7: 18.7 | L7: 17.3 | M7: 16.2 | N7: 15.3 | O7: 14.4 | P7: 13.8 | Q7: 13.1 | R7: 12.6 | S7: 12.1 | T7: 11.7 | U7: 11.4 | W7: 16 | X7: 145.2 | Y7: 74.2 | Z7: 50.5 | AA7: 38.7 | AB7: 31.6 | AC7: 26.9 | AD7: 23.6 | AE7: 21.1 | AF7: 19.1 | AG7: 17.5 | AH7: 16.3 | AI7: 15.2 | AJ7: 14.3 | AK7: 13.6 | AL7: 12.9 | AM7: 12.4 | AN7: 11.9 | AO7: 11.4 | AP7: 11 | AQ7: 10.7
A8: 17 | B8: 157.9 | C8: 80.7 | D8: 55 | E8: 42.1 | F8: 34.4 | G8: 29.3 | H8: 25.6 | I8: 22.9 | J8: 20.8 | K8: 19.1 | L8: 17.7 | M8: 16.6 | N8: 15.6 | O8: 14.8 | P8: 14.1 | Q8: 13.4 | R8: 12.9 | S8: 12.4 | T8: 12 | U8: 11.6 | W8: 17 | X8: 148.3 | Y8: 75.8 | Z8: 51.6 | AA8: 39.6 | AB8: 32.3 | AC8: 27.5 | AD8: 24.1 | AE8: 21.5 | AF8: 19.5 | AG8: 17.9 | AH8: 16.6 | AI8: 15.6 | AJ8: 14.7 | AK8: 13.9 | AL8: 13.2 | AM8: 12.6 | AN8: 12.1 | AO8: 11.7 | AP8: 11.3 | AQ8: 10.9
A9: 18 | B9: 161.5 | C9: 82.5 | D9: 56.2 | E9: 43.1 | F9: 35.2 | G9: 30 | H9: 26.2 | I9: 23.4 | J9: 21.3 | K9: 19.5 | L9: 18.1 | M9: 16.9 | N9: 16 | O9: 15.1 | P9: 14.4 | Q9: 13.8 | R9: 13.2 | S9: 12.7 | T9: 12.3 | U9: 11.9 | W9: 18 | X9: 151.5 | Y9: 77.4 | Z9: 52.7 | AA9: 40.4 | AB9: 33 | AC9: 28.1 | AD9: 24.6 | AE9: 22 | AF9: 19.9 | AG9: 18.3 | AH9: 17 | AI9: 15.9 | AJ9: 15 | AK9: 14.2 | AL9: 13.5 | AM9: 12.9 | AN9: 12.4 | AO9: 11.9 | AP9: 11.5 | AQ9: 11.1
A10: 19 | B10: 165.2 | C10: 84.4 | D10: 57.5 | E10: 44.1 | F10: 36 | G10: 30.6 | H10: 26.8 | I10: 24 | J10: 21.7 | K10: 20 | L10: 18.5 | M10: 17.3 | N10: 16.3 | O10: 15.5 | P10: 14.7 | Q10: 14.1 | R10: 13.5 | S10: 13 | T10: 12.6 | U10: 12.2 | W10: 19 | X10: 154.7 | Y10: 79.1 | Z10: 53.9 | AA10: 41.3 | AB10: 33.7 | AC10: 28.7 | AD10: 25.1 | AE10: 22.4 | AF10: 20.4 | AG10: 18.7 | AH10: 17.4 | AI10: 16.2 | AJ10: 15.3 | AK10: 14.5 | AL10: 13.8 | AM10: 13.2 | AN10: 12.7 | AO10: 12.2 | AP10: 11.8 | AQ10: 11.4
A11: 20 | B11: 168.7 | C11: 86.2 | D11: 58.7 | E11: 45 | F11: 36.8 | G11: 31.3 | H11: 27.4 | I11: 24.5 | J11: 22.2 | K11: 20.4 | L11: 18.9 | M11: 17.7 | N11: 16.7 | O11: 15.8 | P11: 15 | Q11: 14.4 | R11: 13.8 | S11: 13.3 | T11: 12.8 | U11: 12.4 | W11: 20 | X11: 158 | Y11: 80.8 | Z11: 55 | AA11: 42.2 | AB11: 34.4 | AC11: 29.3 | AD11: 25.7 | AE11: 22.9 | AF11: 20.8 | AG11: 19.1 | AH11: 17.7 | AI11: 16.6 | AJ11: 15.6 | AK11: 14.8 | AL11: 14.1 | AM11: 13.5 | AN11: 12.9 | AO11: 12.4 | AP11: 12 | AQ11: 11.6
A12: 21 | B12: 172.2 | C12: 88 | D12: 59.9 | E12: 45.9 | F12: 37.5 | G12: 31.9 | H12: 28 | I12: 25 | J12: 22.7 | K12: 20.8 | L12: 19.3 | M12: 18.1 | N12: 17 | O12: 16.1 | P12: 15.4 | Q12: 14.7 | R12: 14.1 | S12: 13.6 | T12: 13.1 | U12: 12.7 | W12: 21 | X12: 161.4 | Y12: 82.5 | Z12: 56.2 | AA12: 43 | AB12: 35.2 | AC12: 29.9 | AD12: 26.2 | AE12: 23.4 | AF12: 21.2 | AG12: 19.5 | AH12: 18.1 | AI12: 16.9 | AJ12: 16 | AK12: 15.1 | AL12: 14.4 | AM12: 13.8 | AN12: 13.2 | AO12: 12.7 | AP12: 12.3 | AQ12: 11.9
A13: 22 | B13: 175.8 | C13: 89.8 | D13: 61.2 | E13: 46.9 | F13: 38.3 | G13: 32.6 | H13: 28.6 | I13: 25.5 | J13: 23.1 | K13: 21.3 | L13: 19.7 | M13: 18.5 | N13: 17.4 | O13: 16.5 | P13: 15.7 | Q13: 15 | R13: 14.4 | S13: 13.9 | T13: 13.4 | U13: 13 | W13: 22 | X13: 164.8 | Y13: 84.2 | Z13: 57.4 | AA13: 44 | AB13: 35.9 | AC13: 30.6 | AD13: 26.8 | AE13: 23.9 | AF13: 21.7 | AG13: 19.9 | AH13: 18.5 | AI13: 17.3 | AJ13: 16.3 | AK13: 15.4 | AL13: 14.7 | AM13: 14 | AN13: 13.5 | AO13: 13 | AP13: 12.5 | AQ13: 12.1
A14: 23 | B14: 179.5 | C14: 91.7 | D14: 62.5 | E14: 47.9 | F14: 39.1 | G14: 33.3 | H14: 29.2 | I14: 26 | J14: 23.6 | K14: 21.7 | L14: 20.1 | M14: 18.8 | N14: 17.8 | O14: 16.8 | P14: 16 | Q14: 15.3 | R14: 14.7 | S14: 14.1 | T14: 13.7 | U14: 13.2 | W14: 23 | X14: 168.3 | Y14: 86 | Z14: 58.6 | AA14: 44.9 | AB14: 36.7 | AC14: 31.2 | AD14: 27.3 | AE14: 24.4 | AF14: 22.2 | AG14: 20.4 | AH14: 18.9 | AI14: 17.7 | AJ14: 16.6 | AK14: 15.8 | AL14: 15 | AM14: 14.3 | AN14: 13.8 | AO14: 13.3 | AP14: 12.8 | AQ14: 12.4
A15: 24 | B15: 183.2 | C15: 93.6 | D15: 63.8 | E15: 48.9 | F15: 39.9 | G15: 34 | H15: 29.8 | I15: 26.6 | J15: 24.1 | K15: 22.2 | L15: 20.6 | M15: 19.2 | N15: 18.1 | O15: 17.2 | P15: 16.3 | Q15: 15.6 | R15: 15 | S15: 14.4 | T15: 14 | U15: 13.5 | W15: 24 | X15: 171.8 | Y15: 87.8 | Z15: 59.8 | AA15: 45.8 | AB15: 37.5 | AC15: 31.9 | AD15: 27.9 | AE15: 24.9 | AF15: 22.6 | AG15: 20.8 | AH15: 19.3 | AI15: 18 | AJ15: 17 | AK15: 16.1 | AL15: 15.3 | AM15: 14.7 | AN15: 14.1 | AO15: 13.5 | AP15: 13.1 | AQ15: 12.7
A16: 25 | B16: 187.1 | C16: 95.6 | D16: 65.1 | E16: 49.9 | F16: 40.8 | G16: 34.7 | H16: 30.4 | I16: 27.1 | J16: 24.6 | K16: 22.6 | L16: 21 | M16: 19.6 | N16: 18.5 | O16: 17.5 | P16: 16.7 | Q16: 16 | R16: 15.3 | S16: 14.8 | T16: 14.3 | U16: 13.8 | W16: 25 | X16: 175.4 | Y16: 89.6 | Z16: 61.1 | AA16: 46.8 | AB16: 38.2 | AC16: 32.5 | AD16: 28.5 | AE16: 25.5 | AF16: 23.1 | AG16: 21.2 | AH16: 19.7 | AI16: 18.4 | AJ16: 17.4 | AK16: 16.4 | AL16: 15.7 | AM16: 15 | AN16: 14.4 | AO16: 13.8 | AP16: 13.4 | AQ16: 12.9
A17: 26 | B17: 191 | C17: 97.6 | D17: 66.5 | E17: 50.9 | F17: 41.6 | G17: 35.4 | H17: 31 | I17: 27.7 | J17: 25.2 | K17: 23.1 | L17: 21.4 | M17: 20.1 | N17: 18.9 | O17: 17.9 | P17: 17 | Q17: 16.3 | R17: 15.6 | S17: 15.1 | T17: 14.6 | U17: 14.1 | W17: 26 | X17: 179.1 | Y17: 91.5 | Z17: 62.3 | AA17: 47.8 | AB17: 39 | AC17: 33.2 | AD17: 29.1 | AE17: 26 | AF17: 23.6 | AG17: 21.7 | AH17: 20.1 | AI17: 18.8 | AJ17: 17.7 | AK17: 16.8 | AL17: 16 | AM17: 15.3 | AN17: 14.7 | AO17: 14.1 | AP17: 13.7 | AQ17: 13.2
A18: 27 | B18: 194.9 | C18: 99.6 | D18: 67.9 | E18: 52 | F18: 42.5 | G18: 36.2 | H18: 31.7 | I18: 28.3 | J18: 25.7 | K18: 23.6 | L18: 21.9 | M18: 20.5 | N18: 19.3 | O18: 18.3 | P18: 17.4 | Q18: 16.7 | R18: 16 | S18: 15.4 | T18: 14.9 | U18: 14.4 | W18: 27 | X18: 182.8 | Y18: 93.4 | Z18: 63.6 | AA18: 48.8 | AB18: 39.9 | AC18: 33.9 | AD18: 29.7 | AE18: 26.5 | AF18: 24.1 | AG18: 22.1 | AH18: 20.5 | AI18: 19.2 | AJ18: 18.1 | AK18: 17.1 | AL18: 16.3 | AM18: 15.6 | AN18: 15 | AO18: 14.4 | AP18: 13.9 | AQ18: 13.5
A19: 28 | B19: 199 | C19: 101.7 | D19: 69.3 | E19: 53.1 | F19: 43.4 | G19: 36.9 | H19: 32.3 | I19: 28.9 | J19: 26.2 | K19: 24.1 | L19: 22.4 | M19: 20.9 | N19: 19.7 | O19: 18.7 | P19: 17.8 | Q19: 17 | R19: 16.3 | S19: 15.7 | T19: 15.2 | U19: 14.7 | W19: 28 | X19: 186.6 | Y19: 95.4 | Z19: 65 | AA19: 49.8 | AB19: 40.7 | AC19: 34.6 | AD19: 30.3 | AE19: 27.1 | AF19: 24.6 | AG19: 22.6 | AH19: 21 | AI19: 19.6 | AJ19: 18.5 | AK19: 17.5 | AL19: 16.7 | AM19: 15.9 | AN19: 15.3 | AO19: 14.7 | AP19: 14.2 | AQ19: 13.8
A20: 29 | B20: 203.1 | C20: 103.8 | D20: 70.7 | E20: 54.2 | F20: 44.3 | G20: 37.7 | H20: 33 | I20: 29.5 | J20: 26.8 | K20: 24.6 | L20: 22.8 | M20: 21.4 | N20: 20.1 | O20: 19.1 | P20: 18.2 | Q20: 17.4 | R20: 16.7 | S20: 16.1 | T20: 15.5 | U20: 15 | W20: 29 | X20: 190.5 | Y20: 97.4 | Z20: 66.3 | AA20: 50.8 | AB20: 41.6 | AC20: 35.4 | AD20: 31 | AE20: 27.7 | AF20: 25.1 | AG20: 23.1 | AH20: 21.4 | AI20: 20 | AJ20: 18.9 | AK20: 17.9 | AL20: 17 | AM20: 16.3 | AN20: 15.6 | AO20: 15.1 | AP20: 14.6 | AQ20: 14.1
A21: 30 | B21: 207.4 | C21: 106 | D21: 72.2 | E21: 55.3 | F21: 45.2 | G21: 38.5 | H21: 33.7 | I21: 30.1 | J21: 27.3 | K21: 25.1 | L21: 23.3 | M21: 21.8 | N21: 20.6 | O21: 19.5 | P21: 18.6 | Q21: 17.7 | R21: 17 | S21: 16.4 | T21: 15.9 | U21: 15.4 | W21: 30 | X21: 194.5 | Y21: 99.4 | Z21: 67.7 | AA21: 51.9 | AB21: 42.4 | AC21: 36.1 | AD21: 31.6 | AE21: 28.3 | AF21: 25.7 | AG21: 23.6 | AH21: 21.9 | AI21: 20.5 | AJ21: 19.3 | AK21: 18.3 | AL21: 17.4 | AM21: 16.6 | AN21: 16 | AO21: 15.4 | AP21: 14.9 | AQ21: 14.4
A22: 31 | B22: 211.7 | C22: 108.2 | D22: 73.7 | E22: 56.5 | F22: 46.2 | G22: 39.3 | H22: 34.4 | I22: 30.8 | J22: 27.9 | K22: 25.7 | L22: 23.8 | M22: 22.3 | N22: 21 | O22: 19.9 | P22: 18.9 | Q22: 18.1 | R22: 17.4 | S22: 16.8 | T22: 16.2 | U22: 15.7 | W22: 31 | X22: 198.6 | Y22: 101.5 | Z22: 69.2 | AA22: 53 | AB22: 43.3 | AC22: 36.9 | AD22: 32.3 | AE22: 28.9 | AF22: 26.2 | AG22: 24.1 | AH22: 22.3 | AI22: 20.9 | AJ22: 19.7 | AK22: 18.7 | AL22: 17.8 | AM22: 17 | AN22: 16.3 | AO22: 15.7 | AP22: 15.2 | AQ22: 14.7
A23: 32 | B23: 216.1 | C23: 110.4 | D23: 75.2 | E23: 57.7 | F23: 47.1 | G23: 40.1 | H23: 35.1 | I23: 31.4 | J23: 28.5 | K23: 26.2 | L23: 24.3 | M23: 22.8 | N23: 21.4 | O23: 20.3 | P23: 19.4 | Q23: 18.5 | R23: 17.8 | S23: 17.1 | T23: 16.6 | U23: 16 | W23: 32 | X23: 202.7 | Y23: 103.6 | Z23: 70.6 | AA23: 54.1 | AB23: 44.2 | AC23: 37.7 | AD23: 33 | AE23: 29.5 | AF23: 26.8 | AG23: 24.6 | AH23: 22.8 | AI23: 21.4 | AJ23: 20.1 | AK23: 19.1 | AL23: 18.2 | AM23: 17.4 | AN23: 16.7 | AO23: 16.1 | AP23: 15.5 | AQ23: 15
A24: 33 | B24: 220.5 | C24: 112.7 | D24: 76.8 | E24: 58.9 | F24: 48.1 | G24: 41 | H24: 35.9 | I24: 32.1 | J24: 29.1 | K24: 26.8 | L24: 24.8 | M24: 23.2 | N24: 21.9 | O24: 20.8 | P24: 19.8 | Q24: 18.9 | R24: 18.2 | S24: 17.5 | T24: 16.9 | U24: 16.4 | W24: 33 | X24: 206.9 | Y24: 105.8 | Z24: 72.1 | AA24: 55.2 | AB24: 45.2 | AC24: 38.4 | AD24: 33.7 | AE24: 30.1 | AF24: 27.3 | AG24: 25.1 | AH24: 23.3 | AI24: 21.8 | AJ24: 20.5 | AK24: 19.5 | AL24: 18.5 | AM24: 17.7 | AN24: 17 | AO24: 16.4 | AP24: 15.9 | AQ24: 15.4
A25: 34 | B25: 225 | C25: 115 | D25: 78.4 | E25: 60.1 | F25: 49.1 | G25: 41.8 | H25: 36.6 | I25: 32.7 | J25: 29.7 | K25: 27.3 | L25: 25.4 | M25: 23.7 | N25: 22.4 | O25: 21.2 | P25: 20.2 | Q25: 19.3 | R25: 18.5 | S25: 17.9 | T25: 17.3 | U25: 16.7 | W25: 34 | X25: 211.2 | Y25: 108 | Z25: 73.6 | AA25: 56.4 | AB25: 46.1 | AC25: 39.3 | AD25: 34.4 | AE25: 30.7 | AF25: 27.9 | AG25: 25.6 | AH25: 23.8 | AI25: 22.3 | AJ25: 21 | AK25: 19.9 | AL25: 18.9 | AM25: 18.1 | AN25: 17.4 | AO25: 16.8 | AP25: 16.2 | AQ25: 15.7
A26: 35 | B26: 229.6 | C26: 117.4 | D26: 80 | E26: 61.3 | F26: 50.1 | G26: 42.7 | H26: 37.4 | I26: 33.4 | J26: 30.3 | K26: 27.9 | L26: 25.9 | M26: 24.2 | N26: 22.8 | O26: 21.6 | P26: 20.6 | Q26: 19.7 | R26: 18.9 | S26: 18.3 | T26: 17.7 | U26: 17.1 | W26: 35 | X26: 215.5 | Y26: 110.2 | Z26: 75.1 | AA26: 57.6 | AB26: 47.1 | AC26: 40.1 | AD26: 35.1 | AE26: 31.4 | AF26: 28.5 | AG26: 26.2 | AH26: 24.3 | AI26: 22.7 | AJ26: 21.4 | AK26: 20.3 | AL26: 19.4 | AM26: 18.5 | AN26: 17.8 | AO26: 17.1 | AP26: 16.6 | AQ26: 16.1
A27: 36 | B27: 234.3 | C27: 119.8 | D27: 81.6 | E27: 62.6 | F27: 51.2 | G27: 43.6 | H27: 38.2 | I27: 34.1 | J27: 31 | K27: 28.5 | L27: 26.4 | M27: 24.7 | N27: 23.3 | O27: 22.1 | P27: 21.1 | Q27: 20.2 | R27: 19.4 | S27: 18.7 | T27: 18 | U27: 17.5 | W27: 36 | X27: 220 | Y27: 112.5 | Z27: 76.6 | AA27: 58.7 | AB27: 48 | AC27: 40.9 | AD27: 35.8 | AE27: 32 | AF27: 29.1 | AG27: 26.7 | AH27: 24.8 | AI27: 23.2 | AJ27: 21.9 | AK27: 20.8 | AL27: 19.8 | AM27: 18.9 | AN27: 18.2 | AO27: 17.5 | AP27: 16.9 | AQ27: 16.4
A28: 37 | B28: 239.1 | C28: 122.2 | D28: 83.3 | E28: 63.9 | F28: 52.2 | G28: 44.5 | H28: 38.9 | I28: 34.8 | J28: 31.6 | K28: 29.1 | L28: 27 | M28: 25.3 | N28: 23.8 | O28: 22.6 | P28: 21.5 | Q28: 20.6 | R28: 19.8 | S28: 19.1 | T28: 18.4 | U28: 17.9 | W28: 37 | X28: 224.5 | Y28: 114.8 | Z28: 78.2 | AA28: 60 | AB28: 49 | AC28: 41.8 | AD28: 36.6 | AE28: 32.7 | AF28: 29.7 | AG28: 27.3 | AH28: 25.3 | AI28: 23.7 | AJ28: 22.4 | AK28: 21.2 | AL28: 20.2 | AM28: 19.3 | AN28: 18.6 | AO28: 17.9 | AP28: 17.3 | AQ28: 16.8
A29: 38 | B29: 243.9 | C29: 124.7 | D29: 85 | E29: 65.2 | F29: 53.3 | G29: 45.4 | H29: 39.8 | I29: 35.5 | J29: 32.3 | K29: 29.7 | L29: 27.6 | M29: 25.8 | N29: 24.3 | O29: 23.1 | P29: 22 | Q29: 21 | R29: 20.2 | S29: 19.5 | T29: 18.9 | U29: 18.3 | W29: 38 | X29: 229.1 | Y29: 117.1 | Z29: 79.8 | AA29: 61.2 | AB29: 50 | AC29: 42.6 | AD29: 37.3 | AE29: 33.4 | AF29: 30.3 | AG29: 27.9 | AH29: 25.9 | AI29: 24.2 | AJ29: 22.8 | AK29: 21.7 | AL29: 20.6 | AM29: 19.8 | AN29: 19 | AO29: 18.3 | AP29: 17.7 | AQ29: 17.2
A30: 39 | B30: 248.9 | C30: 127.2 | D30: 86.7 | E30: 66.5 | F30: 54.4 | G30: 46.3 | H30: 40.6 | I30: 36.3 | J30: 33 | K30: 30.3 | L30: 28.1 | M30: 26.3 | N30: 24.8 | O30: 23.6 | P30: 22.5 | Q30: 21.5 | R30: 20.7 | S30: 19.9 | T30: 19.3 | U30: 18.7 | W30: 39 | X30: 233.8 | Y30: 119.5 | Z30: 81.5 | AA30: 62.5 | AB30: 51.1 | AC30: 43.5 | AD30: 38.1 | AE30: 34.1 | AF30: 31 | AG30: 28.5 | AH30: 26.4 | AI30: 24.7 | AJ30: 23.3 | AK30: 22.1 | AL30: 21.1 | AM30: 20.2 | AN30: 19.4 | AO30: 18.7 | AP30: 18.1 | AQ30: 17.6
A31: 40 | B31: 253.9 | C31: 129.8 | D31: 88.5 | E31: 67.9 | F31: 55.5 | G31: 47.3 | H31: 41.4 | I31: 37 | J31: 33.6 | K31: 30.9 | L31: 28.7 | M31: 26.9 | N31: 25.4 | O31: 24.1 | P31: 22.9 | Q31: 22 | R31: 21.1 | S31: 20.4 | T31: 19.7 | U31: 19.1 | W31: 40 | X31: 238.6 | Y31: 122 | Z31: 83.2 | AA31: 63.8 | AB31: 52.2 | AC31: 44.4 | AD31: 38.9 | AE31: 34.8 | AF31: 31.6 | AG31: 29.1 | AH31: 27 | AI31: 25.3 | AJ31: 23.8 | AK31: 22.6 | AL31: 21.6 | AM31: 20.6 | AN31: 19.9 | AO31: 19.2 | AP31: 18.5 | AQ31: 18
A32: 41 | B32: 259.1 | C32: 132.5 | D32: 90.3 | E32: 69.3 | F32: 56.7 | G32: 48.3 | H32: 42.3 | I32: 37.8 | J32: 34.4 | K32: 31.6 | L32: 29.4 | M32: 27.5 | N32: 25.9 | O32: 24.6 | P32: 23.5 | Q32: 22.5 | R32: 21.6 | S32: 20.9 | T32: 20.2 | U32: 19.6 | W32: 41 | X32: 243.5 | Y32: 124.5 | Z32: 84.9 | AA32: 65.1 | AB32: 53.2 | AC32: 45.4 | AD32: 39.7 | AE32: 35.5 | AF32: 32.3 | AG32: 29.7 | AH32: 27.6 | AI32: 25.8 | AJ32: 24.4 | AK32: 23.1 | AL32: 22 | AM32: 21.1 | AN32: 20.3 | AO32: 19.6 | AP32: 19 | AQ32: 18.4
A33: 42 | B33: 264.3 | C33: 135.2 | D33: 92.2 | E33: 70.7 | F33: 57.8 | G33: 49.3 | H33: 43.2 | I33: 38.6 | J33: 35.1 | K33: 32.3 | L33: 30 | M33: 28.1 | N33: 26.5 | O33: 25.1 | P33: 24 | Q33: 23 | R33: 22.1 | S33: 21.3 | T33: 20.7 | U33: 20.1 | W33: 42 | X33: 248.4 | Y33: 127.1 | Z33: 86.6 | AA33: 66.4 | AB33: 54.4 | AC33: 46.3 | AD33: 40.6 | AE33: 36.3 | AF33: 33 | AG33: 30.3 | AH33: 28.2 | AI33: 26.4 | AJ33: 24.9 | AK33: 23.6 | AL33: 22.5 | AM33: 21.6 | AN33: 20.8 | AO33: 20.1 | AP33: 19.4 | AQ33: 18.9
A34: 43 | B34: 269.6 | C34: 137.9 | D34: 94 | E34: 72.1 | F34: 59 | G34: 50.3 | H34: 44.1 | I34: 39.4 | J34: 35.8 | K34: 32.9 | L34: 30.6 | M34: 28.7 | N34: 27.1 | O34: 25.7 | P34: 24.5 | Q34: 23.5 | R34: 22.6 | S34: 21.8 | T34: 21.2 | U34: 20.6 | W34: 43 | X34: 253.5 | Y34: 129.6 | Z34: 88.4 | AA34: 67.8 | AB34: 55.5 | AC34: 47.3 | AD34: 41.4 | AE34: 37.1 | AF34: 33.7 | AG34: 31 | AH34: 28.8 | AI34: 27 | AJ34: 25.5 | AK34: 24.2 | AL34: 23.1 | AM34: 22.1 | AN34: 21.3 | AO34: 20.5 | AP34: 19.9 | AQ34: 19.3
A35: 44 | B35: 275 | C35: 140.7 | D35: 95.9 | E35: 73.6 | F35: 60.2 | G35: 51.3 | H35: 45 | I35: 40.2 | J35: 36.6 | K35: 33.7 | L35: 31.3 | M35: 29.3 | N35: 27.7 | O35: 26.3 | P35: 25.1 | Q35: 24.1 | R35: 23.2 | S35: 22.4 | T35: 21.7 | U35: 21.1 | W35: 44 | X35: 258.6 | Y35: 132.3 | Z35: 90.2 | AA35: 69.2 | AB35: 56.6 | AC35: 48.3 | AD35: 42.3 | AE35: 37.8 | AF35: 34.4 | AG35: 31.7 | AH35: 29.4 | AI35: 27.6 | AJ35: 26 | AK35: 24.7 | AL35: 23.6 | AM35: 22.6 | AN35: 21.8 | AO35: 21 | AP35: 20.4 | AQ35: 19.8
A36: 45 | B36: 280.5 | C36: 143.5 | D36: 97.9 | E36: 75.1 | F36: 61.4 | G36: 52.4 | H36: 45.9 | I36: 41.1 | J36: 37.3 | K36: 34.4 | L36: 32 | M36: 30 | N36: 28.3 | O36: 26.9 | P36: 25.7 | Q36: 24.6 | R36: 23.7 | S36: 22.9 | T36: 22.2 | W36: 45 | X36: 263.9 | Y36: 135 | Z36: 92.1 | AA36: 70.6 | AB36: 57.8 | AC36: 49.3 | AD36: 43.2 | AE36: 38.6 | AF36: 35.1 | AG36: 32.3 | AH36: 30.1 | AI36: 28.2 | AJ36: 26.6 | AK36: 25.3 | AL36: 24.2 | AM36: 23.2 | AN36: 22.3 | AO36: 21.6 | AP36: 20.9
A37: 46 | B37: 286.1 | C37: 146.4 | D37: 99.8 | E37: 76.6 | F37: 62.7 | G37: 53.4 | H37: 46.9 | I37: 42 | J37: 38.2 | K37: 35.1 | L37: 32.7 | M37: 30.7 | N37: 29 | O37: 27.5 | P37: 26.3 | Q37: 25.2 | R37: 24.3 | S37: 23.5 | W37: 46 | X37: 269.2 | Y37: 137.7 | Z37: 94 | AA37: 72.1 | AB37: 59 | AC37: 50.3 | AD37: 44.1 | AE37: 39.5 | AF37: 35.9 | AG37: 33.1 | AH37: 30.8 | AI37: 28.9 | AJ37: 27.3 | AK37: 25.9 | AL37: 24.7 | AM37: 23.7 | AN37: 22.9 | AO37: 22.1
A38: 47 | B38: 291.8 | C38: 149.3 | D38: 101.8 | E38: 78.2 | F38: 64 | G38: 54.6 | H38: 47.9 | I38: 42.9 | J38: 39 | K38: 35.9 | L38: 33.4 | M38: 31.4 | N38: 29.6 | O38: 28.2 | P38: 26.9 | Q38: 25.9 | R38: 24.9 | W38: 47 | X38: 274.7 | Y38: 140.6 | Z38: 95.9 | AA38: 73.6 | AB38: 60.2 | AC38: 51.4 | AD38: 45.1 | AE38: 40.4 | AF38: 36.7 | AG38: 33.8 | AH38: 31.5 | AI38: 29.5 | AJ38: 27.9 | AK38: 26.5 | AL38: 25.4 | AM38: 24.3 | AN38: 23.5
A39: 48 | B39: 297.6 | C39: 152.3 | D39: 103.9 | E39: 79.8 | F39: 65.3 | G39: 55.7 | H39: 48.9 | I39: 43.8 | J39: 39.9 | K39: 36.8 | L39: 34.2 | M39: 32.1 | N39: 30.4 | O39: 28.9 | P39: 27.6 | Q39: 26.5 | W39: 48 | X39: 280.3 | Y39: 143.4 | Z39: 97.9 | AA39: 75.1 | AB39: 61.5 | AC39: 52.5 | AD39: 46.1 | AE39: 41.3 | AF39: 37.6 | AG39: 34.6 | AH39: 32.2 | AI39: 30.3 | AJ39: 28.6 | AK39: 27.2 | AL39: 26 | AM39: 25
A40: 49 | B40: 303.6 | C40: 155.4 | D40: 106.1 | E40: 81.5 | F40: 66.7 | G40: 57 | H40: 50 | I40: 44.8 | J40: 40.8 | K40: 37.6 | L40: 35 | M40: 32.9 | N40: 31.1 | O40: 29.6 | P40: 28.3 | W40: 49 | X40: 286 | Y40: 146.4 | Z40: 99.9 | AA40: 76.7 | AB40: 62.9 | AC40: 53.7 | AD40: 47.1 | AE40: 42.2 | AF40: 38.4 | AG40: 35.5 | AH40: 33 | AI40: 31 | AJ40: 29.3 | AK40: 27.9 | AL40: 26.7
A41: 50 | B41: 309.7 | C41: 158.6 | D41: 108.3 | E41: 83.2 | F41: 68.2 | G41: 58.2 | H41: 51.2 | I41: 45.9 | J41: 41.8 | K41: 38.5 | L41: 35.9 | M41: 33.7 | N41: 31.9 | O41: 30.4 | W41: 50 | X41: 291.9 | Y41: 149.5 | Z41: 102.1 | AA41: 78.4 | AB41: 64.3 | AC41: 54.9 | AD41: 48.2 | AE41: 43.2 | AF41: 39.4 | AG41: 36.3 | AH41: 33.9 | AI41: 31.8 | AJ41: 30.1 | AK41: 28.6
A42: 51 | B42: 316 | C42: 161.9 | D42: 110.6 | E42: 85 | F42: 69.7 | G42: 59.6 | H42: 52.3 | I42: 46.9 | J42: 42.8 | K42: 39.5 | L42: 36.8 | M42: 34.6 | N42: 32.8 | W42: 51 | X42: 298 | Y42: 152.7 | Z42: 104.3 | AA42: 80.2 | AB42: 65.7 | AC42: 56.2 | AD42: 49.4 | AE42: 44.3 | AF42: 40.4 | AG42: 37.2 | AH42: 34.7 | AI42: 32.6 | AJ42: 30.9
A43: 52 | B43: 322.3 | C43: 165.2 | D43: 112.9 | E43: 86.9 | F43: 71.3 | G43: 60.9 | H43: 53.5 | I43: 48 | J43: 43.8 | K43: 40.5 | L43: 37.7 | M43: 35.5 | W43: 52 | X43: 304.1 | Y43: 155.9 | Z43: 106.6 | AA43: 81.9 | AB43: 67.2 | AC43: 57.5 | AD43: 50.5 | AE43: 45.3 | AF43: 41.3 | AG43: 38.2 | AH43: 35.6 | AI43: 33.5
A44: 53 | B44: 328.8 | C44: 168.6 | D44: 115.3 | E44: 88.7 | F44: 72.8 | G44: 62.3 | H44: 54.8 | I44: 49.2 | J44: 44.9 | K44: 41.4 | L44: 38.7 | W44: 53 | X44: 310.4 | Y44: 159.2 | Z44: 108.8 | AA44: 83.7 | AB44: 68.7 | AC44: 58.8 | AD44: 51.7 | AE44: 46.4 | AF44: 42.3 | AG44: 39.1 | AH44: 36.5
A45: 54 | B45: 335.3 | C45: 172 | D45: 117.7 | E45: 90.6 | F45: 74.4 | G45: 63.7 | H45: 56 | I45: 50.3 | J45: 45.9 | K45: 42.5 | W45: 54 | X45: 316.7 | Y45: 162.5 | Z45: 111.2 | AA45: 85.6 | AB45: 70.3 | AC45: 60.1 | AD45: 52.9 | AE45: 47.5 | AF45: 43.4 | AG45: 40.1
A46: 55 | B46: 342 | C46: 175.6 | D46: 120.2 | E46: 92.6 | F46: 76.1 | G46: 65.1 | H46: 57.3 | I46: 51.5 | J46: 47 | W46: 55 | X46: 323.3 | Y46: 165.9 | Z46: 113.6 | AA46: 87.5 | AB46: 71.9 | AC46: 61.5 | AD46: 54.2 | AE46: 48.7 | AF46: 44.5
A47: 56 | B47: 348.8 | C47: 179.2 | D47: 122.7 | E47: 94.6 | F47: 77.8 | G47: 66.6 | H47: 58.7 | I47: 52.7 | W47: 56 | X47: 330 | Y47: 169.5 | Z47: 116.1 | AA47: 89.5 | AB47: 73.5 | AC47: 63 | AD47: 55.5 | AE47: 49.9
A48: 57 | B48: 355.9 | C48: 182.9 | D48: 125.3 | E48: 96.7 | F48: 79.5 | G48: 68.1 | H48: 60 | W48: 57 | X48: 336.9 | Y48: 173.2 | Z48: 118.7 | AA48: 91.5 | AB48: 75.3 | AC48: 64.5 | AD48: 56.8
A49: 58 | B49: 363.2 | C49: 186.8 | D49: 128.1 | E49: 98.8 | F49: 81.3 | G49: 69.7 | W49: 58 | X49: 344.1 | Y49: 177 | Z49: 121.3 | AA49: 93.6 | AB49: 77 | AC49: 66
A50: 59 | B50: 370.8 | C50: 190.8 | D50: 130.9 | E50: 101 | F50: 83.2 | W50: 59 | X50: 351.6 | Y50: 180.9 | Z50: 124.1 | AA50: 95.8 | AB50: 78.9
A51: 60 | B51: 378.7 | C51: 195 | D51: 133.8 | E51: 103.4 | W51: 60 | X51: 359.5 | Y51: 185.1 | Z51: 127.1 | AA51: 98.1
A52: 61 | B52: 387.1 | C52: 199.4 | D52: 136.9 | W52: 61 | X52: 367.8 | Y52: 189.5 | Z52: 130.1
A53: 62 | B53: 395.8 | C53: 204 | W53: 62 | X53: 376.6 | Y53: 194.1
A54: 63 | B54: 405.1 | W54: 63 | X54: 385.9
A55: 64 | W55: 64

Sheet NRA66 (hidden)
A2: Regular Contribution Elections | W2: Regular Contribution Elections
A3: Table D66: Personal and Dependant’s Benefits, NRA 66 | W3: Table P66: Personal Benefits, NRA 66
A5: Age when notice of election given â | B5: Monthly contribution to purchase £250 of APB at date of election, £ | W5: Age when notice of election given â | X5: Monthly contribution to purchase £250 of APB at date of election, £
A6: Payment period (in years) à | B6: 1 | C6: 2 | D6: 3 | E6: 4 | F6: 5 | G6: 6 | H6: 7 | I6: 8 | J6: 9 | K6: 10 | L6: 11 | M6: 12 | N6: 13 | O6: 14 | P6: 15 | Q6: 16 | R6: 17 | S6: 18 | T6: 19 | U6: 20 | W6: Payment period (in years) à | X6: 1 | Y6: 2 | Z6: 3 | AA6: 4 | AB6: 5 | AC6: 6 | AD6: 7 | AE6: 8 | AF6: 9 | AG6: 10 | AH6: 11 | AI6: 12 | AJ6: 13 | AK6: 14 | AL6: 15 | AM6: 16 | AN6: 17 | AO6: 18 | AP6: 19 | AQ6: 20
A7: 16 | B7: 148.9 | C7: 76.1 | D7: 51.8 | E7: 39.7 | F7: 32.4 | G7: 27.6 | H7: 24.2 | I7: 21.6 | J7: 19.6 | K7: 18 | L7: 16.7 | M7: 15.6 | N7: 14.7 | O7: 13.9 | P7: 13.3 | Q7: 12.7 | R7: 12.2 | S7: 11.7 | T7: 11.3 | U7: 10.9 | W7: 16 | X7: 139.5 | Y7: 71.3 | Z7: 48.6 | AA7: 37.2 | AB7: 30.4 | AC7: 25.9 | AD7: 22.6 | AE7: 20.2 | AF7: 18.4 | AG7: 16.9 | AH7: 15.6 | AI7: 14.6 | AJ7: 13.8 | AK7: 13.1 | AL7: 12.4 | AM7: 11.9 | AN7: 11.4 | AO7: 11 | AP7: 10.6 | AQ7: 10.3
A8: 17 | B8: 152.2 | C8: 77.8 | D8: 53 | E8: 40.6 | F8: 33.2 | G8: 28.2 | H8: 24.7 | I8: 22.1 | J8: 20 | K8: 18.4 | L8: 17.1 | M8: 16 | N8: 15 | O8: 14.2 | P8: 13.6 | Q8: 13 | R8: 12.4 | S8: 12 | T8: 11.6 | U8: 11.2 | W8: 17 | X8: 142.5 | Y8: 72.8 | Z8: 49.6 | AA8: 38 | AB8: 31.1 | AC8: 26.4 | AD8: 23.1 | AE8: 20.7 | AF8: 18.8 | AG8: 17.2 | AH8: 16 | AI8: 15 | AJ8: 14.1 | AK8: 13.3 | AL8: 12.7 | AM8: 12.1 | AN8: 11.6 | AO8: 11.2 | AP8: 10.8 | AQ8: 10.5
A9: 18 | B9: 155.7 | C9: 79.6 | D9: 54.2 | E9: 41.5 | F9: 33.9 | G9: 28.9 | H9: 25.3 | I9: 22.6 | J9: 20.5 | K9: 18.8 | L9: 17.5 | M9: 16.3 | N9: 15.4 | O9: 14.6 | P9: 13.9 | Q9: 13.3 | R9: 12.7 | S9: 12.3 | T9: 11.8 | U9: 11.5 | W9: 18 | X9: 145.6 | Y9: 74.4 | Z9: 50.7 | AA9: 38.8 | AB9: 31.7 | AC9: 27 | AD9: 23.6 | AE9: 21.1 | AF9: 19.2 | AG9: 17.6 | AH9: 16.3 | AI9: 15.3 | AJ9: 14.4 | AK9: 13.6 | AL9: 13 | AM9: 12.4 | AN9: 11.9 | AO9: 11.5 | AP9: 11.1 | AQ9: 10.7
A10: 19 | B10: 159.2 | C10: 81.4 | D10: 55.4 | E10: 42.5 | F10: 34.7 | G10: 29.5 | H10: 25.9 | I10: 23.1 | J10: 21 | K10: 19.3 | L10: 17.9 | M10: 16.7 | N10: 15.7 | O10: 14.9 | P10: 14.2 | Q10: 13.6 | R10: 13 | S10: 12.5 | T10: 12.1 | U10: 11.7 | W10: 19 | X10: 148.7 | Y10: 76 | Z10: 51.8 | AA10: 39.7 | AB10: 32.4 | AC10: 27.6 | AD10: 24.1 | AE10: 21.6 | AF10: 19.6 | AG10: 18 | AH10: 16.7 | AI10: 15.6 | AJ10: 14.7 | AK10: 13.9 | AL10: 13.3 | AM10: 12.7 | AN10: 12.2 | AO10: 11.7 | AP10: 11.3 | AQ10: 10.9
A11: 20 | B11: 162.6 | C11: 83.1 | D11: 56.6 | E11: 43.4 | F11: 35.4 | G11: 30.2 | H11: 26.4 | I11: 23.6 | J11: 21.4 | K11: 19.7 | L11: 18.2 | M11: 17.1 | N11: 16.1 | O11: 15.2 | P11: 14.5 | Q11: 13.9 | R11: 13.3 | S11: 12.8 | T11: 12.4 | U11: 12 | W11: 20 | X11: 151.8 | Y11: 77.6 | Z11: 52.9 | AA11: 40.5 | AB11: 33.1 | AC11: 28.2 | AD11: 24.7 | AE11: 22 | AF11: 20 | AG11: 18.4 | AH11: 17 | AI11: 15.9 | AJ11: 15 | AK11: 14.2 | AL11: 13.5 | AM11: 12.9 | AN11: 12.4 | AO11: 12 | AP11: 11.5 | AQ11: 11.2
A12: 21 | B12: 165.9 | C12: 84.8 | D12: 57.8 | E12: 44.3 | F12: 36.2 | G12: 30.8 | H12: 26.9 | I12: 24.1 | J12: 21.8 | K12: 20.1 | L12: 18.6 | M12: 17.4 | N12: 16.4 | O12: 15.5 | P12: 14.8 | Q12: 14.1 | R12: 13.6 | S12: 13.1 | T12: 12.6 | U12: 12.2 | W12: 21 | X12: 155 | Y12: 79.2 | Z12: 54 | AA12: 41.4 | AB12: 33.8 | AC12: 28.8 | AD12: 25.2 | AE12: 22.5 | AF12: 20.4 | AG12: 18.7 | AH12: 17.4 | AI12: 16.3 | AJ12: 15.3 | AK12: 14.5 | AL12: 13.8 | AM12: 13.2 | AN12: 12.7 | AO12: 12.2 | AP12: 11.8 | AQ12: 11.4
A13: 22 | B13: 169.4 | C13: 86.6 | D13: 59 | E13: 45.2 | F13: 36.9 | G13: 31.4 | H13: 27.5 | I13: 24.6 | J13: 22.3 | K13: 20.5 | L13: 19 | M13: 17.8 | N13: 16.7 | O13: 15.9 | P13: 15.1 | Q13: 14.4 | R13: 13.9 | S13: 13.3 | T13: 12.9 | U13: 12.5 | W13: 22 | X13: 158.3 | Y13: 80.9 | Z13: 55.1 | AA13: 42.2 | AB13: 34.5 | AC13: 29.4 | AD13: 25.7 | AE13: 23 | AF13: 20.8 | AG13: 19.1 | AH13: 17.8 | AI13: 16.6 | AJ13: 15.6 | AK13: 14.8 | AL13: 14.1 | AM13: 13.5 | AN13: 13 | AO13: 12.5 | AP13: 12 | AQ13: 11.7
A14: 23 | B14: 172.9 | C14: 88.4 | D14: 60.2 | E14: 46.1 | F14: 37.7 | G14: 32.1 | H14: 28.1 | I14: 25.1 | J14: 22.8 | K14: 20.9 | L14: 19.4 | M14: 18.2 | N14: 17.1 | O14: 16.2 | P14: 15.4 | Q14: 14.7 | R14: 14.2 | S14: 13.6 | T14: 13.2 | U14: 12.7 | W14: 23 | X14: 161.6 | Y14: 82.6 | Z14: 56.3 | AA14: 43.1 | AB14: 35.2 | AC14: 30 | AD14: 26.2 | AE14: 23.4 | AF14: 21.3 | AG14: 19.5 | AH14: 18.1 | AI14: 17 | AJ14: 16 | AK14: 15.1 | AL14: 14.4 | AM14: 13.8 | AN14: 13.2 | AO14: 12.7 | AP14: 12.3 | AQ14: 11.9
A15: 24 | B15: 176.5 | C15: 90.2 | D15: 61.5 | E15: 47.1 | F15: 38.5 | G15: 32.8 | H15: 28.7 | I15: 25.6 | J15: 23.2 | K15: 21.4 | L15: 19.8 | M15: 18.5 | N15: 17.5 | O15: 16.5 | P15: 15.7 | Q15: 15.1 | R15: 14.5 | S15: 13.9 | T15: 13.4 | U15: 13 | W15: 24 | X15: 165 | Y15: 84.3 | Z15: 57.4 | AA15: 44 | AB15: 36 | AC15: 30.6 | AD15: 26.8 | AE15: 23.9 | AF15: 21.7 | AG15: 20 | AH15: 18.5 | AI15: 17.3 | AJ15: 16.3 | AK15: 15.5 | AL15: 14.7 | AM15: 14.1 | AN15: 13.5 | AO15: 13 | AP15: 12.6 | AQ15: 12.2
A16: 25 | B16: 180.2 | C16: 92.1 | D16: 62.7 | E16: 48.1 | F16: 39.3 | G16: 33.4 | H16: 29.3 | I16: 26.2 | J16: 23.7 | K16: 21.8 | L16: 20.2 | M16: 18.9 | N16: 17.8 | O16: 16.9 | P16: 16.1 | Q16: 15.4 | R16: 14.8 | S16: 14.2 | T16: 13.7 | U16: 13.3 | W16: 25 | X16: 168.4 | Y16: 86.1 | Z16: 58.6 | AA16: 44.9 | AB16: 36.7 | AC16: 31.3 | AD16: 27.4 | AE16: 24.4 | AF16: 22.2 | AG16: 20.4 | AH16: 18.9 | AI16: 17.7 | AJ16: 16.7 | AK16: 15.8 | AL16: 15 | AM16: 14.4 | AN16: 13.8 | AO16: 13.3 | AP16: 12.8 | AQ16: 12.4
A17: 26 | B17: 183.9 | C17: 94 | D17: 64 | E17: 49.1 | F17: 40.1 | G17: 34.1 | H17: 29.9 | I17: 26.7 | J17: 24.2 | K17: 22.3 | L17: 20.7 | M17: 19.3 | N17: 18.2 | O17: 17.2 | P17: 16.4 | Q17: 15.7 | R17: 15.1 | S17: 14.5 | T17: 14 | U17: 13.6 | W17: 26 | X17: 171.9 | Y17: 87.9 | Z17: 59.9 | AA17: 45.9 | AB17: 37.5 | AC17: 31.9 | AD17: 27.9 | AE17: 25 | AF17: 22.6 | AG17: 20.8 | AH17: 19.3 | AI17: 18.1 | AJ17: 17 | AK17: 16.1 | AL17: 15.3 | AM17: 14.7 | AN17: 14.1 | AO17: 13.6 | AP17: 13.1 | AQ17: 12.7
A18: 27 | B18: 187.7 | C18: 95.9 | D18: 65.4 | E18: 50.1 | F18: 40.9 | G18: 34.8 | H18: 30.5 | I18: 27.3 | J18: 24.7 | K18: 22.7 | L18: 21.1 | M18: 19.7 | N18: 18.6 | O18: 17.6 | P18: 16.8 | Q18: 16 | R18: 15.4 | S18: 14.8 | T18: 14.3 | U18: 13.9 | W18: 27 | X18: 175.5 | Y18: 89.7 | Z18: 61.1 | AA18: 46.8 | AB18: 38.3 | AC18: 32.6 | AD18: 28.5 | AE18: 25.5 | AF18: 23.1 | AG18: 21.2 | AH18: 19.7 | AI18: 18.4 | AJ18: 17.4 | AK18: 16.5 | AL18: 15.7 | AM18: 15 | AN18: 14.4 | AO18: 13.9 | AP18: 13.4 | AQ18: 13
A19: 28 | B19: 191.6 | C19: 97.9 | D19: 66.7 | E19: 51.1 | F19: 41.8 | G19: 35.6 | H19: 31.1 | I19: 27.8 | J19: 25.3 | K19: 23.2 | L19: 21.5 | M19: 20.1 | N19: 19 | O19: 18 | P19: 17.1 | Q19: 16.4 | R19: 15.7 | S19: 15.1 | T19: 14.6 | U19: 14.2 | W19: 28 | X19: 179.2 | Y19: 91.6 | Z19: 62.4 | AA19: 47.8 | AB19: 39.1 | AC19: 33.3 | AD19: 29.1 | AE19: 26 | AF19: 23.6 | AG19: 21.7 | AH19: 20.1 | AI19: 18.8 | AJ19: 17.7 | AK19: 16.8 | AL19: 16 | AM19: 15.3 | AN19: 14.7 | AO19: 14.2 | AP19: 13.7 | AQ19: 13.2
A20: 29 | B20: 195.6 | C20: 99.9 | D20: 68.1 | E20: 52.2 | F20: 42.7 | G20: 36.3 | H20: 31.8 | I20: 28.4 | J20: 25.8 | K20: 23.7 | L20: 22 | M20: 20.6 | N20: 19.4 | O20: 18.4 | P20: 17.5 | Q20: 16.7 | R20: 16.1 | S20: 15.5 | T20: 14.9 | U20: 14.5 | W20: 29 | X20: 182.9 | Y20: 93.5 | Z20: 63.7 | AA20: 48.8 | AB20: 39.9 | AC20: 34 | AD20: 29.7 | AE20: 26.6 | AF20: 24.1 | AG20: 22.2 | AH20: 20.6 | AI20: 19.2 | AJ20: 18.1 | AK20: 17.2 | AL20: 16.3 | AM20: 15.6 | AN20: 15 | AO20: 14.5 | AP20: 14 | AQ20: 13.5
A21: 30 | B21: 199.6 | C21: 102 | D21: 69.5 | E21: 53.3 | F21: 43.5 | G21: 37.1 | H21: 32.5 | I21: 29 | J21: 26.3 | K21: 24.2 | L21: 22.4 | M21: 21 | N21: 19.8 | O21: 18.8 | P21: 17.9 | Q21: 17.1 | R21: 16.4 | S21: 15.8 | T21: 15.3 | U21: 14.8 | W21: 30 | X21: 186.7 | Y21: 95.4 | Z21: 65 | AA21: 49.8 | AB21: 40.7 | AC21: 34.7 | AD21: 30.3 | AE21: 27.1 | AF21: 24.6 | AG21: 22.6 | AH21: 21 | AI21: 19.6 | AJ21: 18.5 | AK21: 17.5 | AL21: 16.7 | AM21: 16 | AN21: 15.3 | AO21: 14.8 | AP21: 14.3 | AQ21: 13.8
A22: 31 | B22: 203.7 | C22: 104.1 | D22: 70.9 | E22: 54.4 | F22: 44.4 | G22: 37.8 | H22: 33.1 | I22: 29.6 | J22: 26.9 | K22: 24.7 | L22: 22.9 | M22: 21.4 | N22: 20.2 | O22: 19.1 | P22: 18.2 | Q22: 17.4 | R22: 16.7 | S22: 16.1 | T22: 15.6 | U22: 15.1 | W22: 31 | X22: 190.5 | Y22: 97.4 | Z22: 66.4 | AA22: 50.9 | AB22: 41.6 | AC22: 35.4 | AD22: 31 | AE22: 27.7 | AF22: 25.1 | AG22: 23.1 | AH22: 21.4 | AI22: 20.1 | AJ22: 18.9 | AK22: 17.9 | AL22: 17.1 | AM22: 16.3 | AN22: 15.7 | AO22: 15.1 | AP22: 14.6 | AQ22: 14.1
A23: 32 | B23: 207.9 | C23: 106.3 | D23: 72.4 | E23: 55.5 | F23: 45.4 | G23: 38.6 | H23: 33.8 | I23: 30.2 | J23: 27.4 | K23: 25.2 | L23: 23.4 | M23: 21.9 | N23: 20.6 | O23: 19.6 | P23: 18.6 | Q23: 17.8 | R23: 17.1 | S23: 16.5 | T23: 15.9 | U23: 15.4 | W23: 32 | X23: 194.5 | Y23: 99.4 | Z23: 67.7 | AA23: 51.9 | AB23: 42.4 | AC23: 36.1 | AD23: 31.6 | AE23: 28.3 | AF23: 25.7 | AG23: 23.6 | AH23: 21.9 | AI23: 20.5 | AJ23: 19.3 | AK23: 18.3 | AL23: 17.4 | AM23: 16.7 | AN23: 16 | AO23: 15.4 | AP23: 14.9 | AQ23: 14.4
A24: 33 | B24: 212.2 | C24: 108.4 | D24: 73.9 | E24: 56.6 | F24: 46.3 | G24: 39.4 | H24: 34.5 | I24: 30.9 | J24: 28 | K24: 25.7 | L24: 23.9 | M24: 22.4 | N24: 21.1 | O24: 20 | P24: 19 | Q24: 18.2 | R24: 17.5 | S24: 16.8 | T24: 16.3 | U24: 15.8 | W24: 33 | X24: 198.5 | Y24: 101.4 | Z24: 69.1 | AA24: 53 | AB24: 43.3 | AC24: 36.9 | AD24: 32.3 | AE24: 28.9 | AF24: 26.2 | AG24: 24.1 | AH24: 22.4 | AI24: 20.9 | AJ24: 19.7 | AK24: 18.7 | AL24: 17.8 | AM24: 17 | AN24: 16.3 | AO24: 15.7 | AP24: 15.2 | AQ24: 14.7
A25: 34 | B25: 216.5 | C25: 110.7 | D25: 75.4 | E25: 57.8 | F25: 47.3 | G25: 40.2 | H25: 35.2 | I25: 31.5 | J25: 28.6 | K25: 26.3 | L25: 24.4 | M25: 22.8 | N25: 21.5 | O25: 20.4 | P25: 19.4 | Q25: 18.6 | R25: 17.8 | S25: 17.2 | T25: 16.6 | U25: 16.1 | W25: 34 | X25: 202.5 | Y25: 103.5 | Z25: 70.6 | AA25: 54.1 | AB25: 44.2 | AC25: 37.6 | AD25: 33 | AE25: 29.5 | AF25: 26.7 | AG25: 24.6 | AH25: 22.8 | AI25: 21.4 | AJ25: 20.1 | AK25: 19.1 | AL25: 18.2 | AM25: 17.4 | AN25: 16.7 | AO25: 16.1 | AP25: 15.5 | AQ25: 15.1
A26: 35 | B26: 220.9 | C26: 112.9 | D26: 76.9 | E26: 59 | F26: 48.2 | G26: 41.1 | H26: 36 | I26: 32.1 | J26: 29.2 | K26: 26.8 | L26: 24.9 | M26: 23.3 | N26: 22 | O26: 20.8 | P26: 19.8 | Q26: 19 | R26: 18.2 | S26: 17.6 | T26: 17 | U26: 16.5 | W26: 35 | X26: 206.7 | Y26: 105.7 | Z26: 72 | AA26: 55.2 | AB26: 45.1 | AC26: 38.4 | AD26: 33.6 | AE26: 30.1 | AF26: 27.3 | AG26: 25.1 | AH26: 23.3 | AI26: 21.8 | AJ26: 20.6 | AK26: 19.5 | AL26: 18.6 | AM26: 17.8 | AN26: 17.1 | AO26: 16.4 | AP26: 15.9 | AQ26: 15.4
A27: 36 | B27: 225.3 | C27: 115.2 | D27: 78.5 | E27: 60.2 | F27: 49.2 | G27: 41.9 | H27: 36.7 | I27: 32.8 | J27: 29.8 | K27: 27.4 | L27: 25.4 | M27: 23.8 | N27: 22.4 | O27: 21.3 | P27: 20.3 | Q27: 19.4 | R27: 18.6 | S27: 17.9 | T27: 17.3 | U27: 16.8 | W27: 36 | X27: 210.9 | Y27: 107.8 | Z27: 73.5 | AA27: 56.3 | AB27: 46 | AC27: 39.2 | AD27: 34.3 | AE27: 30.7 | AF27: 27.9 | AG27: 25.6 | AH27: 23.8 | AI27: 22.3 | AJ27: 21 | AK27: 19.9 | AL27: 19 | AM27: 18.1 | AN27: 17.4 | AO27: 16.8 | AP27: 16.2 | AQ27: 15.7
A28: 37 | B28: 229.9 | C28: 117.5 | D28: 80.1 | E28: 61.4 | F28: 50.2 | G28: 42.8 | H28: 37.4 | I28: 33.5 | J28: 30.4 | K28: 27.9 | L28: 25.9 | M28: 24.3 | N28: 22.9 | O28: 21.7 | P28: 20.7 | Q28: 19.8 | R28: 19 | S28: 18.3 | T28: 17.7 | U28: 17.2 | W28: 37 | X28: 215.2 | Y28: 110 | Z28: 75 | AA28: 57.5 | AB28: 47 | AC28: 40 | AD28: 35.1 | AE28: 31.3 | AF28: 28.5 | AG28: 26.2 | AH28: 24.3 | AI28: 22.7 | AJ28: 21.4 | AK28: 20.3 | AL28: 19.4 | AM28: 18.5 | AN28: 17.8 | AO28: 17.2 | AP28: 16.6 | AQ28: 16.1
A29: 38 | B29: 234.5 | C29: 119.9 | D29: 81.7 | E29: 62.6 | F29: 51.2 | G29: 43.6 | H29: 38.2 | I29: 34.2 | J29: 31 | K29: 28.5 | L29: 26.5 | M29: 24.8 | N29: 23.4 | O29: 22.2 | P29: 21.1 | Q29: 20.2 | R29: 19.4 | S29: 18.7 | T29: 18.1 | U29: 17.6 | W29: 38 | X29: 219.6 | Y29: 112.2 | Z29: 76.5 | AA29: 58.7 | AB29: 48 | AC29: 40.8 | AD29: 35.8 | AE29: 32 | AF29: 29.1 | AG29: 26.7 | AH29: 24.8 | AI29: 23.2 | AJ29: 21.9 | AK29: 20.8 | AL29: 19.8 | AM29: 18.9 | AN29: 18.2 | AO29: 17.5 | AP29: 17 | AQ29: 16.5
A30: 39 | B30: 239.2 | C30: 122.3 | D30: 83.4 | E30: 63.9 | F30: 52.3 | G30: 44.5 | H30: 39 | I30: 34.9 | J30: 31.7 | K30: 29.1 | L30: 27 | M30: 25.3 | N30: 23.9 | O30: 22.6 | P30: 21.6 | Q30: 20.7 | R30: 19.9 | S30: 19.2 | T30: 18.5 | U30: 18 | W30: 39 | X30: 224 | Y30: 114.5 | Z30: 78.1 | AA30: 59.9 | AB30: 49 | AC30: 41.7 | AD30: 36.5 | AE30: 32.7 | AF30: 29.7 | AG30: 27.3 | AH30: 25.3 | AI30: 23.7 | AJ30: 22.4 | AK30: 21.2 | AL30: 20.2 | AM30: 19.4 | AN30: 18.6 | AO30: 17.9 | AP30: 17.4 | AQ30: 16.8
A31: 40 | B31: 244 | C31: 124.8 | D31: 85.1 | E31: 65.2 | F31: 53.3 | G31: 45.4 | H31: 39.8 | I31: 35.6 | J31: 32.3 | K31: 29.7 | L31: 27.6 | M31: 25.9 | N31: 24.4 | O31: 23.1 | P31: 22.1 | Q31: 21.1 | R31: 20.3 | S31: 19.6 | T31: 19 | U31: 18.4 | W31: 40 | X31: 228.6 | Y31: 116.9 | Z31: 79.7 | AA31: 61.1 | AB31: 50 | AC31: 42.6 | AD31: 37.3 | AE31: 33.3 | AF31: 30.3 | AG31: 27.9 | AH31: 25.9 | AI31: 24.2 | AJ31: 22.8 | AK31: 21.7 | AL31: 20.7 | AM31: 19.8 | AN31: 19 | AO31: 18.3 | AP31: 17.8 | AQ31: 17.2
A32: 41 | B32: 248.9 | C32: 127.3 | D32: 86.8 | E32: 66.6 | F32: 54.4 | G32: 46.4 | H32: 40.6 | I32: 36.3 | J32: 33 | K32: 30.4 | L32: 28.2 | M32: 26.4 | N32: 24.9 | O32: 23.6 | P32: 22.5 | Q32: 21.6 | R32: 20.8 | S32: 20 | T32: 19.4 | U32: 18.8 | W32: 41 | X32: 233.2 | Y32: 119.3 | Z32: 81.3 | AA32: 62.4 | AB32: 51 | AC32: 43.4 | AD32: 38.1 | AE32: 34 | AF32: 30.9 | AG32: 28.4 | AH32: 26.4 | AI32: 24.7 | AJ32: 23.3 | AK32: 22.1 | AL32: 21.1 | AM32: 20.2 | AN32: 19.5 | AO32: 18.8 | AP32: 18.2 | AQ32: 17.6
A33: 42 | B33: 253.9 | C33: 129.8 | D33: 88.5 | E33: 67.9 | F33: 55.5 | G33: 47.3 | H33: 41.5 | I33: 37.1 | J33: 33.7 | K33: 31 | L33: 28.8 | M33: 27 | N33: 25.5 | O33: 24.2 | P33: 23 | Q33: 22.1 | R33: 21.2 | S33: 20.5 | T33: 19.9 | U33: 19.3 | W33: 42 | X33: 237.9 | Y33: 121.7 | Z33: 83 | AA33: 63.6 | AB33: 52 | AC33: 44.3 | AD33: 38.9 | AE33: 34.8 | AF33: 31.6 | AG33: 29 | AH33: 27 | AI33: 25.3 | AJ33: 23.9 | AK33: 22.6 | AL33: 21.6 | AM33: 20.7 | AN33: 19.9 | AO33: 19.2 | AP33: 18.6 | AQ33: 18.1
A34: 43 | B34: 258.9 | C34: 132.4 | D34: 90.3 | E34: 69.3 | F34: 56.7 | G34: 48.3 | H34: 42.3 | I34: 37.9 | J34: 34.4 | K34: 31.6 | L34: 29.4 | M34: 27.6 | N34: 26 | O34: 24.7 | P34: 23.6 | Q34: 22.6 | R34: 21.7 | S34: 21 | T34: 20.3 | U34: 19.7 | W34: 43 | X34: 242.7 | Y34: 124.1 | Z34: 84.6 | AA34: 64.9 | AB34: 53.1 | AC34: 45.3 | AD34: 39.7 | AE34: 35.5 | AF34: 32.2 | AG34: 29.7 | AH34: 27.6 | AI34: 25.8 | AJ34: 24.4 | AK34: 23.1 | AL34: 22.1 | AM34: 21.2 | AN34: 20.4 | AO34: 19.7 | AP34: 19 | AQ34: 18.5
A35: 44 | B35: 264 | C35: 135.1 | D35: 92.1 | E35: 70.7 | F35: 57.8 | G35: 49.3 | H35: 43.2 | I35: 38.6 | J35: 35.1 | K35: 32.3 | L35: 30 | M35: 28.2 | N35: 26.6 | O35: 25.2 | P35: 24.1 | Q35: 23.1 | R35: 22.2 | S35: 21.5 | T35: 20.8 | U35: 20.2 | W35: 44 | X35: 247.5 | Y35: 126.6 | Z35: 86.4 | AA35: 66.2 | AB35: 54.2 | AC35: 46.2 | AD35: 40.5 | AE35: 36.2 | AF35: 32.9 | AG35: 30.3 | AH35: 28.2 | AI35: 26.4 | AJ35: 24.9 | AK35: 23.7 | AL35: 22.6 | AM35: 21.7 | AN35: 20.8 | AO35: 20.1 | AP35: 19.5 | AQ35: 19
A36: 45 | B36: 269.2 | C36: 137.7 | D36: 93.9 | E36: 72.1 | F36: 59 | G36: 50.3 | H36: 44.1 | I36: 39.4 | J36: 35.9 | K36: 33 | L36: 30.7 | M36: 28.8 | N36: 27.2 | O36: 25.8 | P36: 24.6 | Q36: 23.6 | R36: 22.8 | S36: 22 | T36: 21.3 | U36: 20.7 | W36: 45 | X36: 252.5 | Y36: 129.2 | Z36: 88.1 | AA36: 67.6 | AB36: 55.3 | AC36: 47.1 | AD36: 41.3 | AE36: 37 | AF36: 33.6 | AG36: 31 | AH36: 28.8 | AI36: 27 | AJ36: 25.5 | AK36: 24.2 | AL36: 23.1 | AM36: 22.2 | AN36: 21.4 | AO36: 20.6 | AP36: 20 | AQ36: 19.4
A37: 46 | B37: 274.5 | C37: 140.5 | D37: 95.8 | E37: 73.5 | F37: 60.2 | G37: 51.3 | H37: 45 | I37: 40.3 | J37: 36.6 | K37: 33.7 | L37: 31.4 | M37: 29.4 | N37: 27.8 | O37: 26.4 | P37: 25.2 | Q37: 24.2 | R37: 23.3 | S37: 22.5 | T37: 21.9 | W37: 46 | X37: 257.6 | Y37: 131.8 | Z37: 89.9 | AA37: 69 | AB37: 56.4 | AC37: 48.1 | AD37: 42.2 | AE37: 37.8 | AF37: 34.4 | AG37: 31.6 | AH37: 29.4 | AI37: 27.6 | AJ37: 26.1 | AK37: 24.8 | AL37: 23.7 | AM37: 22.7 | AN37: 21.9 | AO37: 21.1 | AP37: 20.5
A38: 47 | B38: 279.9 | C38: 143.2 | D38: 97.7 | E38: 75 | F38: 61.4 | G38: 52.4 | H38: 45.9 | I38: 41.1 | J38: 37.4 | K38: 34.5 | L38: 32.1 | M38: 30.1 | N38: 28.4 | O38: 27 | P38: 25.8 | Q38: 24.8 | R38: 23.9 | S38: 23.1 | W38: 47 | X38: 262.7 | Y38: 134.4 | Z38: 91.7 | AA38: 70.4 | AB38: 57.6 | AC38: 49.1 | AD38: 43.1 | AE38: 38.6 | AF38: 35.1 | AG38: 32.4 | AH38: 30.1 | AI38: 28.3 | AJ38: 26.7 | AK38: 25.4 | AL38: 24.3 | AM38: 23.3 | AN38: 22.4 | AO38: 21.7
A39: 48 | B39: 285.4 | C39: 146.1 | D39: 99.7 | E39: 76.5 | F39: 62.7 | G39: 53.5 | H39: 46.9 | I39: 42 | J39: 38.3 | K39: 35.3 | L39: 32.8 | M39: 30.8 | N39: 29.1 | O39: 27.7 | P39: 26.5 | Q39: 25.4 | R39: 24.5 | W39: 48 | X39: 268 | Y39: 137.1 | Z39: 93.6 | AA39: 71.8 | AB39: 58.8 | AC39: 50.2 | AD39: 44 | AE39: 39.5 | AF39: 35.9 | AG39: 33.1 | AH39: 30.8 | AI39: 28.9 | AJ39: 27.3 | AK39: 26 | AL39: 24.9 | AM39: 23.9 | AN39: 23
A40: 49 | B40: 291.1 | C40: 149 | D40: 101.7 | E40: 78.1 | F40: 64 | G40: 54.6 | H40: 47.9 | I40: 43 | J40: 39.1 | K40: 36.1 | L40: 33.6 | M40: 31.6 | N40: 29.9 | O40: 28.4 | P40: 27.2 | Q40: 26.1 | W40: 49 | X40: 273.4 | Y40: 139.9 | Z40: 95.5 | AA40: 73.4 | AB40: 60.1 | AC40: 51.3 | AD40: 45 | AE40: 40.4 | AF40: 36.8 | AG40: 33.9 | AH40: 31.6 | AI40: 29.6 | AJ40: 28 | AK40: 26.7 | AL40: 25.5 | AM40: 24.5
A41: 50 | B41: 296.9 | C41: 152 | D41: 103.8 | E41: 79.8 | F41: 65.4 | G41: 55.8 | H41: 49 | I41: 44 | J41: 40.1 | K41: 36.9 | L41: 34.4 | M41: 32.3 | N41: 30.6 | O41: 29.1 | P41: 27.9 | W41: 50 | X41: 279 | Y41: 142.9 | Z41: 97.6 | AA41: 75 | AB41: 61.4 | AC41: 52.5 | AD41: 46.1 | AE41: 41.3 | AF41: 37.6 | AG41: 34.7 | AH41: 32.3 | AI41: 30.4 | AJ41: 28.8 | AK41: 27.4 | AL41: 26.2
A42: 51 | B42: 302.8 | C42: 155.2 | D42: 106 | E42: 81.5 | F42: 66.8 | G42: 57.1 | H42: 50.2 | I42: 45 | J42: 41 | K42: 37.8 | L42: 35.3 | M42: 33.2 | N42: 31.4 | O42: 29.9 | W42: 51 | X42: 284.7 | Y42: 145.9 | Z42: 99.7 | AA42: 76.6 | AB42: 62.8 | AC42: 53.7 | AD42: 47.1 | AE42: 42.3 | AF42: 38.5 | AG42: 35.6 | AH42: 33.2 | AI42: 31.2 | AJ42: 29.5 | AK42: 28.1
A43: 52 | B43: 308.8 | C43: 158.3 | D43: 108.2 | E43: 83.2 | F43: 68.3 | G43: 58.3 | H43: 51.3 | I43: 46 | J43: 42 | K43: 38.8 | L43: 36.1 | M43: 34 | N43: 32.2 | W43: 52 | X43: 290.4 | Y43: 148.9 | Z43: 101.8 | AA43: 78.3 | AB43: 64.2 | AC43: 54.9 | AD43: 48.2 | AE43: 43.3 | AF43: 39.5 | AG43: 36.4 | AH43: 34 | AI43: 32 | AJ43: 30.3
A44: 53 | B44: 314.8 | C44: 161.4 | D44: 110.4 | E44: 84.9 | F44: 69.7 | G44: 59.6 | H44: 52.4 | I44: 47.1 | J44: 43 | K44: 39.7 | L44: 37 | M44: 34.8 | W44: 53 | X44: 296.3 | Y44: 151.9 | Z44: 103.9 | AA44: 79.9 | AB44: 65.6 | AC44: 56.1 | AD44: 49.3 | AE44: 44.3 | AF44: 40.4 | AG44: 37.3 | AH44: 34.8 | AI44: 32.8
A45: 54 | B45: 320.9 | C45: 164.7 | D45: 112.7 | E45: 86.7 | F45: 71.2 | G45: 60.9 | H45: 53.6 | I45: 48.2 | J45: 44 | K45: 40.6 | L45: 37.9 | W45: 54 | X45: 302.2 | Y45: 155 | Z45: 106.1 | AA45: 81.7 | AB45: 67.1 | AC45: 57.4 | AD45: 50.5 | AE45: 45.4 | AF45: 41.4 | AG45: 38.3 | AH45: 35.7
A46: 55 | B46: 327.1 | C46: 167.9 | D46: 115 | E46: 88.5 | F46: 72.8 | G46: 62.3 | H46: 54.8 | I46: 49.3 | J46: 45 | K46: 41.6 | W46: 55 | X46: 308.3 | Y46: 158.2 | Z46: 108.3 | AA46: 83.4 | AB46: 68.6 | AC46: 58.7 | AD46: 51.7 | AE46: 46.4 | AF46: 42.4 | AG46: 39.2
A47: 56 | B47: 333.5 | C47: 171.3 | D47: 117.3 | E47: 90.4 | F47: 74.3 | G47: 63.7 | H47: 56.1 | I47: 50.4 | J47: 46.1 | W47: 56 | X47: 314.5 | Y47: 161.5 | Z47: 110.6 | AA47: 85.3 | AB47: 70.1 | AC47: 60 | AD47: 52.9 | AE47: 47.6 | AF47: 43.4
A48: 57 | B48: 340 | C48: 174.8 | D48: 119.8 | E48: 92.3 | F48: 76 | G48: 65.1 | H48: 57.4 | I48: 51.6 | W48: 57 | X48: 320.9 | Y48: 164.9 | Z48: 113 | AA48: 87.1 | AB48: 71.7 | AC48: 61.4 | AD48: 54.1 | AE48: 48.7
A49: 58 | B49: 346.8 | C49: 178.3 | D49: 122.3 | E49: 94.3 | F49: 77.6 | G49: 66.6 | H49: 58.7 | W49: 58 | X49: 327.6 | Y49: 168.4 | Z49: 115.5 | AA49: 89.1 | AB49: 73.3 | AC49: 62.9 | AD49: 55.4
A50: 59 | B50: 353.8 | C50: 182 | D50: 124.9 | E50: 96.4 | F50: 79.4 | G50: 68.1 | W50: 59 | X50: 334.5 | Y50: 172.1 | Z50: 118.1 | AA50: 91.1 | AB50: 75 | AC50: 64.4
A51: 60 | B51: 361.1 | C51: 185.9 | D51: 127.6 | E51: 98.5 | F51: 81.2 | W51: 60 | X51: 341.7 | Y51: 175.9 | Z51: 120.8 | AA51: 93.3 | AB51: 76.8
A52: 61 | B52: 368.7 | C52: 189.9 | D52: 130.4 | E52: 100.8 | W52: 61 | X52: 349.3 | Y52: 179.9 | Z52: 123.6 | AA52: 95.5
A53: 62 | B53: 376.7 | C53: 194.2 | D53: 133.4 | W53: 62 | X53: 357.3 | Y53: 184.1 | Z53: 126.5
A54: 63 | B54: 385.2 | C54: 198.6 | W54: 63 | X54: 365.8 | Y54: 188.6
A55: 64 | B55: 394.3 | W55: 64 | X55: 375

Sheet NRA67 (hidden)
A2: Regular Contribution Elections | W2: Regular Contribution Elections
A3: Table D67: Personal and Dependant’s Benefits, NRA 67 | W3: Table P67: Personal Benefits, NRA 67
A5: Age when notice of election given â | B5: Monthly contribution to purchase £250 of APB at date of election, £ | W5: Age when notice of election given â | X5: Monthly contribution to purchase £250 of APB at date of election, £
A6: Payment period (in years) à | B6: 1 | C6: 2 | D6: 3 | E6: 4 | F6: 5 | G6: 6 | H6: 7 | I6: 8 | J6: 9 | K6: 10 | L6: 11 | M6: 12 | N6: 13 | O6: 14 | P6: 15 | Q6: 16 | R6: 17 | S6: 18 | T6: 19 | U6: 20 | W6: Payment period (in years) à | X6: 1 | Y6: 2 | Z6: 3 | AA6: 4 | AB6: 5 | AC6: 6 | AD6: 7 | AE6: 8 | AF6: 9 | AG6: 10 | AH6: 11 | AI6: 12 | AJ6: 13 | AK6: 14 | AL6: 15 | AM6: 16 | AN6: 17 | AO6: 18 | AP6: 19 | AQ6: 20
A7: 16 | B7: 143.5 | C7: 73.3 | D7: 50 | E7: 38.3 | F7: 31.3 | G7: 26.6 | H7: 23.3 | I7: 20.8 | J7: 18.9 | K7: 17.3 | L7: 16.1 | M7: 15.1 | N7: 14.2 | O7: 13.4 | P7: 12.8 | Q7: 12.2 | R7: 11.7 | S7: 11.3 | T7: 10.9 | U7: 10.6 | W7: 16 | X7: 134.1 | Y7: 68.5 | Z7: 46.7 | AA7: 35.8 | AB7: 29.2 | AC7: 24.9 | AD7: 21.8 | AE7: 19.4 | AF7: 17.6 | AG7: 16.2 | AH7: 15 | AI7: 14.1 | AJ7: 13.2 | AK7: 12.5 | AL7: 11.9 | AM7: 11.4 | AN7: 11 | AO7: 10.6 | AP7: 10.2 | AQ7: 9.9
A8: 17 | B8: 146.7 | C8: 75 | D8: 51.1 | E8: 39.1 | F8: 32 | G8: 27.2 | H8: 23.8 | I8: 21.3 | J8: 19.3 | K8: 17.7 | L8: 16.5 | M8: 15.4 | N8: 14.5 | O8: 13.7 | P8: 13.1 | Q8: 12.5 | R8: 12 | S8: 11.5 | T8: 11.1 | U8: 10.8 | W8: 17 | X8: 137 | Y8: 70 | Z8: 47.7 | AA8: 36.5 | AB8: 29.9 | AC8: 25.4 | AD8: 22.2 | AE8: 19.9 | AF8: 18 | AG8: 16.6 | AH8: 15.4 | AI8: 14.4 | AJ8: 13.5 | AK8: 12.8 | AL8: 12.2 | AM8: 11.7 | AN8: 11.2 | AO8: 10.8 | AP8: 10.4 | AQ8: 10.1
A9: 18 | B9: 150.1 | C9: 76.7 | D9: 52.3 | E9: 40 | F9: 32.7 | G9: 27.8 | H9: 24.4 | I9: 21.8 | J9: 19.8 | K9: 18.2 | L9: 16.8 | M9: 15.8 | N9: 14.8 | O9: 14.1 | P9: 13.4 | Q9: 12.8 | R9: 12.3 | S9: 11.8 | T9: 11.4 | U9: 11 | W9: 18 | X9: 139.9 | Y9: 71.5 | Z9: 48.7 | AA9: 37.3 | AB9: 30.5 | AC9: 26 | AD9: 22.7 | AE9: 20.3 | AF9: 18.4 | AG9: 16.9 | AH9: 15.7 | AI9: 14.7 | AJ9: 13.8 | AK9: 13.1 | AL9: 12.5 | AM9: 11.9 | AN9: 11.4 | AO9: 11 | AP9: 10.6 | AQ9: 10.3
A10: 19 | B10: 153.5 | C10: 78.4 | D10: 53.4 | E10: 40.9 | F10: 33.5 | G10: 28.5 | H10: 24.9 | I10: 22.3 | J10: 20.2 | K10: 18.6 | L10: 17.2 | M10: 16.1 | N10: 15.2 | O10: 14.4 | P10: 13.7 | Q10: 13.1 | R10: 12.6 | S10: 12.1 | T10: 11.7 | U10: 11.3 | W10: 19 | X10: 142.9 | Y10: 73 | Z10: 49.7 | AA10: 38.1 | AB10: 31.1 | AC10: 26.5 | AD10: 23.2 | AE10: 20.7 | AF10: 18.8 | AG10: 17.3 | AH10: 16 | AI10: 15 | AJ10: 14.1 | AK10: 13.4 | AL10: 12.7 | AM10: 12.2 | AN10: 11.7 | AO10: 11.2 | AP10: 10.9 | AQ10: 10.5
A11: 20 | B11: 156.7 | C11: 80.1 | D11: 54.5 | E11: 41.8 | F11: 34.2 | G11: 29.1 | H11: 25.4 | I11: 22.7 | J11: 20.6 | K11: 19 | L11: 17.6 | M11: 16.4 | N11: 15.5 | O11: 14.7 | P11: 14 | Q11: 13.4 | R11: 12.8 | S11: 12.3 | T11: 11.9 | U11: 11.5 | W11: 20 | X11: 145.9 | Y11: 74.5 | Z11: 50.8 | AA11: 38.9 | AB11: 31.8 | AC11: 27.1 | AD11: 23.7 | AE11: 21.2 | AF11: 19.2 | AG11: 17.6 | AH11: 16.4 | AI11: 15.3 | AJ11: 14.4 | AK11: 13.7 | AL11: 13 | AM11: 12.4 | AN11: 11.9 | AO11: 11.5 | AP11: 11.1 | AQ11: 10.7
A12: 21 | B12: 160 | C12: 81.7 | D12: 55.7 | E12: 42.7 | F12: 34.9 | G12: 29.7 | H12: 26 | I12: 23.2 | J12: 21.1 | K12: 19.3 | L12: 17.9 | M12: 16.8 | N12: 15.8 | O12: 15 | P12: 14.3 | Q12: 13.6 | R12: 13.1 | S12: 12.6 | T12: 12.2 | U12: 11.8 | W12: 21 | X12: 148.9 | Y12: 76.1 | Z12: 51.8 | AA12: 39.7 | AB12: 32.5 | AC12: 27.6 | AD12: 24.2 | AE12: 21.6 | AF12: 19.6 | AG12: 18 | AH12: 16.7 | AI12: 15.6 | AJ12: 14.7 | AK12: 13.9 | AL12: 13.3 | AM12: 12.7 | AN12: 12.2 | AO12: 11.7 | AP12: 11.3 | AQ12: 11
A13: 22 | B13: 163.3 | C13: 83.4 | D13: 56.8 | E13: 43.5 | F13: 35.6 | G13: 30.3 | H13: 26.5 | I13: 23.7 | J13: 21.5 | K13: 19.7 | L13: 18.3 | M13: 17.1 | N13: 16.1 | O13: 15.3 | P13: 14.6 | Q13: 13.9 | R13: 13.4 | S13: 12.9 | T13: 12.4 | U13: 12 | W13: 22 | X13: 152 | Y13: 77.7 | Z13: 52.9 | AA13: 40.6 | AB13: 33.1 | AC13: 28.2 | AD13: 24.7 | AE13: 22.1 | AF13: 20 | AG13: 18.4 | AH13: 17.1 | AI13: 16 | AJ13: 15 | AK13: 14.2 | AL13: 13.6 | AM13: 13 | AN13: 12.4 | AO13: 12 | AP13: 11.6 | AQ13: 11.2
A14: 23 | B14: 166.6 | C14: 85.2 | D14: 58 | E14: 44.5 | F14: 36.3 | G14: 30.9 | H14: 27.1 | I14: 24.2 | J14: 21.9 | K14: 20.2 | L14: 18.7 | M14: 17.5 | N14: 16.5 | O14: 15.6 | P14: 14.9 | Q14: 14.2 | R14: 13.6 | S14: 13.1 | T14: 12.7 | U14: 12.3 | W14: 23 | X14: 155.2 | Y14: 79.3 | Z14: 54 | AA14: 41.4 | AB14: 33.8 | AC14: 28.8 | AD14: 25.2 | AE14: 22.5 | AF14: 20.4 | AG14: 18.8 | AH14: 17.4 | AI14: 16.3 | AJ14: 15.3 | AK14: 14.5 | AL14: 13.8 | AM14: 13.2 | AN14: 12.7 | AO14: 12.2 | AP14: 11.8 | AQ14: 11.4
A15: 24 | B15: 170.1 | C15: 86.9 | D15: 59.2 | E15: 45.4 | F15: 37.1 | G15: 31.6 | H15: 27.6 | I15: 24.7 | J15: 22.4 | K15: 20.6 | L15: 19.1 | M15: 17.9 | N15: 16.8 | O15: 15.9 | P15: 15.2 | Q15: 14.5 | R15: 13.9 | S15: 13.4 | T15: 13 | U15: 12.5 | W15: 24 | X15: 158.4 | Y15: 81 | Z15: 55.2 | AA15: 42.3 | AB15: 34.5 | AC15: 29.4 | AD15: 25.7 | AE15: 23 | AF15: 20.9 | AG15: 19.2 | AH15: 17.8 | AI15: 16.6 | AJ15: 15.7 | AK15: 14.8 | AL15: 14.1 | AM15: 13.5 | AN15: 13 | AO15: 12.5 | AP15: 12.1 | AQ15: 11.7
A16: 25 | B16: 173.6 | C16: 88.7 | D16: 60.4 | E16: 46.3 | F16: 37.8 | G16: 32.2 | H16: 28.2 | I16: 25.2 | J16: 22.9 | K16: 21 | L16: 19.5 | M16: 18.2 | N16: 17.2 | O16: 16.3 | P16: 15.5 | Q16: 14.8 | R16: 14.2 | S16: 13.7 | T16: 13.2 | U16: 12.8 | W16: 25 | X16: 161.7 | Y16: 82.6 | Z16: 56.3 | AA16: 43.1 | AB16: 35.3 | AC16: 30 | AD16: 26.3 | AE16: 23.5 | AF16: 21.3 | AG16: 19.6 | AH16: 18.2 | AI16: 17 | AJ16: 16 | AK16: 15.2 | AL16: 14.4 | AM16: 13.8 | AN16: 13.2 | AO16: 12.8 | AP16: 12.3 | AQ16: 11.9
A17: 26 | B17: 177.2 | C17: 90.5 | D17: 61.7 | E17: 47.3 | F17: 38.6 | G17: 32.9 | H17: 28.8 | I17: 25.7 | J17: 23.3 | K17: 21.4 | L17: 19.9 | M17: 18.6 | N17: 17.5 | O17: 16.6 | P17: 15.8 | Q17: 15.1 | R17: 14.5 | S17: 14 | T17: 13.5 | U17: 13.1 | W17: 26 | X17: 165.1 | Y17: 84.4 | Z17: 57.5 | AA17: 44 | AB17: 36 | AC17: 30.6 | AD17: 26.8 | AE17: 24 | AF17: 21.7 | AG17: 20 | AH17: 18.5 | AI17: 17.3 | AJ17: 16.3 | AK17: 15.5 | AL17: 14.7 | AM17: 14.1 | AN17: 13.5 | AO17: 13 | AP17: 12.6 | AQ17: 12.2
A18: 27 | B18: 180.8 | C18: 92.4 | D18: 62.9 | E18: 48.2 | F18: 39.4 | G18: 33.6 | H18: 29.4 | I18: 26.2 | J18: 23.8 | K18: 21.9 | L18: 20.3 | M18: 19 | N18: 17.9 | O18: 17 | P18: 16.1 | Q18: 15.4 | R18: 14.8 | S18: 14.3 | T18: 13.8 | U18: 13.4 | W18: 27 | X18: 168.5 | Y18: 86.1 | Z18: 58.7 | AA18: 44.9 | AB18: 36.7 | AC18: 31.3 | AD18: 27.4 | AE18: 24.5 | AF18: 22.2 | AG18: 20.4 | AH18: 18.9 | AI18: 17.7 | AJ18: 16.7 | AK18: 15.8 | AL18: 15 | AM18: 14.4 | AN18: 13.8 | AO18: 13.3 | AP18: 12.9 | AQ18: 12.4
A19: 28 | B19: 184.5 | C19: 94.3 | D19: 64.2 | E19: 49.2 | F19: 40.2 | G19: 34.3 | H19: 30 | I19: 26.8 | J19: 24.3 | K19: 22.3 | L19: 20.7 | M19: 19.4 | N19: 18.3 | O19: 17.3 | P19: 16.5 | Q19: 15.8 | R19: 15.1 | S19: 14.6 | T19: 14.1 | U19: 13.6 | W19: 28 | X19: 172 | Y19: 87.9 | Z19: 59.9 | AA19: 45.9 | AB19: 37.5 | AC19: 31.9 | AD19: 27.9 | AE19: 25 | AF19: 22.7 | AG19: 20.8 | AH19: 19.3 | AI19: 18.1 | AJ19: 17 | AK19: 16.1 | AL19: 15.4 | AM19: 14.7 | AN19: 14.1 | AO19: 13.6 | AP19: 13.1 | AQ19: 12.7
A20: 29 | B20: 188.3 | C20: 96.2 | D20: 65.6 | E20: 50.2 | F20: 41.1 | G20: 35 | H20: 30.6 | I20: 27.4 | J20: 24.8 | K20: 22.8 | L20: 21.2 | M20: 19.8 | N20: 18.7 | O20: 17.7 | P20: 16.8 | Q20: 16.1 | R20: 15.5 | S20: 14.9 | T20: 14.4 | U20: 13.9 | W20: 29 | X20: 175.5 | Y20: 89.7 | Z20: 61.1 | AA20: 46.8 | AB20: 38.3 | AC20: 32.6 | AD20: 28.5 | AE20: 25.5 | AF20: 23.1 | AG20: 21.3 | AH20: 19.7 | AI20: 18.5 | AJ20: 17.4 | AK20: 16.5 | AL20: 15.7 | AM20: 15 | AN20: 14.4 | AO20: 13.9 | AP20: 13.4 | AQ20: 13
A21: 30 | B21: 192.2 | C21: 98.2 | D21: 66.9 | E21: 51.3 | F21: 41.9 | G21: 35.7 | H21: 31.2 | I21: 27.9 | J21: 25.3 | K21: 23.3 | L21: 21.6 | M21: 20.2 | N21: 19.1 | O21: 18.1 | P21: 17.2 | Q21: 16.4 | R21: 15.8 | S21: 15.2 | T21: 14.7 | U21: 14.2 | W21: 30 | X21: 179.1 | Y21: 91.6 | Z21: 62.4 | AA21: 47.8 | AB21: 39.1 | AC21: 33.3 | AD21: 29.1 | AE21: 26 | AF21: 23.6 | AG21: 21.7 | AH21: 20.1 | AI21: 18.9 | AJ21: 17.8 | AK21: 16.8 | AL21: 16 | AM21: 15.3 | AN21: 14.7 | AO21: 14.2 | AP21: 13.7 | AQ21: 13.3
A22: 31 | B22: 196.1 | C22: 100.2 | D22: 68.3 | E22: 52.3 | F22: 42.8 | G22: 36.4 | H22: 31.9 | I22: 28.5 | J22: 25.9 | K22: 23.8 | L22: 22.1 | M22: 20.6 | N22: 19.5 | O22: 18.4 | P22: 17.6 | Q22: 16.8 | R22: 16.1 | S22: 15.5 | T22: 15 | U22: 14.5 | W22: 31 | X22: 182.8 | Y22: 93.4 | Z22: 63.7 | AA22: 48.8 | AB22: 39.9 | AC22: 34 | AD22: 29.7 | AE22: 26.6 | AF22: 24.1 | AG22: 22.2 | AH22: 20.6 | AI22: 19.2 | AJ22: 18.1 | AK22: 17.2 | AL22: 16.4 | AM22: 15.7 | AN22: 15 | AO22: 14.5 | AP22: 14 | AQ22: 13.6
A23: 32 | B23: 200.1 | C23: 102.3 | D23: 69.7 | E23: 53.4 | F23: 43.7 | G23: 37.2 | H23: 32.6 | I23: 29.1 | J23: 26.4 | K23: 24.3 | L23: 22.5 | M23: 21.1 | N23: 19.9 | O23: 18.8 | P23: 17.9 | Q23: 17.1 | R23: 16.5 | S23: 15.9 | T23: 15.3 | U23: 14.9 | W23: 32 | X23: 186.6 | Y23: 95.4 | Z23: 65 | AA23: 49.8 | AB23: 40.7 | AC23: 34.7 | AD23: 30.3 | AE23: 27.1 | AF23: 24.6 | AG23: 22.6 | AH23: 21 | AI23: 19.7 | AJ23: 18.5 | AK23: 17.5 | AL23: 16.7 | AM23: 16 | AN23: 15.4 | AO23: 14.8 | AP23: 14.3 | AQ23: 13.8
A24: 33 | B24: 204.2 | C24: 104.4 | D24: 71.1 | E24: 54.5 | F24: 44.6 | G24: 37.9 | H24: 33.2 | I24: 29.7 | J24: 27 | K24: 24.8 | L24: 23 | M24: 21.5 | N24: 20.3 | O24: 19.2 | P24: 18.3 | Q24: 17.5 | R24: 16.8 | S24: 16.2 | T24: 15.7 | U24: 15.2 | W24: 33 | X24: 190.4 | Y24: 97.3 | Z24: 66.3 | AA24: 50.8 | AB24: 41.5 | AC24: 35.4 | AD24: 31 | AE24: 27.7 | AF24: 25.1 | AG24: 23.1 | AH24: 21.4 | AI24: 20.1 | AJ24: 18.9 | AK24: 17.9 | AL24: 17.1 | AM24: 16.3 | AN24: 15.7 | AO24: 15.1 | AP24: 14.6 | AQ24: 14.1
A25: 34 | B25: 208.3 | C25: 106.5 | D25: 72.6 | E25: 55.6 | F25: 45.5 | G25: 38.7 | H25: 33.9 | I25: 30.3 | J25: 27.5 | K25: 25.3 | L25: 23.5 | M25: 22 | N25: 20.7 | O25: 19.6 | P25: 18.7 | Q25: 17.9 | R25: 17.2 | S25: 16.5 | T25: 16 | U25: 15.5 | W25: 34 | X25: 194.3 | Y25: 99.3 | Z25: 67.7 | AA25: 51.9 | AB25: 42.4 | AC25: 36.1 | AD25: 31.6 | AE25: 28.3 | AF25: 25.7 | AG25: 23.6 | AH25: 21.9 | AI25: 20.5 | AJ25: 19.3 | AK25: 18.3 | AL25: 17.4 | AM25: 16.7 | AN25: 16 | AO25: 15.4 | AP25: 14.9 | AQ25: 14.5
A26: 35 | B26: 212.5 | C26: 108.6 | D26: 74 | E26: 56.7 | F26: 46.4 | G26: 39.5 | H26: 34.6 | I26: 30.9 | J26: 28.1 | K26: 25.8 | L26: 24 | M26: 22.4 | N26: 21.1 | O26: 20 | P26: 19.1 | Q26: 18.3 | R26: 17.5 | S26: 16.9 | T26: 16.3 | U26: 15.8 | W26: 35 | X26: 198.2 | Y26: 101.3 | Z26: 69 | AA26: 52.9 | AB26: 43.3 | AC26: 36.8 | AD26: 32.3 | AE26: 28.8 | AF26: 26.2 | AG26: 24.1 | AH26: 22.3 | AI26: 20.9 | AJ26: 19.7 | AK26: 18.7 | AL26: 17.8 | AM26: 17 | AN26: 16.4 | AO26: 15.8 | AP26: 15.2 | AQ26: 14.8
A27: 36 | B27: 216.7 | C27: 110.8 | D27: 75.5 | E27: 57.9 | F27: 47.3 | G27: 40.3 | H27: 35.3 | I27: 31.5 | J27: 28.6 | K27: 26.3 | L27: 24.4 | M27: 22.9 | N27: 21.6 | O27: 20.4 | P27: 19.5 | Q27: 18.6 | R27: 17.9 | S27: 17.3 | T27: 16.7 | U27: 16.2 | W27: 36 | X27: 202.2 | Y27: 103.4 | Z27: 70.4 | AA27: 54 | AB27: 44.1 | AC27: 37.6 | AD27: 32.9 | AE27: 29.4 | AF27: 26.7 | AG27: 24.6 | AH27: 22.8 | AI27: 21.3 | AJ27: 20.1 | AK27: 19.1 | AL27: 18.2 | AM27: 17.4 | AN27: 16.7 | AO27: 16.1 | AP27: 15.6 | AQ27: 15.1
A28: 37 | B28: 221.1 | C28: 113 | D28: 77 | E28: 59.1 | F28: 48.3 | G28: 41.1 | H28: 36 | I28: 32.2 | J28: 29.2 | K28: 26.9 | L28: 25 | M28: 23.4 | N28: 22 | O28: 20.9 | P28: 19.9 | Q28: 19 | R28: 18.3 | S28: 17.6 | T28: 17.1 | U28: 16.5 | W28: 37 | X28: 206.3 | Y28: 105.4 | Z28: 71.9 | AA28: 55.1 | AB28: 45 | AC28: 38.4 | AD28: 33.6 | AE28: 30 | AF28: 27.3 | AG28: 25.1 | AH28: 23.3 | AI28: 21.8 | AJ28: 20.5 | AK28: 19.5 | AL28: 18.6 | AM28: 17.8 | AN28: 17.1 | AO28: 16.5 | AP28: 15.9 | AQ28: 15.4
A29: 38 | B29: 225.5 | C29: 115.3 | D29: 78.6 | E29: 60.2 | F29: 49.3 | G29: 42 | H29: 36.7 | I29: 32.9 | J29: 29.8 | K29: 27.4 | L29: 25.5 | M29: 23.8 | N29: 22.5 | O29: 21.3 | P29: 20.3 | Q29: 19.4 | R29: 18.7 | S29: 18 | T29: 17.4 | U29: 16.9 | W29: 38 | X29: 210.4 | Y29: 107.6 | Z29: 73.3 | AA29: 56.2 | AB29: 46 | AC29: 39.1 | AD29: 34.3 | AE29: 30.7 | AF29: 27.8 | AG29: 25.6 | AH29: 23.8 | AI29: 22.3 | AJ29: 21 | AK29: 19.9 | AL29: 19 | AM29: 18.1 | AN29: 17.4 | AO29: 16.8 | AP29: 16.3 | AQ29: 15.8
A30: 39 | B30: 230 | C30: 117.6 | D30: 80.1 | E30: 61.5 | F30: 50.3 | G30: 42.8 | H30: 37.5 | I30: 33.5 | J30: 30.5 | K30: 28 | L30: 26 | M30: 24.3 | N30: 23 | O30: 21.8 | P30: 20.7 | Q30: 19.9 | R30: 19.1 | S30: 18.4 | T30: 17.8 | U30: 17.3 | W30: 39 | X30: 214.6 | Y30: 109.7 | Z30: 74.8 | AA30: 57.4 | AB30: 46.9 | AC30: 40 | AD30: 35 | AE30: 31.3 | AF30: 28.4 | AG30: 26.1 | AH30: 24.3 | AI30: 22.7 | AJ30: 21.4 | AK30: 20.3 | AL30: 19.4 | AM30: 18.5 | AN30: 17.8 | AO30: 17.2 | AP30: 16.6 | AQ30: 16.1
A31: 40 | B31: 234.5 | C31: 119.9 | D31: 81.8 | E31: 62.7 | F31: 51.3 | G31: 43.7 | H31: 38.3 | I31: 34.2 | J31: 31.1 | K31: 28.6 | L31: 26.5 | M31: 24.9 | N31: 23.4 | O31: 22.2 | P31: 21.2 | Q31: 20.3 | R31: 19.5 | S31: 18.8 | T31: 18.2 | U31: 17.7 | W31: 40 | X31: 219 | Y31: 112 | Z31: 76.3 | AA31: 58.5 | AB31: 47.9 | AC31: 40.8 | AD31: 35.7 | AE31: 31.9 | AF31: 29 | AG31: 26.7 | AH31: 24.8 | AI31: 23.2 | AJ31: 21.9 | AK31: 20.8 | AL31: 19.8 | AM31: 19 | AN31: 18.2 | AO31: 17.6 | AP31: 17 | AQ31: 16.5
A32: 41 | B32: 239.2 | C32: 122.3 | D32: 83.4 | E32: 64 | F32: 52.3 | G32: 44.6 | H32: 39 | I32: 34.9 | J32: 31.7 | K32: 29.2 | L32: 27.1 | M32: 25.4 | N32: 23.9 | O32: 22.7 | P32: 21.7 | Q32: 20.7 | R32: 20 | S32: 19.3 | T32: 18.6 | U32: 18.1 | W32: 41 | X32: 223.4 | Y32: 114.2 | Z32: 77.9 | AA32: 59.7 | AB32: 48.8 | AC32: 41.6 | AD32: 36.5 | AE32: 32.6 | AF32: 29.6 | AG32: 27.2 | AH32: 25.3 | AI32: 23.7 | AJ32: 22.4 | AK32: 21.2 | AL32: 20.2 | AM32: 19.4 | AN32: 18.6 | AO32: 18 | AP32: 17.4 | AQ32: 16.9
A33: 42 | B33: 243.9 | C33: 124.7 | D33: 85.1 | E33: 65.2 | F33: 53.4 | G33: 45.5 | H33: 39.8 | I33: 35.6 | J33: 32.4 | K33: 29.8 | L33: 27.7 | M33: 25.9 | N33: 24.5 | O33: 23.2 | P33: 22.1 | Q33: 21.2 | R33: 20.4 | S33: 19.7 | T33: 19.1 | U33: 18.5 | W33: 42 | X33: 227.8 | Y33: 116.5 | Z33: 79.4 | AA33: 60.9 | AB33: 49.8 | AC33: 42.5 | AD33: 37.2 | AE33: 33.3 | AF33: 30.2 | AG33: 27.8 | AH33: 25.8 | AI33: 24.2 | AJ33: 22.8 | AK33: 21.7 | AL33: 20.7 | AM33: 19.8 | AN33: 19.1 | AO33: 18.4 | AP33: 17.8 | AQ33: 17.3
A34: 43 | B34: 248.7 | C34: 127.2 | D34: 86.7 | E34: 66.5 | F34: 54.4 | G34: 46.4 | H34: 40.6 | I34: 36.4 | J34: 33 | K34: 30.4 | L34: 28.2 | M34: 26.5 | N34: 25 | O34: 23.7 | P34: 22.6 | Q34: 21.7 | R34: 20.9 | S34: 20.2 | T34: 19.5 | U34: 19 | W34: 43 | X34: 232.3 | Y34: 118.8 | Z34: 81 | AA34: 62.2 | AB34: 50.9 | AC34: 43.3 | AD34: 38 | AE34: 34 | AF34: 30.9 | AG34: 28.4 | AH34: 26.4 | AI34: 24.7 | AJ34: 23.3 | AK34: 22.2 | AL34: 21.1 | AM34: 20.3 | AN34: 19.5 | AO34: 18.8 | AP34: 18.2 | AQ34: 17.7
A35: 44 | B35: 253.5 | C35: 129.7 | D35: 88.4 | E35: 67.9 | F35: 55.5 | G35: 47.3 | H35: 41.5 | I35: 37.1 | J35: 33.7 | K35: 31 | L35: 28.8 | M35: 27 | N35: 25.5 | O35: 24.2 | P35: 23.1 | Q35: 22.2 | R35: 21.4 | S35: 20.6 | T35: 20 | U35: 19.4 | W35: 44 | X35: 236.9 | Y35: 121.2 | Z35: 82.7 | AA35: 63.4 | AB35: 51.9 | AC35: 44.2 | AD35: 38.7 | AE35: 34.7 | AF35: 31.5 | AG35: 29 | AH35: 27 | AI35: 25.3 | AJ35: 23.9 | AK35: 22.7 | AL35: 21.6 | AM35: 20.7 | AN35: 20 | AO35: 19.3 | AP35: 18.7 | AQ35: 18.1
A36: 45 | B36: 258.5 | C36: 132.2 | D36: 90.2 | E36: 69.2 | F36: 56.6 | G36: 48.3 | H36: 42.3 | I36: 37.9 | J36: 34.4 | K36: 31.7 | L36: 29.5 | M36: 27.6 | N36: 26.1 | O36: 24.8 | P36: 23.7 | Q36: 22.7 | R36: 21.9 | S36: 21.1 | T36: 20.5 | U36: 19.9 | W36: 45 | X36: 241.6 | Y36: 123.6 | Z36: 84.3 | AA36: 64.7 | AB36: 52.9 | AC36: 45.1 | AD36: 39.5 | AE36: 35.4 | AF36: 32.2 | AG36: 29.6 | AH36: 27.5 | AI36: 25.8 | AJ36: 24.4 | AK36: 23.2 | AL36: 22.1 | AM36: 21.2 | AN36: 20.4 | AO36: 19.7 | AP36: 19.1 | AQ36: 18.6
A37: 46 | B37: 263.5 | C37: 134.8 | D37: 92 | E37: 70.6 | F37: 57.7 | G37: 49.2 | H37: 43.2 | I37: 38.6 | J37: 35.1 | K37: 32.4 | L37: 30.1 | M37: 28.2 | N37: 26.7 | O37: 25.4 | P37: 24.2 | Q37: 23.2 | R37: 22.4 | S37: 21.6 | T37: 21 | U37: 20.4 | W37: 46 | X37: 246.4 | Y37: 126.1 | Z37: 86 | AA37: 66 | AB37: 54 | AC37: 46 | AD37: 40.4 | AE37: 36.1 | AF37: 32.9 | AG37: 30.3 | AH37: 28.2 | AI37: 26.4 | AJ37: 24.9 | AK37: 23.7 | AL37: 22.6 | AM37: 21.7 | AN37: 20.9 | AO37: 20.2 | AP37: 19.6 | AQ37: 19.1
A38: 47 | B38: 268.6 | C38: 137.4 | D38: 93.8 | E38: 72 | F38: 58.9 | G38: 50.2 | H38: 44.1 | I38: 39.5 | J38: 35.9 | K38: 33.1 | L38: 30.8 | M38: 28.9 | N38: 27.3 | O38: 25.9 | P38: 24.8 | Q38: 23.8 | R38: 22.9 | S38: 22.2 | T38: 21.5 | W38: 47 | X38: 251.3 | Y38: 128.6 | Z38: 87.7 | AA38: 67.3 | AB38: 55.1 | AC38: 47 | AD38: 41.2 | AE38: 36.9 | AF38: 33.6 | AG38: 30.9 | AH38: 28.8 | AI38: 27 | AJ38: 25.5 | AK38: 24.3 | AL38: 23.2 | AM38: 22.3 | AN38: 21.5 | AO38: 20.7 | AP38: 20.1
A39: 48 | B39: 273.8 | C39: 140.1 | D39: 95.6 | E39: 73.4 | F39: 60.1 | G39: 51.3 | H39: 45 | I39: 40.3 | J39: 36.7 | K39: 33.8 | L39: 31.5 | M39: 29.6 | N39: 27.9 | O39: 26.6 | P39: 25.4 | Q39: 24.4 | R39: 23.5 | S39: 22.7 | W39: 48 | X39: 256.2 | Y39: 131.1 | Z39: 89.5 | AA39: 68.7 | AB39: 56.3 | AC39: 48 | AD39: 42.1 | AE39: 37.7 | AF39: 34.3 | AG39: 31.6 | AH39: 29.5 | AI39: 27.7 | AJ39: 26.1 | AK39: 24.9 | AL39: 23.8 | AM39: 22.8 | AN39: 22 | AO39: 21.3
A40: 49 | B40: 279.1 | C40: 142.9 | D40: 97.5 | E40: 74.9 | F40: 61.4 | G40: 52.4 | H40: 46 | I40: 41.2 | J40: 37.5 | K40: 34.6 | L40: 32.2 | M40: 30.3 | N40: 28.6 | O40: 27.2 | P40: 26 | Q40: 25 | R40: 24.1 | W40: 49 | X40: 261.3 | Y40: 133.8 | Z40: 91.3 | AA40: 70.1 | AB40: 57.5 | AC40: 49 | AD40: 43 | AE40: 38.6 | AF40: 35.1 | AG40: 32.4 | AH40: 30.2 | AI40: 28.3 | AJ40: 26.8 | AK40: 25.5 | AL40: 24.4 | AM40: 23.4 | AN40: 22.6
A41: 50 | B41: 284.6 | C41: 145.8 | D41: 99.5 | E41: 76.5 | F41: 62.7 | G41: 53.5 | H41: 47 | I41: 42.2 | J41: 38.4 | K41: 35.4 | L41: 33 | M41: 31 | N41: 29.3 | O41: 27.9 | P41: 26.7 | Q41: 25.7 | W41: 50 | X41: 266.6 | Y41: 136.5 | Z41: 93.2 | AA41: 71.6 | AB41: 58.7 | AC41: 50.1 | AD41: 44 | AE41: 39.5 | AF41: 36 | AG41: 33.2 | AH41: 30.9 | AI41: 29 | AJ41: 27.5 | AK41: 26.2 | AL41: 25 | AM41: 24.1
A42: 51 | B42: 290.2 | C42: 148.7 | D42: 101.6 | E42: 78.1 | F42: 64 | G42: 54.7 | H42: 48.1 | I42: 43.1 | J42: 39.3 | K42: 36.3 | L42: 33.8 | M42: 31.8 | N42: 30.1 | O42: 28.6 | P42: 27.4 | W42: 51 | X42: 271.9 | Y42: 139.3 | Z42: 95.2 | AA42: 73.2 | AB42: 60 | AC42: 51.3 | AD42: 45 | AE42: 40.4 | AF42: 36.8 | AG42: 34 | AH42: 31.7 | AI42: 29.8 | AJ42: 28.2 | AK42: 26.8 | AL42: 25.7
A43: 52 | B43: 295.8 | C43: 151.6 | D43: 103.6 | E43: 79.7 | F43: 65.4 | G43: 55.9 | H43: 49.1 | I43: 44.1 | J43: 40.2 | K43: 37.1 | L43: 34.6 | M43: 32.6 | N43: 30.8 | O43: 29.4 | W43: 52 | X43: 277.3 | Y43: 142.2 | Z43: 97.2 | AA43: 74.7 | AB43: 61.3 | AC43: 52.4 | AD43: 46.1 | AE43: 41.3 | AF43: 37.7 | AG43: 34.8 | AH43: 32.5 | AI43: 30.5 | AJ43: 28.9 | AK43: 27.5
A44: 53 | B44: 301.5 | C44: 154.6 | D44: 105.7 | E44: 81.3 | F44: 66.8 | G44: 57.1 | H44: 50.2 | I44: 45.1 | J44: 41.1 | K44: 38 | L44: 35.5 | M44: 33.4 | N44: 31.6 | W44: 53 | X44: 282.8 | Y44: 145 | Z44: 99.2 | AA44: 76.3 | AB44: 62.6 | AC44: 53.5 | AD44: 47.1 | AE44: 42.3 | AF44: 38.6 | AG44: 35.6 | AH44: 33.3 | AI44: 31.3 | AJ44: 29.6
A45: 54 | B45: 307.1 | C45: 157.6 | D45: 107.8 | E45: 83 | F45: 68.2 | G45: 58.3 | H45: 51.3 | I45: 46.1 | J45: 42.1 | K45: 38.9 | L45: 36.3 | M45: 34.2 | W45: 54 | X45: 288.3 | Y45: 147.9 | Z45: 101.2 | AA45: 77.9 | AB45: 64 | AC45: 54.7 | AD45: 48.2 | AE45: 43.3 | AF45: 39.5 | AG45: 36.5 | AH45: 34.1 | AI45: 32.1
A46: 55 | B46: 312.9 | C46: 160.6 | D46: 110 | E46: 84.7 | F46: 69.6 | G46: 59.6 | H46: 52.4 | I46: 47.1 | J46: 43 | K46: 39.8 | L46: 37.2 | W46: 55 | X46: 293.9 | Y46: 150.9 | Z46: 103.3 | AA46: 79.6 | AB46: 65.4 | AC46: 55.9 | AD46: 49.3 | AE46: 44.3 | AF46: 40.4 | AG46: 37.4 | AH46: 34.9
A47: 56 | B47: 318.8 | C47: 163.8 | D47: 112.2 | E47: 86.4 | F47: 71.1 | G47: 60.9 | H47: 53.6 | I47: 48.2 | J47: 44 | K47: 40.7 | W47: 56 | X47: 299.7 | Y47: 153.9 | Z47: 105.4 | AA47: 81.2 | AB47: 66.8 | AC47: 57.2 | AD47: 50.4 | AE47: 45.3 | AF47: 41.4 | AG47: 38.3
A48: 57 | B48: 324.9 | C48: 167 | D48: 114.4 | E48: 88.2 | F48: 72.6 | G48: 62.2 | H48: 54.8 | I48: 49.3 | J48: 45.1 | W48: 57 | X48: 305.6 | Y48: 157 | Z48: 107.6 | AA48: 83 | AB48: 68.3 | AC48: 58.5 | AD48: 51.5 | AE48: 46.4 | AF48: 42.4
A49: 58 | B49: 331.1 | C49: 170.2 | D49: 116.7 | E49: 90.1 | F49: 74.1 | G49: 63.5 | H49: 56 | I49: 50.4 | W49: 58 | X49: 311.7 | Y49: 160.3 | Z49: 109.9 | AA49: 84.8 | AB49: 69.8 | AC49: 59.8 | AD49: 52.7 | AE49: 47.5
A50: 59 | B50: 337.5 | C50: 173.6 | D50: 119.1 | E50: 92 | F50: 75.7 | G50: 64.9 | H50: 57.3 | W50: 59 | X50: 318 | Y50: 163.6 | Z50: 112.3 | AA50: 86.7 | AB50: 71.4 | AC50: 61.2 | AD50: 54
A51: 60 | B51: 344.2 | C51: 177.2 | D51: 121.6 | E51: 93.9 | F51: 77.4 | G51: 66.4 | W51: 60 | X51: 324.6 | Y51: 167.1 | Z51: 114.7 | AA51: 88.6 | AB51: 73 | AC51: 62.6
A52: 61 | B52: 351.2 | C52: 180.9 | D52: 124.2 | E52: 96 | F52: 79.1 | W52: 61 | X52: 331.6 | Y52: 170.8 | Z52: 117.3 | AA52: 90.6 | AB52: 74.7
A53: 62 | B53: 358.5 | C53: 184.7 | D53: 127 | E53: 98.1 | W53: 62 | X53: 338.9 | Y53: 174.7 | Z53: 120 | AA53: 92.8
A54: 63 | B54: 366.2 | C54: 188.8 | D54: 129.8 | W54: 63 | X54: 346.7 | Y54: 178.8 | Z54: 122.9
A55: 64 | B55: 374.5 | C55: 193.2 | W55: 64 | X55: 355 | Y55: 183.2
A56: 65 | B56: 383.4 | W56: 65 | X56: 364

Sheet NRA68 (hidden)
A2: Regular Contribution Elections | W2: Regular Contribution Elections
A3: Table D68: Personal and Dependant’s Benefits, NRA 68 | W3: Table P68: Personal Benefits, NRA 68
A5: Age when notice of election given â | B5: Monthly contribution to purchase £250 of APB at date of election, £ | W5: Age when notice of election given â | X5: Monthly contribution to purchase £250 of APB at date of election, £
A6: Payment period (in years) à | B6: 1 | C6: 2 | D6: 3 | E6: 4 | F6: 5 | G6: 6 | H6: 7 | I6: 8 | J6: 9 | K6: 10 | L6: 11 | M6: 12 | N6: 13 | O6: 14 | P6: 15 | Q6: 16 | R6: 17 | S6: 18 | T6: 19 | U6: 20 | W6: Payment period (in years) à | X6: 1 | Y6: 2 | Z6: 3 | AA6: 4 | AB6: 5 | AC6: 6 | AD6: 7 | AE6: 8 | AF6: 9 | AG6: 10 | AH6: 11 | AI6: 12 | AJ6: 13 | AK6: 14 | AL6: 15 | AM6: 16 | AN6: 17 | AO6: 18 | AP6: 19 | AQ6: 20
A7: 16 | B7: 138.4 | C7: 70.7 | D7: 48.2 | E7: 36.9 | F7: 30.2 | G7: 25.7 | H7: 22.5 | I7: 20.1 | J7: 18.2 | K7: 16.7 | L7: 15.5 | M7: 14.5 | N7: 13.7 | O7: 13 | P7: 12.3 | Q7: 11.8 | R7: 11.3 | S7: 10.9 | T7: 10.5 | U7: 10.2 | W7: 16 | X7: 128.9 | Y7: 65.9 | Z7: 44.9 | AA7: 34.4 | AB7: 28.1 | AC7: 23.9 | AD7: 20.9 | AE7: 18.7 | AF7: 17 | AG7: 15.6 | AH7: 14.5 | AI7: 13.5 | AJ7: 12.7 | AK7: 12.1 | AL7: 11.5 | AM7: 11 | AN7: 10.5 | AO7: 10.1 | AP7: 9.8 | AQ7: 9.5
A8: 17 | B8: 141.5 | C8: 72.3 | D8: 49.2 | E8: 37.7 | F8: 30.8 | G8: 26.2 | H8: 23 | I8: 20.5 | J8: 18.6 | K8: 17.1 | L8: 15.9 | M8: 14.8 | N8: 14 | O8: 13.2 | P8: 12.6 | Q8: 12 | R8: 11.6 | S8: 11.1 | T8: 10.8 | U8: 10.4 | W8: 17 | X8: 131.7 | Y8: 67.3 | Z8: 45.8 | AA8: 35.1 | AB8: 28.7 | AC8: 24.4 | AD8: 21.4 | AE8: 19.1 | AF8: 17.3 | AG8: 15.9 | AH8: 14.8 | AI8: 13.8 | AJ8: 13 | AK8: 12.3 | AL8: 11.7 | AM8: 11.2 | AN8: 10.8 | AO8: 10.4 | AP8: 10 | AQ8: 9.7
A9: 18 | B9: 144.8 | C9: 74 | D9: 50.4 | E9: 38.6 | F9: 31.6 | G9: 26.9 | H9: 23.5 | I9: 21 | J9: 19.1 | K9: 17.5 | L9: 16.2 | M9: 15.2 | N9: 14.3 | O9: 13.6 | P9: 12.9 | Q9: 12.3 | R9: 11.8 | S9: 11.4 | T9: 11 | U9: 10.7 | W9: 18 | X9: 134.5 | Y9: 68.7 | Z9: 46.8 | AA9: 35.9 | AB9: 29.3 | AC9: 24.9 | AD9: 21.8 | AE9: 19.5 | AF9: 17.7 | AG9: 16.3 | AH9: 15.1 | AI9: 14.1 | AJ9: 13.3 | AK9: 12.6 | AL9: 12 | AM9: 11.5 | AN9: 11 | AO9: 10.6 | AP9: 10.2 | AQ9: 9.9
A10: 19 | B10: 148 | C10: 75.6 | D10: 51.5 | E10: 39.5 | F10: 32.3 | G10: 27.5 | H10: 24 | I10: 21.5 | J10: 19.5 | K10: 17.9 | L10: 16.6 | M10: 15.5 | N10: 14.6 | O10: 13.9 | P10: 13.2 | Q10: 12.6 | R10: 12.1 | S10: 11.7 | T10: 11.3 | U10: 10.9 | W10: 19 | X10: 137.3 | Y10: 70.2 | Z10: 47.8 | AA10: 36.6 | AB10: 29.9 | AC10: 25.5 | AD10: 22.3 | AE10: 19.9 | AF10: 18.1 | AG10: 16.6 | AH10: 15.4 | AI10: 14.4 | AJ10: 13.6 | AK10: 12.9 | AL10: 12.2 | AM10: 11.7 | AN10: 11.2 | AO10: 10.8 | AP10: 10.4 | AQ10: 10.1
A11: 20 | B11: 151.1 | C11: 77.2 | D11: 52.6 | E11: 40.3 | F11: 32.9 | G11: 28 | H11: 24.5 | I11: 21.9 | J11: 19.9 | K11: 18.3 | L11: 17 | M11: 15.9 | N11: 14.9 | O11: 14.1 | P11: 13.5 | Q11: 12.9 | R11: 12.4 | S11: 11.9 | T11: 11.5 | U11: 11.1 | W11: 20 | X11: 140.2 | Y11: 71.6 | Z11: 48.8 | AA11: 37.4 | AB11: 30.6 | AC11: 26 | AD11: 22.8 | AE11: 20.3 | AF11: 18.5 | AG11: 17 | AH11: 15.7 | AI11: 14.7 | AJ11: 13.9 | AK11: 13.1 | AL11: 12.5 | AM11: 11.9 | AN11: 11.5 | AO11: 11 | AP11: 10.7 | AQ11: 10.3
A12: 21 | B12: 154.2 | C12: 78.8 | D12: 53.7 | E12: 41.1 | F12: 33.6 | G12: 28.6 | H12: 25 | I12: 22.4 | J12: 20.3 | K12: 18.7 | L12: 17.3 | M12: 16.2 | N12: 15.2 | O12: 14.4 | P12: 13.7 | Q12: 13.1 | R12: 12.6 | S12: 12.1 | T12: 11.7 | U12: 11.4 | W12: 21 | X12: 143.1 | Y12: 73.1 | Z12: 49.8 | AA12: 38.2 | AB12: 31.2 | AC12: 26.6 | AD12: 23.2 | AE12: 20.8 | AF12: 18.8 | AG12: 17.3 | AH12: 16.1 | AI12: 15 | AJ12: 14.1 | AK12: 13.4 | AL12: 12.8 | AM12: 12.2 | AN12: 11.7 | AO12: 11.3 | AP12: 10.9 | AQ12: 10.5
A13: 22 | B13: 157.4 | C13: 80.4 | D13: 54.8 | E13: 42 | F13: 34.3 | G13: 29.2 | H13: 25.6 | I13: 22.8 | J13: 20.7 | K13: 19 | L13: 17.7 | M13: 16.5 | N13: 15.6 | O13: 14.7 | P13: 14 | Q13: 13.4 | R13: 12.9 | S13: 12.4 | T13: 12 | U13: 11.6 | W13: 22 | X13: 146.1 | Y13: 74.7 | Z13: 50.9 | AA13: 39 | AB13: 31.8 | AC13: 27.1 | AD13: 23.7 | AE13: 21.2 | AF13: 19.2 | AG13: 17.7 | AH13: 16.4 | AI13: 15.3 | AJ13: 14.4 | AK13: 13.7 | AL13: 13 | AM13: 12.5 | AN13: 12 | AO13: 11.5 | AP13: 11.1 | AQ13: 10.8
A14: 23 | B14: 160.6 | C14: 82.1 | D14: 55.9 | E14: 42.8 | F14: 35 | G14: 29.8 | H14: 26.1 | I14: 23.3 | J14: 21.2 | K14: 19.4 | L14: 18 | M14: 16.9 | N14: 15.9 | O14: 15 | P14: 14.3 | Q14: 13.7 | R14: 13.1 | S14: 12.7 | T14: 12.2 | U14: 11.8 | W14: 23 | X14: 149.1 | Y14: 76.2 | Z14: 51.9 | AA14: 39.8 | AB14: 32.5 | AC14: 27.7 | AD14: 24.2 | AE14: 21.6 | AF14: 19.6 | AG14: 18 | AH14: 16.7 | AI14: 15.7 | AJ14: 14.7 | AK14: 14 | AL14: 13.3 | AM14: 12.7 | AN14: 12.2 | AO14: 11.8 | AP14: 11.4 | AQ14: 11
A15: 24 | B15: 163.9 | C15: 83.8 | D15: 57.1 | E15: 43.7 | F15: 35.7 | G15: 30.4 | H15: 26.6 | I15: 23.8 | J15: 21.6 | K15: 19.8 | L15: 18.4 | M15: 17.2 | N15: 16.2 | O15: 15.4 | P15: 14.6 | Q15: 14 | R15: 13.4 | S15: 12.9 | T15: 12.5 | U15: 12.1 | W15: 24 | X15: 152.2 | Y15: 77.8 | Z15: 53 | AA15: 40.6 | AB15: 33.2 | AC15: 28.2 | AD15: 24.7 | AE15: 22.1 | AF15: 20 | AG15: 18.4 | AH15: 17.1 | AI15: 16 | AJ15: 15.1 | AK15: 14.3 | AL15: 13.6 | AM15: 13 | AN15: 12.5 | AO15: 12 | AP15: 11.6 | AQ15: 11.2
A16: 25 | B16: 167.3 | C16: 85.5 | D16: 58.2 | E16: 44.6 | F16: 36.5 | G16: 31 | H16: 27.2 | I16: 24.3 | J16: 22 | K16: 20.2 | L16: 18.8 | M16: 17.6 | N16: 16.6 | O16: 15.7 | P16: 14.9 | Q16: 14.3 | R16: 13.7 | S16: 13.2 | T16: 12.7 | U16: 12.3 | W16: 25 | X16: 155.3 | Y16: 79.4 | Z16: 54.1 | AA16: 41.4 | AB16: 33.9 | AC16: 28.8 | AD16: 25.2 | AE16: 22.5 | AF16: 20.5 | AG16: 18.8 | AH16: 17.4 | AI16: 16.3 | AJ16: 15.4 | AK16: 14.6 | AL16: 13.9 | AM16: 13.3 | AN16: 12.7 | AO16: 12.3 | AP16: 11.8 | AQ16: 11.5
A17: 26 | B17: 170.7 | C17: 87.2 | D17: 59.4 | E17: 45.5 | F17: 37.2 | G17: 31.7 | H17: 27.7 | I17: 24.8 | J17: 22.5 | K17: 20.7 | L17: 19.2 | M17: 17.9 | N17: 16.9 | O17: 16 | P17: 15.2 | Q17: 14.6 | R17: 14 | S17: 13.5 | T17: 13 | U17: 12.6 | W17: 26 | X17: 158.5 | Y17: 81 | Z17: 55.2 | AA17: 42.3 | AB17: 34.6 | AC17: 29.4 | AD17: 25.8 | AE17: 23 | AF17: 20.9 | AG17: 19.2 | AH17: 17.8 | AI17: 16.7 | AJ17: 15.7 | AK17: 14.9 | AL17: 14.2 | AM17: 13.5 | AN17: 13 | AO17: 12.5 | AP17: 12.1 | AQ17: 11.7
A18: 27 | B18: 174.2 | C18: 89 | D18: 60.6 | E18: 46.5 | F18: 38 | G18: 32.3 | H18: 28.3 | I18: 25.3 | J18: 23 | K18: 21.1 | L18: 19.6 | M18: 18.3 | N18: 17.2 | O18: 16.3 | P18: 15.6 | Q18: 14.9 | R18: 14.3 | S18: 13.8 | T18: 13.3 | U18: 12.9 | W18: 27 | X18: 161.8 | Y18: 82.7 | Z18: 56.3 | AA18: 43.2 | AB18: 35.3 | AC18: 30 | AD18: 26.3 | AE18: 23.5 | AF18: 21.3 | AG18: 19.6 | AH18: 18.2 | AI18: 17 | AJ18: 16 | AK18: 15.2 | AL18: 14.4 | AM18: 13.8 | AN18: 13.3 | AO18: 12.8 | AP18: 12.3 | AQ18: 12
A19: 28 | B19: 177.8 | C19: 90.8 | D19: 61.9 | E19: 47.4 | F19: 38.8 | G19: 33 | H19: 28.9 | I19: 25.8 | J19: 23.4 | K19: 21.5 | L19: 20 | M19: 18.7 | N19: 17.6 | O19: 16.7 | P19: 15.9 | Q19: 15.2 | R19: 14.6 | S19: 14 | T19: 13.6 | U19: 13.1 | W19: 28 | X19: 165.1 | Y19: 84.4 | Z19: 57.5 | AA19: 44 | AB19: 36 | AC19: 30.6 | AD19: 26.8 | AE19: 24 | AF19: 21.8 | AG19: 20 | AH19: 18.6 | AI19: 17.4 | AJ19: 16.4 | AK19: 15.5 | AL19: 14.8 | AM19: 14.1 | AN19: 13.5 | AO19: 13 | AP19: 12.6 | AQ19: 12.2
A20: 29 | B20: 181.4 | C20: 92.7 | D20: 63.2 | E20: 48.4 | F20: 39.6 | G20: 33.7 | H20: 29.5 | I20: 26.3 | J20: 23.9 | K20: 22 | L20: 20.4 | M20: 19.1 | N20: 18 | O20: 17 | P20: 16.2 | Q20: 15.5 | R20: 14.9 | S20: 14.3 | T20: 13.9 | U20: 13.4 | W20: 29 | X20: 168.5 | Y20: 86.1 | Z20: 58.7 | AA20: 45 | AB20: 36.7 | AC20: 31.3 | AD20: 27.4 | AE20: 24.5 | AF20: 22.2 | AG20: 20.4 | AH20: 18.9 | AI20: 17.7 | AJ20: 16.7 | AK20: 15.8 | AL20: 15.1 | AM20: 14.4 | AN20: 13.8 | AO20: 13.3 | AP20: 12.9 | AQ20: 12.5
A21: 30 | B21: 185.1 | C21: 94.6 | D21: 64.5 | E21: 49.4 | F21: 40.4 | G21: 34.4 | H21: 30.1 | I21: 26.9 | J21: 24.4 | K21: 22.4 | L21: 20.8 | M21: 19.5 | N21: 18.3 | O21: 17.4 | P21: 16.6 | Q21: 15.8 | R21: 15.2 | S21: 14.6 | T21: 14.2 | U21: 13.7 | W21: 30 | X21: 171.9 | Y21: 87.9 | Z21: 59.9 | AA21: 45.9 | AB21: 37.5 | AC21: 31.9 | AD21: 28 | AE21: 25 | AF21: 22.7 | AG21: 20.8 | AH21: 19.3 | AI21: 18.1 | AJ21: 17 | AK21: 16.2 | AL21: 15.4 | AM21: 14.7 | AN21: 14.1 | AO21: 13.6 | AP21: 13.1 | AQ21: 12.7
A22: 31 | B22: 188.9 | C22: 96.5 | D22: 65.8 | E22: 50.4 | F22: 41.2 | G22: 35.1 | H22: 30.7 | I22: 27.4 | J22: 24.9 | K22: 22.9 | L22: 21.2 | M22: 19.9 | N22: 18.7 | O22: 17.8 | P22: 16.9 | Q22: 16.2 | R22: 15.5 | S22: 15 | T22: 14.5 | U22: 14 | W22: 31 | X22: 175.5 | Y22: 89.7 | Z22: 61.1 | AA22: 46.8 | AB22: 38.3 | AC22: 32.6 | AD22: 28.5 | AE22: 25.5 | AF22: 23.1 | AG22: 21.3 | AH22: 19.7 | AI22: 18.5 | AJ22: 17.4 | AK22: 16.5 | AL22: 15.7 | AM22: 15 | AN22: 14.4 | AO22: 13.9 | AP22: 13.4 | AQ22: 13
A23: 32 | B23: 192.7 | C23: 98.5 | D23: 67.1 | E23: 51.4 | F23: 42 | G23: 35.8 | H23: 31.3 | I23: 28 | J23: 25.4 | K23: 23.4 | L23: 21.7 | M23: 20.3 | N23: 19.1 | O23: 18.1 | P23: 17.3 | Q23: 16.5 | R23: 15.9 | S23: 15.3 | T23: 14.8 | U23: 14.3 | W23: 32 | X23: 179 | Y23: 91.5 | Z23: 62.3 | AA23: 47.8 | AB23: 39.1 | AC23: 33.3 | AD23: 29.1 | AE23: 26 | AF23: 23.6 | AG23: 21.7 | AH23: 20.2 | AI23: 18.9 | AJ23: 17.8 | AK23: 16.8 | AL23: 16 | AM23: 15.3 | AN23: 14.7 | AO23: 14.2 | AP23: 13.7 | AQ23: 13.3
A24: 33 | B24: 196.6 | C24: 100.5 | D24: 68.5 | E24: 52.5 | F24: 42.9 | G24: 36.5 | H24: 32 | I24: 28.6 | J24: 25.9 | K24: 23.8 | L24: 22.1 | M24: 20.7 | N24: 19.5 | O24: 18.5 | P24: 17.6 | Q24: 16.9 | R24: 16.2 | S24: 15.6 | T24: 15.1 | U24: 14.6 | W24: 33 | X24: 182.7 | Y24: 93.4 | Z24: 63.6 | AA24: 48.8 | AB24: 39.9 | AC24: 33.9 | AD24: 29.7 | AE24: 26.6 | AF24: 24.1 | AG24: 22.2 | AH24: 20.6 | AI24: 19.2 | AJ24: 18.1 | AK24: 17.2 | AL24: 16.4 | AM24: 15.7 | AN24: 15 | AO24: 14.5 | AP24: 14 | AQ24: 13.6
A25: 34 | B25: 200.5 | C25: 102.5 | D25: 69.8 | E25: 53.5 | F25: 43.8 | G25: 37.3 | H25: 32.6 | I25: 29.2 | J25: 26.5 | K25: 24.3 | L25: 22.6 | M25: 21.1 | N25: 19.9 | O25: 18.9 | P25: 18 | Q25: 17.2 | R25: 16.5 | S25: 15.9 | T25: 15.4 | U25: 14.9 | W25: 34 | X25: 186.3 | Y25: 95.2 | Z25: 64.9 | AA25: 49.8 | AB25: 40.7 | AC25: 34.6 | AD25: 30.3 | AE25: 27.1 | AF25: 24.6 | AG25: 22.6 | AH25: 21 | AI25: 19.6 | AJ25: 18.5 | AK25: 17.5 | AL25: 16.7 | AM25: 16 | AN25: 15.4 | AO25: 14.8 | AP25: 14.3 | AQ25: 13.9
A26: 35 | B26: 204.5 | C26: 104.5 | D26: 71.2 | E26: 54.6 | F26: 44.6 | G26: 38 | H26: 33.3 | I26: 29.8 | J26: 27 | K26: 24.8 | L26: 23.1 | M26: 21.6 | N26: 20.3 | O26: 19.3 | P26: 18.4 | Q26: 17.6 | R26: 16.9 | S26: 16.3 | T26: 15.7 | U26: 15.2 | W26: 35 | X26: 190.1 | Y26: 97.2 | Z26: 66.2 | AA26: 50.8 | AB26: 41.5 | AC26: 35.3 | AD26: 30.9 | AE26: 27.7 | AF26: 25.1 | AG26: 23.1 | AH26: 21.4 | AI26: 20.1 | AJ26: 18.9 | AK26: 17.9 | AL26: 17.1 | AM26: 16.3 | AN26: 15.7 | AO26: 15.1 | AP26: 14.6 | AQ26: 14.2
A27: 36 | B27: 208.5 | C27: 106.6 | D27: 72.7 | E27: 55.7 | F27: 45.5 | G27: 38.8 | H27: 34 | I27: 30.4 | J27: 27.6 | K27: 25.3 | L27: 23.5 | M27: 22 | N27: 20.8 | O27: 19.7 | P27: 18.7 | Q27: 17.9 | R27: 17.2 | S27: 16.6 | T27: 16.1 | U27: 15.6 | W27: 36 | X27: 193.9 | Y27: 99.1 | Z27: 67.5 | AA27: 51.8 | AB27: 42.3 | AC27: 36.1 | AD27: 31.6 | AE27: 28.2 | AF27: 25.6 | AG27: 23.6 | AH27: 21.9 | AI27: 20.5 | AJ27: 19.3 | AK27: 18.3 | AL27: 17.4 | AM27: 16.7 | AN27: 16 | AO27: 15.4 | AP27: 14.9 | AQ27: 14.5
A28: 37 | B28: 212.7 | C28: 108.7 | D28: 74.1 | E28: 56.8 | F28: 46.4 | G28: 39.6 | H28: 34.6 | I28: 31 | J28: 28.1 | K28: 25.9 | L28: 24 | M28: 22.5 | N28: 21.2 | O28: 20.1 | P28: 19.1 | Q28: 18.3 | R28: 17.6 | S28: 17 | T28: 16.4 | U28: 15.9 | W28: 37 | X28: 197.8 | Y28: 101.1 | Z28: 68.9 | AA28: 52.8 | AB28: 43.2 | AC28: 36.8 | AD28: 32.2 | AE28: 28.8 | AF28: 26.2 | AG28: 24 | AH28: 22.3 | AI28: 20.9 | AJ28: 19.7 | AK28: 18.7 | AL28: 17.8 | AM28: 17 | AN28: 16.4 | AO28: 15.8 | AP28: 15.3 | AQ28: 14.8
A29: 38 | B29: 216.9 | C29: 110.9 | D29: 75.6 | E29: 57.9 | F29: 47.4 | G29: 40.4 | H29: 35.3 | I29: 31.6 | J29: 28.7 | K29: 26.4 | L29: 24.5 | M29: 22.9 | N29: 21.6 | O29: 20.5 | P29: 19.5 | Q29: 18.7 | R29: 18 | S29: 17.3 | T29: 16.8 | U29: 16.3 | W29: 38 | X29: 201.7 | Y29: 103.1 | Z29: 70.3 | AA29: 53.9 | AB29: 44.1 | AC29: 37.5 | AD29: 32.9 | AE29: 29.4 | AF29: 26.7 | AG29: 24.5 | AH29: 22.8 | AI29: 21.3 | AJ29: 20.1 | AK29: 19.1 | AL29: 18.2 | AM29: 17.4 | AN29: 16.7 | AO29: 16.1 | AP29: 15.6 | AQ29: 15.1
A30: 39 | B30: 221.1 | C30: 113.1 | D30: 77.1 | E30: 59.1 | F30: 48.3 | G30: 41.2 | H30: 36.1 | I30: 32.2 | J30: 29.3 | K30: 26.9 | L30: 25 | M30: 23.4 | N30: 22.1 | O30: 20.9 | P30: 20 | Q30: 19.1 | R30: 18.4 | S30: 17.7 | T30: 17.1 | U30: 16.6 | W30: 39 | X30: 205.7 | Y30: 105.2 | Z30: 71.7 | AA30: 55 | AB30: 45 | AC30: 38.3 | AD30: 33.5 | AE30: 30 | AF30: 27.2 | AG30: 25 | AH30: 23.3 | AI30: 21.8 | AJ30: 20.5 | AK30: 19.5 | AL30: 18.6 | AM30: 17.8 | AN30: 17.1 | AO30: 16.5 | AP30: 15.9 | AQ30: 15.5
A31: 40 | B31: 225.5 | C31: 115.3 | D31: 78.6 | E31: 60.3 | F31: 49.3 | G31: 42 | H31: 36.8 | I31: 32.9 | J31: 29.9 | K31: 27.5 | L31: 25.5 | M31: 23.9 | N31: 22.5 | O31: 21.4 | P31: 20.4 | Q31: 19.5 | R31: 18.8 | S31: 18.1 | T31: 17.5 | U31: 17 | W31: 40 | X31: 209.8 | Y31: 107.3 | Z31: 73.1 | AA31: 56.1 | AB31: 45.9 | AC31: 39.1 | AD31: 34.2 | AE31: 30.6 | AF31: 27.8 | AG31: 25.6 | AH31: 23.7 | AI31: 22.2 | AJ31: 21 | AK31: 19.9 | AL31: 19 | AM31: 18.2 | AN31: 17.5 | AO31: 16.8 | AP31: 16.3 | AQ31: 15.8
A32: 41 | B32: 229.9 | C32: 117.6 | D32: 80.2 | E32: 61.5 | F32: 50.3 | G32: 42.8 | H32: 37.5 | I32: 33.6 | J32: 30.5 | K32: 28 | L32: 26.1 | M32: 24.4 | N32: 23 | O32: 21.8 | P32: 20.8 | Q32: 19.9 | R32: 19.2 | S32: 18.5 | T32: 17.9 | U32: 17.4 | W32: 41 | X32: 214 | Y32: 109.4 | Z32: 74.6 | AA32: 57.2 | AB32: 46.8 | AC32: 39.9 | AD32: 34.9 | AE32: 31.2 | AF32: 28.4 | AG32: 26.1 | AH32: 24.2 | AI32: 22.7 | AJ32: 21.4 | AK32: 20.3 | AL32: 19.4 | AM32: 18.6 | AN32: 17.8 | AO32: 17.2 | AP32: 16.7 | AQ32: 16.2
A33: 42 | B33: 234.4 | C33: 119.9 | D33: 81.7 | E33: 62.7 | F33: 51.3 | G33: 43.7 | H33: 38.3 | I33: 34.2 | J33: 31.1 | K33: 28.6 | L33: 26.6 | M33: 24.9 | N33: 23.5 | O33: 22.3 | P33: 21.3 | Q33: 20.4 | R33: 19.6 | S33: 18.9 | T33: 18.3 | U33: 17.8 | W33: 42 | X33: 218.2 | Y33: 111.6 | Z33: 76.1 | AA33: 58.4 | AB33: 47.7 | AC33: 40.7 | AD33: 35.6 | AE33: 31.9 | AF33: 29 | AG33: 26.6 | AH33: 24.7 | AI33: 23.2 | AJ33: 21.9 | AK33: 20.8 | AL33: 19.8 | AM33: 19 | AN33: 18.3 | AO33: 17.6 | AP33: 17.1 | AQ33: 16.6
A34: 43 | B34: 238.9 | C34: 122.2 | D34: 83.3 | E34: 63.9 | F34: 52.3 | G34: 44.6 | H34: 39.1 | I34: 34.9 | J34: 31.7 | K34: 29.2 | L34: 27.1 | M34: 25.4 | N34: 24 | O34: 22.8 | P34: 21.7 | Q34: 20.8 | R34: 20.1 | S34: 19.4 | T34: 18.8 | U34: 18.2 | W34: 43 | X34: 222.5 | Y34: 113.8 | Z34: 77.6 | AA34: 59.5 | AB34: 48.7 | AC34: 41.5 | AD34: 36.4 | AE34: 32.5 | AF34: 29.6 | AG34: 27.2 | AH34: 25.3 | AI34: 23.7 | AJ34: 22.3 | AK34: 21.2 | AL34: 20.2 | AM34: 19.4 | AN34: 18.7 | AO34: 18 | AP34: 17.5 | AQ34: 17
A35: 44 | B35: 243.5 | C35: 124.6 | D35: 85 | E35: 65.2 | F35: 53.3 | G35: 45.4 | H35: 39.8 | I35: 35.6 | J35: 32.4 | K35: 29.8 | L35: 27.7 | M35: 26 | N35: 24.5 | O35: 23.3 | P35: 22.2 | Q35: 21.3 | R35: 20.5 | S35: 19.8 | T35: 19.2 | U35: 18.7 | W35: 44 | X35: 226.8 | Y35: 116 | Z35: 79.1 | AA35: 60.7 | AB35: 49.7 | AC35: 42.3 | AD35: 37.1 | AE35: 33.2 | AF35: 30.2 | AG35: 27.8 | AH35: 25.8 | AI35: 24.2 | AJ35: 22.8 | AK35: 21.7 | AL35: 20.7 | AM35: 19.8 | AN35: 19.1 | AO35: 18.5 | AP35: 17.9 | AQ35: 17.4
A36: 45 | B36: 248.2 | C36: 127 | D36: 86.6 | E36: 66.4 | F36: 54.4 | G36: 46.3 | H36: 40.6 | I36: 36.4 | J36: 33.1 | K36: 30.4 | L36: 28.3 | M36: 26.5 | N36: 25.1 | O36: 23.8 | P36: 22.7 | Q36: 21.8 | R36: 21 | S36: 20.3 | T36: 19.7 | U36: 19.1 | W36: 45 | X36: 231.2 | Y36: 118.3 | Z36: 80.7 | AA36: 61.9 | AB36: 50.7 | AC36: 43.2 | AD36: 37.8 | AE36: 33.9 | AF36: 30.8 | AG36: 28.3 | AH36: 26.4 | AI36: 24.7 | AJ36: 23.3 | AK36: 22.2 | AL36: 21.2 | AM36: 20.3 | AN36: 19.6 | AO36: 18.9 | AP36: 18.3 | AQ36: 17.8
A37: 46 | B37: 253 | C37: 129.4 | D37: 88.3 | E37: 67.7 | F37: 55.4 | G37: 47.3 | H37: 41.4 | I37: 37.1 | J37: 33.7 | K37: 31.1 | L37: 28.9 | M37: 27.1 | N37: 25.6 | O37: 24.3 | P37: 23.3 | Q37: 22.3 | R37: 21.5 | S37: 20.8 | T37: 20.1 | U37: 19.6 | W37: 46 | X37: 235.7 | Y37: 120.6 | Z37: 82.3 | AA37: 63.1 | AB37: 51.7 | AC37: 44 | AD37: 38.6 | AE37: 34.6 | AF37: 31.4 | AG37: 29 | AH37: 26.9 | AI37: 25.3 | AJ37: 23.9 | AK37: 22.7 | AL37: 21.7 | AM37: 20.8 | AN37: 20 | AO37: 19.4 | AP37: 18.8 | AQ37: 18.2
A38: 47 | B38: 257.8 | C38: 131.9 | D38: 90 | E38: 69.1 | F38: 56.5 | G38: 48.2 | H38: 42.3 | I38: 37.9 | J38: 34.5 | K38: 31.7 | L38: 29.5 | M38: 27.7 | N38: 26.2 | O38: 24.9 | P38: 23.8 | Q38: 22.8 | R38: 22 | S38: 21.3 | T38: 20.6 | U38: 20.1 | W38: 47 | X38: 240.3 | Y38: 123 | Z38: 83.9 | AA38: 64.4 | AB38: 52.7 | AC38: 44.9 | AD38: 39.4 | AE38: 35.3 | AF38: 32.1 | AG38: 29.6 | AH38: 27.5 | AI38: 25.8 | AJ38: 24.4 | AK38: 23.2 | AL38: 22.2 | AM38: 21.3 | AN38: 20.5 | AO38: 19.8 | AP38: 19.2 | AQ38: 18.7
A39: 48 | B39: 262.7 | C39: 134.5 | D39: 91.7 | E39: 70.4 | F39: 57.7 | G39: 49.2 | H39: 43.2 | I39: 38.7 | J39: 35.2 | K39: 32.4 | L39: 30.2 | M39: 28.4 | N39: 26.8 | O39: 25.5 | P39: 24.4 | Q39: 23.4 | R39: 22.6 | S39: 21.8 | T39: 21.2 | W39: 48 | X39: 245 | Y39: 125.4 | Z39: 85.6 | AA39: 65.7 | AB39: 53.8 | AC39: 45.9 | AD39: 40.3 | AE39: 36.1 | AF39: 32.8 | AG39: 30.3 | AH39: 28.2 | AI39: 26.4 | AJ39: 25 | AK39: 23.8 | AL39: 22.7 | AM39: 21.8 | AN39: 21 | AO39: 20.4 | AP39: 19.7
A40: 49 | B40: 267.8 | C40: 137.1 | D40: 93.6 | E40: 71.9 | F40: 58.9 | G40: 50.2 | H40: 44.1 | I40: 39.5 | J40: 36 | K40: 33.2 | L40: 30.9 | M40: 29 | N40: 27.5 | O40: 26.1 | P40: 25 | Q40: 24 | R40: 23.1 | S40: 22.4 | W40: 49 | X40: 249.8 | Y40: 127.9 | Z40: 87.3 | AA40: 67 | AB40: 54.9 | AC40: 46.9 | AD40: 41.1 | AE40: 36.9 | AF40: 33.6 | AG40: 31 | AH40: 28.8 | AI40: 27.1 | AJ40: 25.6 | AK40: 24.4 | AL40: 23.3 | AM40: 22.4 | AN40: 21.6 | AO40: 20.9
A41: 50 | B41: 272.9 | C41: 139.8 | D41: 95.5 | E41: 73.3 | F41: 60.1 | G41: 51.3 | H41: 45.1 | I41: 40.4 | J41: 36.8 | K41: 34 | L41: 31.6 | M41: 29.7 | N41: 28.1 | O41: 26.8 | P41: 25.6 | Q41: 24.6 | R41: 23.8 | W41: 50 | X41: 254.7 | Y41: 130.5 | Z41: 89.1 | AA41: 68.5 | AB41: 56.1 | AC41: 47.9 | AD41: 42.1 | AE41: 37.7 | AF41: 34.4 | AG41: 31.7 | AH41: 29.5 | AI41: 27.8 | AJ41: 26.3 | AK41: 25 | AL41: 23.9 | AM41: 23 | AN41: 22.2
A42: 51 | B42: 278.2 | C42: 142.5 | D42: 97.4 | E42: 74.9 | F42: 61.4 | G42: 52.4 | H42: 46.1 | I42: 41.3 | J42: 37.7 | K42: 34.8 | L42: 32.4 | M42: 30.5 | N42: 28.8 | O42: 27.5 | P42: 26.3 | Q42: 25.3 | W42: 51 | X42: 259.8 | Y42: 133.1 | Z42: 90.9 | AA42: 69.9 | AB42: 57.3 | AC42: 49 | AD42: 43 | AE42: 38.6 | AF42: 35.2 | AG42: 32.5 | AH42: 30.3 | AI42: 28.4 | AJ42: 26.9 | AK42: 25.6 | AL42: 24.5 | AM42: 23.6
A43: 52 | B43: 283.5 | C43: 145.3 | D43: 99.3 | E43: 76.4 | F43: 62.7 | G43: 53.5 | H43: 47.1 | I43: 42.3 | J43: 38.5 | K43: 35.6 | L43: 33.2 | M43: 31.2 | N43: 29.5 | O43: 28.1 | P43: 26.9 | W43: 52 | X43: 264.8 | Y43: 135.7 | Z43: 92.8 | AA43: 71.4 | AB43: 58.5 | AC43: 50 | AD43: 44 | AE43: 39.5 | AF43: 36 | AG43: 33.2 | AH43: 31 | AI43: 29.1 | AJ43: 27.6 | AK43: 26.3 | AL43: 25.2
A44: 53 | B44: 288.7 | C44: 148.1 | D44: 101.2 | E44: 77.9 | F44: 63.9 | G44: 54.7 | H44: 48.1 | I44: 43.2 | J44: 39.4 | K44: 36.4 | L44: 34 | M44: 31.9 | N44: 30.3 | O44: 28.8 | W44: 53 | X44: 269.9 | Y44: 138.4 | Z44: 94.6 | AA44: 72.8 | AB44: 59.8 | AC44: 51.1 | AD44: 45 | AE44: 40.4 | AF44: 36.8 | AG44: 34 | AH44: 31.7 | AI44: 29.9 | AJ44: 28.3 | AK44: 27
A45: 54 | B45: 294 | C45: 150.9 | D45: 103.2 | E45: 79.5 | F45: 65.2 | G45: 55.8 | H45: 49.1 | I45: 44.1 | J45: 40.3 | K45: 37.2 | L45: 34.7 | M45: 32.7 | N45: 31 | W45: 54 | X45: 275 | Y45: 141.1 | Z45: 96.5 | AA45: 74.3 | AB45: 61 | AC45: 52.2 | AD45: 45.9 | AE45: 41.3 | AF45: 37.7 | AG45: 34.8 | AH45: 32.5 | AI45: 30.6 | AJ45: 29
A46: 55 | B46: 299.4 | C46: 153.7 | D46: 105.2 | E46: 81 | F46: 66.6 | G46: 57 | H46: 50.2 | I46: 45.1 | J46: 41.2 | K46: 38.1 | L46: 35.6 | M46: 33.5 | W46: 55 | X46: 280.2 | Y46: 143.9 | Z46: 98.5 | AA46: 75.8 | AB46: 62.3 | AC46: 53.3 | AD46: 47 | AE46: 42.2 | AF46: 38.5 | AG46: 35.6 | AH46: 33.3 | AI46: 31.3
A47: 56 | B47: 304.8 | C47: 156.6 | D47: 107.2 | E47: 82.6 | F47: 67.9 | G47: 58.2 | H47: 51.3 | I47: 46.1 | J47: 42.1 | K47: 39 | L47: 36.4 | W47: 56 | X47: 285.5 | Y47: 146.7 | Z47: 100.5 | AA47: 77.4 | AB47: 63.6 | AC47: 54.5 | AD47: 48 | AE47: 43.2 | AF47: 39.4 | AG47: 36.5 | AH47: 34.1
A48: 57 | B48: 310.4 | C48: 159.5 | D48: 109.3 | E48: 84.3 | F48: 69.3 | G48: 59.4 | H48: 52.4 | I48: 47.1 | J48: 43.1 | K48: 39.8 | W48: 57 | X48: 291 | Y48: 149.5 | Z48: 102.5 | AA48: 79 | AB48: 65 | AC48: 55.7 | AD48: 49.1 | AE48: 44.2 | AF48: 40.4 | AG48: 37.4
A49: 58 | B49: 316.1 | C49: 162.5 | D49: 111.5 | E49: 86 | F49: 70.8 | G49: 60.7 | H49: 53.5 | I49: 48.1 | J49: 44 | W49: 58 | X49: 296.6 | Y49: 152.5 | Z49: 104.6 | AA49: 80.7 | AB49: 66.4 | AC49: 56.9 | AD49: 50.2 | AE49: 45.2 | AF49: 41.3
A50: 59 | B50: 322 | C50: 165.7 | D50: 113.7 | E50: 87.7 | F50: 72.2 | G50: 62 | H50: 54.7 | I50: 49.2 | W50: 59 | X50: 302.4 | Y50: 155.6 | Z50: 106.7 | AA50: 82.4 | AB50: 67.8 | AC50: 58.2 | AD50: 51.3 | AE50: 46.2
A51: 60 | B51: 328.1 | C51: 168.9 | D51: 115.9 | E51: 89.5 | F51: 73.8 | G51: 63.3 | H51: 55.9 | W51: 60 | X51: 308.4 | Y51: 158.8 | Z51: 109 | AA51: 84.2 | AB51: 69.3 | AC51: 59.5 | AD51: 52.5
A52: 61 | B52: 334.4 | C52: 172.3 | D52: 118.3 | E52: 91.4 | F52: 75.3 | G52: 64.7 | W52: 61 | X52: 314.7 | Y52: 162.1 | Z52: 111.3 | AA52: 86 | AB52: 70.9 | AC52: 60.9
A53: 62 | B53: 341.1 | C53: 175.8 | D53: 120.8 | E53: 93.4 | F53: 77 | W53: 62 | X53: 321.4 | Y53: 165.6 | Z53: 113.8 | AA53: 88 | AB53: 72.6
A54: 63 | B54: 348.1 | C54: 179.5 | D54: 123.4 | E54: 95.5 | W54: 63 | X54: 328.4 | Y54: 169.3 | Z54: 116.4 | AA54: 90.1
A55: 64 | B55: 355.7 | C55: 183.5 | D55: 126.2 | W55: 64 | X55: 336 | Y55: 173.4 | Z55: 119.3
A56: 65 | B56: 363.7 | C56: 187.7 | W56: 65 | X56: 344.1 | Y56: 177.6
A57: 66 | B57: 372.3 | W57: 66 | X57: 352.7

Sheet ERF (hidden)
A2: TABLE ERF1_NHSSS_2015
A3: NHS SUPERANNUATION SCHEME SCOTLAND (2015): ACTUARIAL FACTORS
A4: BENEFITS PAYABLE TO THE MEMBER ON VOLUNTARY EARLY RETIREMENT (WITH ACTUARIAL REDUCTION)
A5: FACTORS APPLICABLE TO MAIN SCHEME PENSION AND ADDITIONAL PENSION
A6: PENSION FACTORS
A7: Time to NPA: Monthsà Years â | B7: 0 | C7: 1 | D7: 2 | E7: 3 | F7: 4 | G7: 5 | H7: 6 | I7: 7 | J7: 8 | K7: 9 | L7: 10 | M7: 11
A8: 0 | B8: 1 | C8: 0.995 | D8: 0.991 | E8: 0.986 | F8: 0.982 | G8: 0.977 | H8: 0.973 | I8: 0.968 | J8: 0.964 | K8: 0.959 | L8: 0.955 | M8: 0.95
A9: 1 | B9: 0.946 | C9: 0.942 | D9: 0.938 | E9: 0.933 | F9: 0.929 | G9: 0.925 | H9: 0.921 | I9: 0.917 | J9: 0.913 | K9: 0.909 | L9: 0.904 | M9: 0.9
A10: 2 | B10: 0.896 | C10: 0.892 | D10: 0.889 | E10: 0.885 | F10: 0.881 | G10: 0.877 | H10: 0.873 | I10: 0.869 | J10: 0.866 | K10: 0.862 | L10: 0.858 | M10: 0.854
A11: 3 | B11: 0.85 | C11: 0.847 | D11: 0.843 | E11: 0.84 | F11: 0.836 | G11: 0.833 | H11: 0.829 | I11: 0.826 | J11: 0.822 | K11: 0.819 | L11: 0.815 | M11: 0.812
A12: 4 | B12: 0.808 | C12: 0.805 | D12: 0.802 | E12: 0.799 | F12: 0.795 | G12: 0.792 | H12: 0.789 | I12: 0.786 | J12: 0.782 | K12: 0.779 | L12: 0.776 | M12: 0.773
A13: 5 | B13: 0.769 | C13: 0.766 | D13: 0.763 | E13: 0.76 | F13: 0.757 | G13: 0.754 | H13: 0.751 | I13: 0.748 | J13: 0.745 | K13: 0.742 | L13: 0.739 | M13: 0.736
A14: 6 | B14: 0.733 | C14: 0.73 | D14: 0.728 | E14: 0.725 | F14: 0.722 | G14: 0.719 | H14: 0.716 | I14: 0.714 | J14: 0.711 | K14: 0.708 | L14: 0.705 | M14: 0.702
A15: 7 | B15: 0.7 | C15: 0.697 | D15: 0.694 | E15: 0.692 | F15: 0.689 | G15: 0.687 | H15: 0.684 | I15: 0.681 | J15: 0.679 | K15: 0.676 | L15: 0.674 | M15: 0.671
A16: 8 | B16: 0.668 | C16: 0.666 | D16: 0.664 | E16: 0.661 | F16: 0.659 | G16: 0.656 | H16: 0.654 | I16: 0.651 | J16: 0.649 | K16: 0.647 | L16: 0.644 | M16: 0.642
A17: 9 | B17: 0.639 | C17: 0.637 | D17: 0.635 | E17: 0.633 | F17: 0.63 | G17: 0.628 | H17: 0.626 | I17: 0.623 | J17: 0.621 | K17: 0.619 | L17: 0.617 | M17: 0.614
A18: 10 | B18: 0.612 | C18: 0.61 | D18: 0.608 | E18: 0.606 | F18: 0.604 | G18: 0.601 | H18: 0.599 | I18: 0.597 | J18: 0.595 | K18: 0.593 | L18: 0.591 | M18: 0.589
A19: 11 | B19: 0.587 | C19: 0.585 | D19: 0.583 | E19: 0.581 | F19: 0.579 | G19: 0.577 | H19: 0.575 | I19: 0.573 | J19: 0.571 | K19: 0.569 | L19: 0.567 | M19: 0.565
A20: 12 | B20: 0.563 | C20: 0.561 | D20: 0.559 | E20: 0.557 | F20: 0.555 | G20: 0.553 | H20: 0.551 | I20: 0.55 | J20: 0.548 | K20: 0.546 | L20: 0.544 | M20: 0.542
A21: 13 | B21: 0.54
A23: Notes: | B23: (1) NPA should be substituted for RRA where appropriate
B24: (2) AP should be pro-rated to take account of unpaid contributions at date of retirement. Any paid up AP entitlement should include PI to DOR
B25: (3) The appropriate factor is based on the period between DOR and NPA (or RRA) in years and months, rounded up to the next higher month.

Sheet Printable estimate (hidden)
B3: Illustration of additional pension benefit cost
B5: Your details
B6: Date of Birth: | D6: =IF('Contributions calculator'!D4="","",'Contributions calculator'!D4) -> 
B8: Normal pension age: | D8: =IF(Codes!F8>0,Codes!E8&" years",Codes!E8) -> 65 | E8: =IF(AND(Codes!F8>0,Codes!F8<>""),Codes!F8&" months","") -> 
B10: Date of election: | D10: =IF('Contributions calculator'!D9="","",'Contributions calculator'!D9) -> 
B12: Age at start of agreement: | D12: ='Contributions calculator'!D11 -> 
B15: Your input data
B17: Amount elected to purchase: | D17: =IF('Contributions calculator'!D17="","",'Contributions calculator'!D17) -> 6000
B19: Payment method: | D19: =IF('Contributions calculator'!D19="Regular contributions","Regular contributions over "&'Contributions calculator'!D21&" years","Lump sum") -> Lump sum
B21: Covered for family benefits? | D21: =IF('Contributions calculator'!D23="","",IF('Contributions calculator'!D23=Codes!D2,"No",IF('Contributions calculator'!D23=Codes!D3,"Yes"))) -> No
B23: Your estimated cost
B24: ='Contributions calculator'!B27 -> A lump sum payment of:- | D24: ='Contributions calculator'!D27 -> 
B25: ='Contributions calculator'!B28 ->  | D25: ='Contributions calculator'!D28 -> 
B26: ='Contributions calculator'!B29 ->  | D26: ='Contributions calculator'!D29 -> 
B28: This calculation is intended for illustration purposes only. This is not a statement of you legal entitlement. While every care has been taken in the preperation of this calculator the Scottish Public Pension Agency will accept no responsibility for the accuracy of the ionformation it provides. Please refer to pages on the SPPA website for points of contact and other benefits available.

Sheet Guidance notes
B2: Additional Pension guidance notes
B3: Disclaimer: This calculation is intended for illustration purposes only. This is not a statement of you legal entitlement. While every care has been taken in the preperation of this calculator the HSC Pension Service will accept no responsibility for the accuracy of the ionformation it provides. Please refer to pages on the HSC Pension Service website for points of contact and other benefits available.
B4: Using the calculator You must be a contributing member of one of the following schemes if you wish to purchase additional pension: • The Health and Personal Social Services (Northern Ireland) 1995/2008 • The Health and Social Care Pension Scheme (Northern Ireland) 2015 AP benefits will be paid with your scheme retirement benefits and will be index linked. The cost of purchasing AP depends on your age and the amount of AP you wish to receive. There are two ways you can pay for AP. You can pay by having regular deductions taken from your mionthly salary or by paying a one off lump sum. For protected scheme members and members still covered by tapered protection the payable age for your election will be the same as your scheme pension age (60 or 65). All other members should use their state pension age to calculate the cost of additional pension. Additional pension must be bought in multiples of £250. Therefore the minimum amount available to purchase is £250. The maximum for each scheme is: • The Health and Personal Social Services (Northern Ireland) 1995/2008 £5000 • The Health and Social Care Pension Scheme (Northern Ireland) 2015 £6500
B5: HSC Pension Service Waterside House 75 Duke Street, Londonderry BT47 6FP Telephone: 02871 319111
F39: G
